Workbook

Sheet Januar
B1: Testnummer / Testerin | C1: 05701 | D1: 05702 | E1: 05707 | F1: 05708 | G1: 05709 | H1: 03134 | I1: 05710 | J1: 05711 | K1: 05712 | L1: 05713 | M1: 05714 | N1: 05715 | O1: 03136 | P1: 03137 | W1: Anz. | X1: Stück-Std. | Y1: Summe in EURO | AC1: Summe BIM in EURO | AD1: Stamm daten | AI1: Vorführ-fütterung | AJ1: Std. /Entgelt | AK1: Gesamt NETTO* in EURO | AL1: km x XXeurocent | AM1: Pauschale 25% | AO1: Gesamt in EURO
A2: 1 | W2: =SUM(C2:V2) -> 0 | Y2: =SUM(W2*2.25) -> 0 | AC2: =(Z2+AA2+AB2)*2.25 -> 0 | AK2: =Y2+AC2+AD2+AF2+AG2+AH2+AI2+AJ2+AE2 -> 0 | AO2: =AK2+AL2+AM2+AN2 -> 0
A3: 2 | B3: Gundlach, Doris | W3: 0 | Y3: =SUM(W3*2.25) -> 0 | AC3: =(Z3+AA3+AB3)*2.25 -> 0 | AK3: =Y3+AC3+AD3+AF3+AG3+AH3+AI3+AJ3+AE3 -> 0 | AL3: =W3*2.75+(H3+I3+J3+N3)*2.75 -> 0 | AO3: 0
A4: 3 | W4: 0 | Y4: 0 | AC4: 0 | AK4: =Y4+AC4+AD4+AF4+AG4+AH4+AI4+AJ4+AE4 -> 0 | AL4: 0 | AO4: 0
A5: 4 | B5: Korte, Inge | I5: 1 | K5: 1 | N5: 3 | W5: 5 | X5: =W5/4 -> 1.25 | Y5: 11.25 | AC5: 0 | AK5: =Y5+AC5+AD5+AF5+AG5+AH5+AI5+AJ5+AE5 -> 11.25 | AL5: =W5*2.75 -> 13.75 | AO5: 25
A6: 5 | B6: Tölkemeier, Petra | D6: 8 | E6: 8 | F6: 4 | L6: 8 | N6: 5 | W6: 33 | X6: =W6/4 -> 8.25 | Y6: 74.25 | AC6: 0 | AK6: 74.25 | AL6: =W6*2.75 -> 90.75 | AO6: 165
A7: 6 | B7: Rohlfing, Anja | C7: 3 | F7: 4 | H7: 4 | I7: 1 | J7: 3 | K7: 1 | N7: 3 | W7: 19 | X7: 4.75 | Y7: 42.75 | AC7: 0 | AK7: 42.75 | AL7: 52.25 | AO7: 95
A8: 7 | B8: Aumann, Elfriede | F8: 6 | H8: 4 | I8: 6 | K8: 6 | N8: 6 | W8: 28 | X8: 7 | Y8: 63 | AC8: 0 | AK8: 63 | AL8: 77 | AO8: 140
A9: 8 | W9: 0 | X9: 0 | Y9: 0 | AC9: 0 | AK9: 0 | AL9: 0 | AO9: 0
A10: 9 | B10: Kilzer, Andreas | C10: 5 | F10: 6 | I10: 10 | J10: 5 | K10: 10 | M10: 5 | P10: 4 | W10: 45 | X10: 11.25 | Y10: 101.25 | AC10: 0 | AK10: 101.25 | AL10: 123.75 | AO10: 225
A11: 10 | B11: Rakowski, Sigrid | D11: 6 | E11: 6 | G11: 6 | L11: 2 | M11: 6 | N11: 6 | W11: 32 | X11: 8 | Y11: 72 | AC11: 0 | AK11: 72 | AL11: =W11*2.75 -> 88 | AO11: 160
A12: 11 | W12: 0 | X12: 0 | Y12: 0 | AC12: 0 | AK12: 0 | AL12: 0 | AO12: 0
A13: 12 | B13: Drewes, Andrea | D13: 6 | E13: 6 | G13: 5 | J13: 6 | L13: 4 | M13: 5 | N13: 4 | W13: 36 | X13: 9 | Y13: 81 | AC13: 0 | AK13: 81 | AL13: 99 | AO13: 180
A14: 13 | W14: =SUM(D14:V14) -> 0 | X14: 0 | Y14: 0 | AC14: 0 | AK14: 0 | AL14: 0 | AO14: 0
A15: 14 | B15: Grabbe , Nadja | C15: 5 | F15: 4 | W15: =SUM(C15:V15) -> 9 | X15: 2.25 | Y15: 20.25 | AC15: 0 | AK15: 20.25 | AL15: 24.75 | AO15: 45
A16: 15 | B16: Sassenberg, Julia | F16: 3 | H16: 4 | O16: 4 | W16: 11 | X16: 2.75 | Y16: 24.75 | AC16: 0 | AK16: 24.75 | AL16: 30.25 | AO16: 55
A17: 16 | W17: 0 | X17: 0 | Y17: 0 | AC17: 0 | AK17: 0 | AL17: 0 | AO17: 0
A18: 17 | W18: 0 | X18: 0 | Y18: 0 | AC18: 0 | AK18: 0 | AL18: 0 | AO18: 0
A19: 18 | W19: 0 | X19: 0 | Y19: 0 | AC19: 0 | AK19: 0 | AL19: 0 | AO19: 0
A20: 19 | B20: Blaha, Heinz | F20: 3 | G20: 6 | I20: 9 | K20: 9 | M20: 6 | O20: 4 | W20: 37 | X20: 9.25 | Y20: 83.25 | AC20: 0 | AK20: 83.25 | AL20: 101.75 | AO20: 185
A21: 20 | W21: 0 | X21: 0 | Y21: 0 | AC21: 0 | AK21: 0 | AL21: 0 | AO21: 0
A22: 21 | B22: Weichenhan, Rainer | W22: 0 | X22: 0 | Y22: 0 | AC22: 0 | AK22: 0 | AL22: =W22*2.75 -> 0 | AO22: 0
A23: 22 | B23: Lill, Ulrich | D23: 7 | E23: 7 | F23: 3 | L23: 7 | M23: 4 | N23: 4 | W23: 32 | X23: 8 | Y23: 72 | AC23: 0 | AK23: 72 | AL23: 88 | AO23: 160
A24: 23 | W24: 0 | X24: 0 | Y24: 0 | AC24: 0 | AK24: 0 | AL24: 0 | AO24: 0
A25: 24 | B25: Hübsch, Karl-Heinz | D25: 7 | E25: 7 | H25: 4 | L25: 7 | O25: 5 | W25: 30 | X25: 7.5 | Y25: 67.5 | AC25: 0 | AK25: 67.5 | AL25: 82.5 | AO25: 150
A26: 25 | B26: Feigel-Kipp, Claudia | C26: 6 | G26: 6 | H26: 5 | I26: 7 | J26: 6 | K26: 7 | P26: 5 | W26: 42 | X26: 10.5 | Y26: 94.5 | AC26: 0 | AK26: 94.5 | AL26: 115.5 | AO26: 210
A27: 26 | W27: 0 | X27: 0 | Y27: 0 | AC27: 0 | AK27: 0 | AL27: 0 | AO27: 0
A28: 27 | W28: 0 | X28: 0 | Y28: 0 | AC28: 0 | AK28: 0 | AL28: 0 | AO28: 0
A29: 28 | W29: 0 | X29: 0 | Y29: 0 | AC29: 0 | AK29: 0 | AL29: 0 | AO29: 0
A30: 29 | B30: Scholz, Stella | D30: 8 | E30: 8 | L30: 4 | O30: 5 | W30: 25 | X30: 6.25 | Y30: 56.25 | AC30: 0 | AK30: 56.25 | AL30: 68.75 | AO30: 125
A31: 30 | B31: Hachmeister, Stefan | C31: 6 | G31: 6 | L31: 5 | M31: 5 | P31: 4 | W31: 26 | X31: 6.5 | Y31: 58.5 | AC31: 0 | AK31: 58.5 | AL31: 71.5 | AO31: 130
A32: 31 | W32: 0 | X32: 0 | Y32: 0 | AC32: 0 | AK32: 0 | AL32: 0 | AO32: 0
A33: 32 | W33: 0 | X33: 0 | Y33: 0 | AC33: 0 | AK33: 0 | AL33: 0 | AO33: 0
A34: 33 | W34: 0 | X34: 0 | Y34: 0 | AC34: 0 | AK34: 0 | AL34: 0 | AO34: 0
A35: 34 | W35: 0 | X35: 0 | Y35: 0 | AC35: 0 | AK35: 0 | AL35: 0 | AO35: 0
A36: 35 | W36: 0 | X36: 0 | Y36: 0 | AC36: 0 | AK36: 0 | AL36: 0 | AO36: 0
A37: 36 | B37: Selle, Monika | C37: 6 | G37: 6 | J37: 6 | P37: 4 | W37: 22 | X37: 5.5 | Y37: 49.5 | AC37: 0 | AK37: 49.5 | AL37: 60.5 | AO37: 110
A38: 37 | B38: Sander, Eva-Maria | C38: 6 | F38: 3 | I38: 4 | J38: 6 | K38: 4 | M38: 4 | O38: 4 | W38: 31 | X38: 7.75 | Y38: 69.75 | AC38: 0 | AK38: 69.75 | AL38: 85.25 | AO38: 155
A39: 38 | B39: Sander, Jessica | W39: 0 | X39: 0 | Y39: 0 | AC39: 0 | AK39: 0 | AL39: =W39*2.75 -> 0 | AO39: 0
A40: 39 | B40: Wiese-Schmutzer, Armgard | W40: 0 | X40: 0 | Y40: 0 | AC40: 0 | AK40: 0 | AL40: 0 | AO40: 0
A41: 40 | W41: 0 | X41: 0 | Y41: 0 | AC41: 0 | AK41: 0 | AL41: 0 | AO41: 0
A42: 41 | W42: 0 | X42: 0 | Y42: 0 | AC42: 0 | AK42: 0 | AL42: 0 | AO42: 0
A43: 42 | W43: 0 | X43: 0 | Y43: 0 | AC43: 0 | AK43: 0 | AL43: 0 | AO43: 0
A44: 43 | W44: 0 | X44: 0 | Y44: 0 | AC44: 0 | AK44: 0 | AL44: 0 | AO44: 0
A45: 44 | W45: 0 | X45: 0 | Y45: 0 | AC45: 0 | AK45: 0 | AL45: 0 | AO45: 0
A46: 45 | W46: 0 | X46: 0 | Y46: 0 | AC46: 0 | AK46: 0 | AL46: 0 | AO46: 0
A47: 46 | W47: 0 | X47: 0 | Y47: 0 | AC47: 0 | AK47: 0 | AL47: 0 | AO47: 0
A48: 47 | W48: 0 | X48: 0 | Y48: 0 | AC48: 0 | AK48: 0 | AL48: 0 | AO48: 0
A49: 48 | W49: 0 | X49: 0 | Y49: 0 | AC49: 0 | AK49: 0 | AL49: 0 | AO49: 0
A50: 49 | W50: 0 | X50: 0 | Y50: 0 | AC50: 0 | AK50: 0 | AL50: 0 | AO50: 0
A51: 50 | W51: 0 | X51: 0 | Y51: 0 | AC51: 0 | AK51: 0 | AL51: 0 | AO51: 0
A52: 51 | W52: 0 | X52: 0 | Y52: 0 | AC52: 0 | AK52: 0 | AL52: 0 | AO52: 0
A53: 52 | W53: 0 | X53: 0 | Y53: 0 | AC53: 0 | AK53: 0 | AL53: 0 | AO53: 0
A54: 53 | W54: 0 | X54: 0 | Y54: 0 | AC54: 0 | AK54: 0 | AL54: 0 | AO54: 0
A55: 54 | W55: 0 | X55: 0 | Y55: 0 | AC55: 0 | AK55: 0 | AL55: 0 | AO55: 0
A56: 55 | W56: 0 | X56: 0 | Y56: 0 | AC56: 0 | AK56: 0 | AL56: 0 | AO56: 0
A57: 56 | W57: 0 | X57: 0 | Y57: 0 | AC57: 0 | AK57: 0 | AL57: 0 | AO57: 0
A58: 57 | W58: 0 | X58: 0 | Y58: 0 | AC58: 0 | AK58: 0 | AL58: 0 | AO58: 0
A59: 58 | W59: 0 | X59: 0 | Y59: 0 | AC59: 0 | AK59: 0 | AL59: 0 | AO59: 0
A60: 59 | W60: 0 | X60: 0 | Y60: 0 | AC60: 0 | AK60: 0 | AL60: 0 | AO60: 0
A61: 60 | W61: 0 | X61: 0 | Y61: 0 | AC61: 0 | AK61: 0 | AL61: 0 | AO61: 0
A62: 61 | W62: 0 | X62: 0 | Y62: 0 | AC62: 0 | AK62: 0 | AL62: 0 | AO62: 0
A63: 62 | W63: 0 | X63: 0 | Y63: 0 | AC63: 0 | AK63: 0 | AL63: 0 | AO63: 0
A64: 63 | W64: 0 | X64: 0 | Y64: 0 | AC64: 0 | AK64: 0 | AL64: 0 | AO64: 0
A65: 64 | W65: 0 | X65: 0 | Y65: 0 | AC65: 0 | AK65: 0 | AL65: 0 | AO65: 0
A66: 65 | W66: 0 | X66: 0 | Y66: 0 | AC66: 0 | AK66: 0 | AL66: 0 | AO66: =AK66+AL66+AM66+AN66 -> 0
A67: 66 | W67: 0 | X67: 0 | Y67: =SUM(W67*2.25) -> 0 | AC67: =(Z67+AA67+AB67)*2.25 -> 0 | AK67: 0 | AL67: 0 | AO67: 0
A68: 67 | W68: 0 | X68: 0 | Y68: 0 | AC68: 0 | AK68: 0 | AL68: 0 | AO68: 0
A69: 68 | W69: 0 | X69: 0 | Y69: 0 | AC69: 0 | AK69: =Y69+AC69+AD69+AF69+AG69+AH69+AI69+AJ69+AE69 -> 0 | AL69: 0 | AO69: 0
A70: 69 | W70: 0 | X70: =W70/4 -> 0 | Y70: 0 | AC70: 0 | AK70: 0 | AL70: =W70*2.75 -> 0 | AO70: 0
A71: 70 | W71: 0 | X71: 0 | Y71: 0 | AC71: 0 | AK71: 0 | AL71: 0 | AO71: 0
A72: 71 | W72: 0 | X72: 0 | Y72: 0 | AC72: 0 | AK72: 0 | AL72: 0 | AO72: 0
A73: 72 | W73: 0 | X73: 0 | Y73: 0 | AC73: 0 | AK73: 0 | AL73: 0 | AO73: 0
A74: 73 | W74: 0 | X74: 0 | Y74: 0 | AC74: 0 | AK74: 0 | AL74: 0 | AO74: 0
A75: 74 | W75: 0 | X75: 0 | Y75: 0 | AC75: 0 | AK75: 0 | AL75: 0 | AO75: 0
A76: 75 | W76: 0 | X76: 0 | Y76: 0 | AC76: 0 | AK76: 0 | AL76: 0 | AO76: 0
A77: 76 | W77: 0 | X77: 0 | Y77: 0 | AC77: 0 | AK77: 0 | AL77: 0 | AO77: 0
A78: 77 | W78: 0 | X78: 0 | Y78: 0 | AC78: 0 | AK78: 0 | AL78: 0 | AO78: 0
A79: 78 | W79: =SUM(C79:V79) -> 0 | X79: 0 | Y79: 0 | AC79: 0 | AK79: 0 | AL79: 0 | AO79: 0
A80: 79 | W80: 0 | X80: 0 | Y80: 0 | AC80: 0 | AK80: 0 | AL80: 0 | AO80: 0
A81: 80 | W81: 0 | X81: 0 | Y81: 0 | AC81: 0 | AK81: 0 | AL81: 0 | AO81: 0
A82: 81 | W82: 0 | X82: 0 | Y82: 0 | AC82: 0 | AK82: 0 | AL82: 0 | AO82: 0
A83: 82 | W83: 0 | X83: 0 | Y83: 0 | AC83: 0 | AK83: 0 | AL83: 0 | AO83: 0
A84: 83 | W84: 0 | X84: 0 | Y84: 0 | AC84: 0 | AK84: 0 | AL84: 0 | AO84: 0
A85: 84 | W85: 0 | X85: 0 | Y85: 0 | AC85: 0 | AK85: 0 | AL85: 0 | AO85: 0
A86: 85 | W86: 0 | X86: 0 | Y86: 0 | AC86: 0 | AK86: 0 | AL86: 0 | AO86: 0
A87: 86 | W87: 0 | X87: 0 | Y87: 0 | AC87: 0 | AK87: 0 | AL87: 0 | AO87: 0
A88: 87 | W88: 0 | X88: 0 | Y88: 0 | AC88: 0 | AK88: 0 | AL88: 0 | AO88: 0
A89: 88 | W89: 0 | X89: 0 | Y89: 0 | AC89: 0 | AK89: 0 | AL89: 0 | AO89: 0
A90: 89 | W90: 0 | X90: 0 | Y90: 0 | AC90: 0 | AK90: 0 | AL90: 0 | AO90: 0
A91: 90 | W91: 0 | X91: 0 | Y91: 0 | AC91: 0 | AK91: 0 | AL91: 0 | AO91: 0
A92: 91 | W92: 0 | X92: 0 | Y92: 0 | AC92: 0 | AK92: 0 | AL92: 0 | AO92: 0
A93: 92 | W93: 0 | X93: 0 | Y93: 0 | AC93: 0 | AK93: 0 | AL93: 0 | AO93: 0
A94: 93 | W94: 0 | X94: 0 | Y94: 0 | AC94: 0 | AK94: 0 | AL94: 0 | AO94: 0
A95: 94 | W95: 0 | X95: 0 | Y95: 0 | AC95: 0 | AK95: 0 | AL95: 0 | AO95: 0
A96: 95 | W96: 0 | X96: 0 | Y96: 0 | AC96: 0 | AK96: 0 | AL96: 0 | AO96: 0
A97: 96 | W97: 0 | X97: 0 | Y97: 0 | AC97: 0 | AK97: 0 | AL97: 0 | AO97: 0
A98: 97 | W98: 0 | X98: 0 | Y98: 0 | AC98: 0 | AK98: 0 | AL98: 0 | AO98: 0
A99: 98 | W99: 0 | X99: 0 | Y99: 0 | AC99: 0 | AK99: 0 | AL99: 0 | AO99: 0
A100: 99 | W100: 0 | X100: 0 | Y100: 0 | AC100: 0 | AK100: 0 | AL100: 0 | AO100: 0
A101: 100 | W101: 0 | X101: 0 | Y101: 0 | AC101: 0 | AK101: 0 | AL101: 0 | AO101: 0
A102: 101 | W102: 0 | X102: 0 | Y102: 0 | AC102: 0 | AK102: 0 | AL102: 0 | AO102: 0
A103: 102 | W103: 0 | X103: 0 | Y103: 0 | AC103: 0 | AK103: 0 | AL103: 0 | AO103: 0
A104: 103 | W104: 0 | X104: 0 | Y104: 0 | AC104: 0 | AK104: 0 | AL104: 0 | AO104: 0
A105: 104 | W105: 0 | X105: 0 | Y105: 0 | AC105: 0 | AK105: 0 | AL105: 0 | AO105: 0
A106: 105 | W106: 0 | X106: 0 | Y106: 0 | AC106: 0 | AK106: 0 | AL106: 0 | AO106: 0
A107: 106 | W107: 0 | X107: 0 | Y107: 0 | AC107: 0 | AK107: 0 | AL107: 0 | AO107: 0
A108: 107 | W108: 0 | X108: 0 | Y108: 0 | AC108: 0 | AK108: 0 | AL108: 0 | AO108: 0
A109: 108 | W109: 0 | X109: 0 | Y109: 0 | AC109: 0 | AK109: 0 | AL109: 0 | AO109: 0
A110: 109 | W110: 0 | X110: 0 | Y110: 0 | AC110: 0 | AK110: 0 | AL110: 0 | AO110: 0
A111: 110 | B111: Kruse, Brigitte | C111: 5 | F111: 6 | I111: 1 | J111: 5 | K111: 1 | N111: 4 | W111: 22 | X111: 5.5 | Y111: 49.5 | AC111: 0 | AK111: 49.5 | AL111: 60.5 | AO111: 110
A112: 111 | W112: 0 | X112: 0 | Y112: 0 | AC112: 0 | AK112: 0 | AL112: 0 | AO112: 0
A113: 112 | W113: 0 | X113: 0 | Y113: 0 | AC113: 0 | AK113: 0 | AL113: 0 | AO113: 0
A114: 113 | W114: 0 | X114: 0 | Y114: 0 | AC114: 0 | AK114: 0 | AL114: 0 | AO114: 0
A115: 114 | W115: 0 | X115: 0 | Y115: 0 | AC115: 0 | AK115: 0 | AL115: 0 | AO115: 0
A116: 115 | W116: 0 | X116: 0 | Y116: 0 | AC116: 0 | AK116: 0 | AL116: 0 | AO116: 0
A117: 116 | W117: 0 | X117: 0 | Y117: 0 | AC117: 0 | AK117: 0 | AL117: 0 | AO117: 0
A118: 117 | W118: 0 | X118: 0 | Y118: 0 | AC118: 0 | AK118: 0 | AL118: 0 | AO118: 0
A119: 118 | W119: 0 | X119: 0 | Y119: 0 | AC119: 0 | AK119: 0 | AL119: 0 | AO119: 0
A120: 119 | W120: 0 | X120: 0 | Y120: 0 | AC120: 0 | AK120: 0 | AL120: 0 | AO120: 0
A121: 120 | W121: 0 | X121: 0 | Y121: 0 | AC121: 0 | AK121: 0 | AL121: 0 | AO121: 0
A122: 121 | W122: 0 | X122: 0 | Y122: 0 | AC122: 0 | AK122: 0 | AL122: 0 | AO122: 0
A123: 122 | W123: 0 | X123: 0 | Y123: 0 | AC123: 0 | AK123: 0 | AL123: 0 | AO123: 0
A124: 123 | W124: 0 | X124: 0 | Y124: 0 | AC124: 0 | AK124: 0 | AL124: 0 | AO124: 0
A125: 124 | W125: 0 | X125: 0 | Y125: 0 | AC125: 0 | AK125: 0 | AL125: 0 | AO125: 0
A126: 125 | W126: 0 | X126: 0 | Y126: 0 | AC126: 0 | AK126: 0 | AL126: 0 | AO126: 0
A127: 126 | W127: 0 | X127: 0 | Y127: 0 | AC127: 0 | AK127: 0 | AL127: 0 | AO127: 0
A128: 127 | W128: 0 | X128: 0 | Y128: 0 | AC128: 0 | AK128: 0 | AL128: 0 | AO128: 0
A129: 128 | W129: 0 | X129: 0 | Y129: 0 | AC129: 0 | AK129: 0 | AL129: 0 | AO129: 0
A130: 129 | W130: 0 | X130: 0 | Y130: 0 | AC130: 0 | AK130: 0 | AL130: 0 | AO130: =AK130+AL130+AM130+AN130 -> 0
A131: 130 | W131: 0 | X131: 0 | Y131: =SUM(W131*2.25) -> 0 | AC131: =(Z131+AA131+AB131)*2.25 -> 0 | AK131: 0 | AL131: 0 | AO131: 0
A132: 131 | W132: 0 | X132: 0 | Y132: 0 | AC132: 0 | AK132: 0 | AL132: 0 | AO132: 0
A133: 132 | W133: 0 | X133: 0 | Y133: 0 | AC133: 0 | AK133: =Y133+AC133+AD133+AF133+AG133+AH133+AI133+AJ133+AE133 -> 0 | AL133: 0 | AO133: 0
A134: 133 | W134: 0 | X134: =W134/4 -> 0 | Y134: 0 | AC134: 0 | AK134: 0 | AL134: =W134*2.75 -> 0 | AO134: 0
A135: 134 | W135: 0 | X135: 0 | Y135: 0 | AC135: 0 | AK135: 0 | AL135: 0 | AO135: 0
A136: 135 | W136: 0 | X136: 0 | Y136: 0 | AC136: 0 | AK136: 0 | AL136: 0 | AO136: 0
A137: 136 | W137: 0 | X137: 0 | Y137: 0 | AC137: 0 | AK137: 0 | AL137: 0 | AO137: 0
A138: 137 | W138: 0 | X138: 0 | Y138: 0 | AC138: 0 | AK138: 0 | AL138: 0 | AO138: 0
A139: 138 | W139: 0 | X139: 0 | Y139: 0 | AC139: 0 | AK139: 0 | AL139: 0 | AO139: 0
A140: 139 | W140: 0 | X140: 0 | Y140: 0 | AC140: 0 | AK140: 0 | AL140: 0 | AO140: 0
A141: 140 | W141: 0 | X141: 0 | Y141: 0 | AC141: 0 | AK141: 0 | AL141: 0 | AO141: 0
A142: 141 | W142: 0 | X142: 0 | Y142: 0 | AC142: 0 | AK142: 0 | AL142: 0 | AO142: 0
A143: 142 | W143: =SUM(C143:V143) -> 0 | X143: 0 | Y143: 0 | AC143: 0 | AK143: 0 | AL143: 0 | AO143: 0
A144: 143 | W144: 0 | X144: 0 | Y144: 0 | AC144: 0 | AK144: 0 | AL144: 0 | AO144: 0
A145: 144 | W145: 0 | X145: 0 | Y145: 0 | AC145: 0 | AK145: 0 | AL145: 0 | AO145: 0
A146: 145 | W146: 0 | X146: 0 | Y146: 0 | AC146: 0 | AK146: 0 | AL146: 0 | AO146: 0
A147: 146 | W147: 0 | X147: 0 | Y147: 0 | AC147: 0 | AK147: 0 | AL147: 0 | AO147: 0
A148: 147 | W148: 0 | X148: 0 | Y148: 0 | AC148: 0 | AK148: 0 | AL148: 0 | AO148: 0
A149: 148 | W149: 0 | X149: 0 | Y149: 0 | AC149: 0 | AK149: 0 | AL149: 0 | AO149: 0
A150: 149 | W150: 0 | X150: 0 | Y150: 0 | AC150: 0 | AK150: 0 | AL150: 0 | AO150: 0
A151: 150 | W151: 0 | X151: 0 | Y151: 0 | AC151: 0 | AK151: 0 | AL151: 0 | AO151: 0
A152: 151 | W152: 0 | X152: 0 | Y152: 0 | AC152: 0 | AK152: 0 | AL152: 0 | AO152: 0
A153: 152 | W153: 0 | X153: 0 | Y153: 0 | AC153: 0 | AK153: 0 | AL153: 0 | AO153: 0
A154: 153 | W154: 0 | X154: 0 | Y154: 0 | AC154: 0 | AK154: 0 | AL154: 0 | AO154: 0
A155: 154 | W155: 0 | X155: 0 | Y155: 0 | AC155: 0 | AK155: 0 | AL155: 0 | AO155: 0
A156: 155 | W156: 0 | X156: 0 | Y156: 0 | AC156: 0 | AK156: 0 | AL156: 0 | AO156: 0
A157: 156 | W157: 0 | X157: 0 | Y157: 0 | AC157: 0 | AK157: 0 | AL157: 0 | AO157: 0
A158: 157 | W158: 0 | X158: 0 | Y158: 0 | AC158: 0 | AK158: 0 | AL158: 0 | AO158: 0
A159: 158 | W159: 0 | X159: 0 | Y159: 0 | AC159: 0 | AK159: 0 | AL159: 0 | AO159: 0
A160: 159 | W160: 0 | X160: 0 | Y160: 0 | AC160: 0 | AK160: 0 | AL160: 0 | AO160: 0
A161: 160 | W161: 0 | X161: 0 | Y161: 0 | AC161: 0 | AK161: 0 | AL161: 0 | AO161: 0
A162: 161 | W162: 0 | X162: 0 | Y162: 0 | AC162: 0 | AK162: 0 | AL162: 0 | AO162: 0
A163: 162 | W163: 0 | X163: 0 | Y163: 0 | AC163: 0 | AK163: 0 | AL163: 0 | AO163: 0
A164: 163 | W164: 0 | X164: 0 | Y164: 0 | AC164: 0 | AK164: 0 | AL164: 0 | AO164: 0
A165: 164 | W165: 0 | X165: 0 | Y165: 0 | AC165: 0 | AK165: 0 | AL165: 0 | AO165: 0
A166: 165 | W166: 0 | X166: 0 | Y166: 0 | AC166: 0 | AK166: 0 | AL166: 0 | AO166: 0
A167: 166 | W167: 0 | X167: 0 | Y167: 0 | AC167: 0 | AK167: 0 | AL167: 0 | AO167: 0
A168: 167 | W168: 0 | X168: 0 | Y168: 0 | AC168: 0 | AK168: 0 | AL168: 0 | AO168: 0
A169: 168 | W169: 0 | X169: 0 | Y169: 0 | AC169: 0 | AK169: 0 | AL169: 0 | AO169: 0
A170: 169 | W170: 0 | X170: 0 | Y170: 0 | AC170: 0 | AK170: 0 | AL170: 0 | AO170: 0
A171: 170 | W171: 0 | X171: 0 | Y171: 0 | AC171: 0 | AK171: 0 | AL171: 0 | AO171: 0
A172: 171 | W172: 0 | X172: 0 | Y172: 0 | AC172: 0 | AK172: 0 | AL172: 0 | AO172: 0
A173: 172 | W173: 0 | X173: 0 | Y173: 0 | AC173: 0 | AK173: 0 | AL173: 0 | AO173: 0
A174: 173 | W174: 0 | X174: 0 | Y174: 0 | AC174: 0 | AK174: 0 | AL174: 0 | AO174: 0
A175: 174 | W175: 0 | X175: 0 | Y175: 0 | AC175: 0 | AK175: 0 | AL175: 0 | AO175: 0
A176: 175 | W176: 0 | X176: 0 | Y176: 0 | AC176: 0 | AK176: 0 | AL176: 0 | AO176: 0
A177: 176 | W177: 0 | X177: 0 | Y177: 0 | AC177: 0 | AK177: 0 | AL177: 0 | AO177: 0
A178: 177 | W178: 0 | X178: 0 | Y178: 0 | AC178: 0 | AK178: 0 | AL178: 0 | AO178: 0
A179: 178 | W179: 0 | X179: 0 | Y179: 0 | AC179: 0 | AK179: 0 | AL179: 0 | AO179: 0
A180: 179 | W180: 0 | X180: 0 | Y180: 0 | AC180: 0 | AK180: 0 | AL180: 0 | AO180: 0
A181: 180 | W181: 0 | X181: 0 | Y181: 0 | AC181: 0 | AK181: 0 | AL181: 0 | AO181: 0
A182: 181 | W182: 0 | X182: 0 | Y182: 0 | AC182: 0 | AK182: 0 | AL182: 0 | AO182: 0
A183: 182 | W183: 0 | X183: 0 | Y183: 0 | AC183: 0 | AK183: 0 | AL183: 0 | AO183: 0
A184: 183 | W184: 0 | X184: 0 | Y184: 0 | AC184: 0 | AK184: 0 | AL184: 0 | AO184: 0
A185: 184 | W185: 0 | X185: 0 | Y185: 0 | AC185: 0 | AK185: 0 | AL185: 0 | AO185: 0
A186: 185 | W186: 0 | X186: 0 | Y186: 0 | AC186: 0 | AK186: 0 | AL186: 0 | AO186: 0
A187: 186 | W187: 0 | X187: 0 | Y187: 0 | AC187: 0 | AK187: 0 | AL187: 0 | AO187: 0
A188: 187 | W188: 0 | X188: 0 | Y188: 0 | AC188: 0 | AK188: 0 | AL188: 0 | AO188: 0
A189: 188 | W189: 0 | X189: 0 | Y189: 0 | AC189: 0 | AK189: 0 | AL189: 0 | AO189: 0
A190: 189 | W190: 0 | X190: 0 | Y190: 0 | AC190: 0 | AK190: 0 | AL190: 0 | AO190: 0
A191: 190 | W191: 0 | X191: 0 | Y191: 0 | AC191: 0 | AK191: 0 | AL191: 0 | AO191: 0
A192: 191 | W192: 0 | X192: 0 | Y192: 0 | AC192: 0 | AK192: 0 | AL192: 0 | AO192: 0
A193: 192 | W193: 0 | X193: 0 | Y193: 0 | AC193: 0 | AK193: 0 | AL193: 0 | AO193: 0
A194: 193 | W194: 0 | X194: 0 | Y194: 0 | AC194: 0 | AK194: 0 | AL194: 0 | AO194: =AK194+AL194+AM194+AN194 -> 0
A195: 194 | W195: 0 | X195: 0 | Y195: =SUM(W195*2.25) -> 0 | AC195: =(Z195+AA195+AB195)*2.25 -> 0 | AK195: 0 | AL195: 0 | AO195: 0
A196: 195 | W196: 0 | X196: 0 | Y196: 0 | AC196: 0 | AK196: 0 | AL196: 0 | AO196: 0
A197: 196 | W197: 0 | X197: 0 | Y197: 0 | AC197: 0 | AK197: =Y197+AC197+AD197+AF197+AG197+AH197+AI197+AJ197+AE197 -> 0 | AL197: 0 | AO197: 0
A198: 197 | W198: 0 | X198: =W198/4 -> 0 | Y198: 0 | AC198: 0 | AK198: 0 | AL198: =W198*2.75 -> 0 | AO198: 0
A199: 198 | W199: 0 | X199: 0 | Y199: 0 | AC199: 0 | AK199: 0 | AL199: 0 | AO199: 0
A200: 199 | W200: 0 | X200: 0 | Y200: 0 | AC200: 0 | AK200: 0 | AL200: 0 | AO200: 0
... 107 more rows

Sheet 01-Abrechnung
A1: QuittungNR | B1: 7
A8: Mitarbeiter Nr.: | D8: MONATSABRECHNUNG | G8: Januar | H8: 2017
G10: Abrechnungszeitraum: 21.12 - 20.01
A13: =INDEX([1]!Datenbank2,$B$1,2)&" "&INDEX([1]!Datenbank2,$B$1,3) -> Anja Rohlfing | B13: Andreas Kilzer | C13: Andreas Kilzer | D13: Andreas Kilzer
A14: =INDEX([1]!Datenbank2,$B$1,4) -> Elbeweg 7 | B14: Hasenkamp 78 | C14: Hasenkamp 78 | D14: Hasenkamp 78
A15: =INDEX([1]!Datenbank2,$B$1,5)&" "&INDEX([1]!Datenbank2,$B$1,6) -> 32425 Minden
A19: Allgemeine Tests:
C20: TEST NR & DATUM | D20: FB | E20: Entgelt in EURO € | G20: Erläuterungen zu
C21: =Januar!$C$1 -> 05701 | D21: =INDEX([0]!januar,$B$1,3) -> 3 | E21: =D21*2.25 -> 6.75 | G21: Spezialtests:
C22: =Januar!$D$1 -> 05702 | D22: =INDEX([0]!januar,$B$1,4) -> 0 | E22: =D22*2.25 -> 0 | G22: =IF(Januar!$AE$1=0,"",Januar!AE$1) ->  | H22: =INDEX([0]!januar,$B$1,30) -> 0
C23: =Januar!$E$1 -> 05707 | D23: =INDEX([0]!januar,$B$1,5) -> 0 | E23: 0 | G23: =IF(Januar!$AF$1=0,"",Januar!AF$1) ->  | H23: =INDEX([0]!januar,$B$1,31) -> 0
C24: =Januar!$F$1 -> 05708 | D24: =INDEX([0]!januar,$B$1,6) -> 4 | E24: 9 | G24: =IF(Januar!$AG$1=0,"",Januar!AG$1) ->  | H24: =INDEX([0]!januar,$B$1,32) -> 0
C25: =Januar!$G1 -> 05709 | D25: =INDEX([0]!januar,$B$1,7) -> 0 | E25: 0 | G25: =IF(Januar!$AH$1=0,"",Januar!AH$1) ->  | H25: =INDEX([0]!januar,$B$1,33) -> 0
C26: =Januar!$H$1 -> 03134 | D26: =INDEX([0]!januar,$B$1,8) -> 4 | E26: 9 | H26: =INDEX([0]!januar,$B$1,34) -> 0
C27: =Januar!$I$1 -> 05710 | D27: =INDEX([0]!januar,$B$1,9) -> 1 | E27: 2.25
C28: =Januar!$J$1 -> 05711 | D28: =INDEX([0]!januar,$B$1,10) -> 3 | E28: 6.75 | G28: Gesamt | H28: =SUM(H22:H27) -> 0
C29: =Januar!$K$1 -> 05712 | D29: =INDEX([0]!januar,$B$1,11) -> 1 | E29: 2.25
C30: =Januar!$L$1 -> 05713 | D30: =INDEX([0]!januar,$B$1,12) -> 0 | E30: 0
C31: =Januar!$M$1 -> 05714 | D31: =INDEX([0]!januar,$B$1,13) -> 0 | E31: 0
C32: =Januar!$N$1 -> 05715 | D32: =INDEX([0]!januar,$B$1,14) -> 3 | E32: 6.75
C33: =Januar!$O$1 -> 03136 | D33: =INDEX([0]!januar,$B$1,15) -> 0 | E33: 0
C34: =Januar!$P$1 -> 03137 | D34: =INDEX([0]!januar,$B$1,16) -> 0 | E34: 0
C35: =Januar!$Q$1 -> 0 | D35: =INDEX([0]!januar,$B$1,17) -> 0 | E35: 0
C36: =Januar!$R$1 -> 0 | D36: =INDEX([0]!januar,$B$1,18) -> 0 | E36: 0
C37: =Januar!$S$1 -> 0 | D37: =INDEX([0]!januar,$B$1,19) -> 0 | E37: 0
C38: =Januar!$T$1 -> 0 | D38: =INDEX([0]!januar,$B$1,20) -> 0 | E38: 0
C39: =Januar!$U$1 -> 0 | D39: =INDEX([0]!januar,$B$1,21) -> 0 | E39: 0
C40: =Januar!$V$1 -> 0 | D40: =INDEX([0]!januar,$B$1,22) -> 0 | E40: 0
B41: SUMME | D41: =SUM(D21:D40) -> 19 | E41: =SUM(E21:E40) -> 42.75 | G41: Stück-Stunden (FB) | H41: =INDEX([0]!januar,$B$1,24) -> 4.75
A43: Zusätze: | B43: Bezeichung
B44: =Januar!$AC$1 -> Summe BIM in EURO | E44: =INDEX([0]!januar,$B$1,28) -> 0
B45: =Januar!$AD$1 -> Stamm daten | E45: =INDEX([0]!januar,$B$1,29) -> 0
B46: Summe Spezialtest | E46: =H28 -> 0
B47: Fahrer / Std. | C47: Std. | E47: =INDEX([0]!januar,$B$1,36) -> 0
B48: GESAMT NETTO | E48: =SUM(E41:E47) -> 42.75
C49: Kilometergeld | E49: =INDEX([0]!januar,$B$1,38) -> 52.25
C50: Porto/Telefon/Fax
C51: Sonstige Extra | G51: Bemerkungen:
C52: + 25% Pauschale | E52: =INDEX([0]!januar,$B$1,39) -> 0
B53: GESAMT in € | E53: =E48+E49+E50+E51+E52 -> 95 | G53: FB = Anzahl der Fragebogen
A56: Der Betrag wird bis zum 10. des folgenden Monats überwiesen.
A63: Betrag erhalten
A64: Minden, 10. Februar 2015
E65: (Unterschrift)
A76: Prorata Marktforschung GmbH • Marienglacis 37 • 32427 Minden • tel 0571.82875.0 fax • 0571.82875.99 • www.prorata.de • info@prorata.de

Sheet Februar
B1: Testnummer / Testerin | C1: 05710,05711,05712,05715 | V1: Anz. | W1: Std. | X1: Summe in EURO | AB1: Summe BIM in EURO | AC1: Stammdaten | AI1: Fahrer-Std. /Entgelt | AJ1: Gesamt NETTO* in EURO | AK1: km x XXeurocent | AM1: Pauschale 25% | AO1: Gesamt in EURO
A2: 1 | V2: =SUM(C2:U2) -> 0 | X2: =SUM(V2*2.25) -> 0 | AB2: =(Y2+Z2+AA2)*2.25 -> 0 | AJ2: =X2+AB2+AC2+AE2+AF2+AG2+AH2+AI2+AD2 -> 0 | AN2: =AJ2+AK2+AL2+AM2 -> 0
A3: 2 | B3: Gundlach, Doris | V3: 0 | X3: 0 | AB3: =(Y3+Z3+AA3)*2.25 -> 0 | AJ3: 0 | AK3: =V3*2.75 -> 0 | AN3: 0
A4: 3 | V4: 0 | X4: 0 | AB4: 0 | AJ4: 0 | AK4: =V4*2.75 -> 0 | AN4: 0
A5: 4 | B5: Korte, Inge | V5: =SUM(C5:U5) -> 0 | W5: =V5/4 -> 0 | X5: 0 | AB5: 0 | AJ5: 0 | AK5: 0 | AO5: =SUM(AJ5:AN5) -> 0
A6: 5 | B6: Tölkemeier, Petra | V6: =SUM(C6:U6) -> 0 | W6: =V6/4 -> 0 | X6: 0 | AB6: 0 | AJ6: 0 | AK6: 0 | AO6: =SUM(AJ6:AN6) -> 0
A7: 6 | B7: Rohlfing, Anja | V7: 0 | W7: 0 | X7: 0 | AB7: 0 | AJ7: 0 | AK7: 0 | AO7: 0
A8: 7 | B8: Aumann, Elfriede | V8: 0 | W8: 0 | X8: 0 | AB8: 0 | AJ8: 0 | AK8: 0 | AO8: 0
A9: 8 | V9: 0 | W9: 0 | X9: 0 | AB9: 0 | AJ9: 0 | AK9: 0 | AO9: 0
A10: 9 | B10: Kilzer, Andreas | V10: 0 | W10: 0 | X10: 0 | AB10: 0 | AJ10: 0 | AK10: 0 | AO10: 0
A11: 10 | B11: Rakowski, Sigrid | V11: 0 | W11: 0 | X11: 0 | AB11: 0 | AJ11: 0 | AK11: =V11*2.75 -> 0 | AO11: 0
A12: 11 | V12: 0 | W12: 0 | X12: 0 | AB12: 0 | AJ12: 0 | AK12: 0 | AO12: 0
A13: 12 | B13: Drewes, Andrea | V13: 0 | W13: 0 | X13: 0 | AB13: 0 | AJ13: 0 | AK13: 0 | AO13: 0
A14: 13 | V14: 0 | W14: 0 | X14: 0 | AB14: 0 | AJ14: 0 | AK14: 0 | AO14: 0
A15: 14 | B15: Grabbe , Nadja | C15: =3+5+3+7 -> 18 | V15: 18 | W15: 4.5 | X15: 40.5 | AB15: 0 | AJ15: 40.5 | AK15: 49.5 | AO15: 90
A16: 15 | B16: Sassenberg, Julia | V16: 0 | W16: 0 | X16: 0 | AB16: 0 | AJ16: 0 | AK16: 0 | AO16: 0
A17: 16 | V17: 0 | W17: 0 | X17: 0 | AB17: 0 | AJ17: 0 | AK17: 0 | AO17: 0
A18: 17 | V18: 0 | W18: 0 | X18: 0 | AB18: 0 | AJ18: 0 | AK18: 0 | AO18: 0
A19: 18 | V19: 0 | W19: 0 | X19: 0 | AB19: 0 | AJ19: 0 | AK19: 0 | AO19: 0
A20: 19 | B20: Blaha, Heinz | V20: 0 | W20: 0 | X20: 0 | AB20: 0 | AJ20: 0 | AK20: 0 | AO20: 0
A21: 20 | V21: 0 | W21: =V21/4 -> 0 | X21: =SUM(V21*2.25) -> 0 | AB21: 0 | AJ21: 0 | AK21: 0 | AO21: 0
A22: 21 | B22: Weichenhan, Rainer | V22: 0 | W22: 0 | X22: 0 | AB22: 0 | AJ22: 0 | AK22: =V22*2.75 -> 0 | AO22: 0
A23: 22 | B23: Lill, Ulrich | V23: 0 | W23: 0 | X23: 0 | AB23: 0 | AJ23: 0 | AK23: 0 | AO23: 0
A24: 23 | V24: 0 | W24: 0 | X24: 0 | AB24: 0 | AJ24: 0 | AK24: 0 | AO24: 0
A25: 24 | B25: Hübsch, Karl-Heinz | V25: 0 | W25: 0 | X25: 0 | AB25: 0 | AJ25: 0 | AK25: 0 | AO25: 0
A26: 25 | B26: Feigel-Kipp, Claudia | V26: 0 | W26: 0 | X26: 0 | AB26: 0 | AJ26: 0 | AK26: 0 | AO26: 0
A27: 26 | V27: 0 | W27: 0 | X27: 0 | AB27: 0 | AJ27: 0 | AK27: 0 | AO27: 0
A28: 27 | V28: 0 | W28: 0 | X28: 0 | AB28: 0 | AJ28: 0 | AK28: 0 | AO28: 0
A29: 28 | B29: Lüttgert, David | V29: 0 | W29: 0 | X29: 0 | AB29: 0 | AJ29: 0 | AK29: 0 | AO29: 0
A30: 29 | B30: Scholz, Stella | V30: 0 | W30: 0 | X30: 0 | AB30: 0 | AJ30: 0 | AK30: 0 | AO30: 0
A31: 30 | B31: Hachmeister, Stefan | V31: 0 | W31: 0 | X31: 0 | AB31: 0 | AJ31: 0 | AK31: 0 | AO31: 0
A32: 31 | V32: 0 | W32: 0 | X32: 0 | AB32: 0 | AJ32: 0 | AK32: 0 | AO32: 0
A33: 32 | V33: 0 | W33: 0 | X33: 0 | AB33: 0 | AJ33: 0 | AK33: 0 | AO33: 0
A34: 33 | V34: 0 | W34: 0 | X34: 0 | AB34: 0 | AJ34: 0 | AK34: 0 | AO34: 0
A35: 34 | V35: 0 | W35: 0 | X35: 0 | AB35: 0 | AJ35: 0 | AK35: 0 | AO35: 0
A36: 35 | V36: 0 | W36: 0 | X36: 0 | AB36: 0 | AJ36: 0 | AK36: 0 | AO36: 0
A37: 36 | B37: Selle, Monika | V37: 0 | W37: 0 | X37: 0 | AB37: 0 | AJ37: 0 | AK37: 0 | AO37: 0
A38: 37 | B38: Sander, Eva-Maria | V38: 0 | W38: 0 | X38: 0 | AB38: 0 | AJ38: 0 | AK38: 0 | AO38: 0
A39: 38 | B39: Sander, Jessica | V39: 0 | W39: 0 | X39: 0 | AB39: 0 | AJ39: 0 | AK39: =V39*2.75 -> 0 | AO39: 0
A40: 39 | B40: Wiese-Schmutzer, Armgard | V40: 0 | W40: 0 | X40: 0 | AB40: 0 | AJ40: 0 | AK40: 0 | AO40: 0
A41: 40 | V41: 0 | W41: 0 | X41: 0 | AB41: 0 | AJ41: 0 | AK41: 0 | AO41: 0
A42: 41 | V42: 0 | W42: 0 | X42: 0 | AB42: 0 | AJ42: 0 | AK42: 0 | AO42: 0
A43: 42 | V43: 0 | W43: 0 | X43: 0 | AB43: 0 | AJ43: 0 | AK43: 0 | AO43: 0
A44: 43 | V44: 0 | W44: 0 | X44: 0 | AB44: 0 | AJ44: 0 | AK44: 0 | AO44: 0
A45: 44 | V45: 0 | W45: 0 | X45: 0 | AB45: 0 | AJ45: 0 | AK45: 0 | AO45: 0
A46: 45 | V46: 0 | W46: 0 | X46: 0 | AB46: 0 | AJ46: 0 | AK46: 0 | AO46: 0
A47: 46 | V47: 0 | W47: 0 | X47: 0 | AB47: 0 | AJ47: 0 | AK47: 0 | AO47: 0
A48: 47 | V48: 0 | W48: 0 | X48: 0 | AB48: 0 | AJ48: 0 | AK48: 0 | AO48: 0
A49: 48 | V49: 0 | W49: 0 | X49: 0 | AB49: 0 | AJ49: 0 | AK49: 0 | AO49: 0
A50: 49 | V50: 0 | W50: 0 | X50: 0 | AB50: 0 | AJ50: 0 | AK50: 0 | AO50: 0
A51: 50 | V51: 0 | W51: 0 | X51: 0 | AB51: 0 | AJ51: 0 | AK51: 0 | AO51: 0
A52: 51 | V52: 0 | W52: 0 | X52: 0 | AB52: 0 | AJ52: 0 | AK52: 0 | AO52: 0
A53: 52 | V53: 0 | W53: 0 | X53: 0 | AB53: 0 | AJ53: 0 | AK53: 0 | AO53: 0
A54: 53 | V54: 0 | W54: 0 | X54: 0 | AB54: 0 | AJ54: 0 | AK54: 0 | AO54: 0
A55: 54 | V55: 0 | W55: 0 | X55: 0 | AB55: 0 | AJ55: 0 | AK55: 0 | AO55: 0
A56: 55 | V56: 0 | W56: 0 | X56: 0 | AB56: 0 | AJ56: 0 | AK56: 0 | AO56: 0
A57: 56 | V57: 0 | W57: 0 | X57: 0 | AB57: 0 | AJ57: 0 | AK57: 0 | AO57: 0
A58: 57 | V58: 0 | W58: 0 | X58: 0 | AB58: 0 | AJ58: 0 | AK58: 0 | AO58: 0
A59: 58 | V59: 0 | W59: 0 | X59: 0 | AB59: 0 | AJ59: 0 | AK59: 0 | AO59: 0
A60: 59 | V60: 0 | W60: 0 | X60: 0 | AB60: 0 | AJ60: 0 | AK60: 0 | AO60: 0
A61: 60 | V61: 0 | W61: 0 | X61: 0 | AB61: 0 | AJ61: 0 | AK61: 0 | AO61: 0
A62: 61 | V62: 0 | W62: 0 | X62: 0 | AB62: 0 | AJ62: 0 | AK62: 0 | AO62: 0
A63: 62 | V63: 0 | W63: 0 | X63: 0 | AB63: 0 | AJ63: 0 | AK63: 0 | AO63: 0
A64: 63 | V64: 0 | W64: 0 | X64: 0 | AB64: 0 | AJ64: 0 | AK64: 0 | AO64: 0
A65: 64 | V65: 0 | W65: 0 | X65: 0 | AB65: 0 | AJ65: 0 | AK65: 0 | AO65: 0
A66: 65 | V66: 0 | W66: 0 | X66: =SUM(V66*2.25) -> 0 | AB66: 0 | AJ66: =X66+AB66+AC66+AE66+AF66+AG66+AH66+AI66+AD66 -> 0 | AK66: 0 | AO66: 0
A67: 66 | V67: 0 | W67: 0 | X67: 0 | AB67: =(Y67+Z67+AA67)*2.25 -> 0 | AJ67: 0 | AK67: 0 | AO67: 0
A68: 67 | V68: 0 | W68: 0 | X68: 0 | AB68: 0 | AJ68: 0 | AK68: =V68*2.75 -> 0 | AO68: 0
A69: 68 | V69: 0 | W69: 0 | X69: 0 | AB69: 0 | AJ69: 0 | AK69: 0 | AO69: 0
A70: 69 | V70: =SUM(C70:U70) -> 0 | W70: =V70/4 -> 0 | X70: 0 | AB70: 0 | AJ70: 0 | AK70: 0 | AO70: =SUM(AJ70:AN70) -> 0
A71: 70 | V71: 0 | W71: 0 | X71: 0 | AB71: 0 | AJ71: 0 | AK71: 0 | AO71: 0
A72: 71 | V72: 0 | W72: 0 | X72: 0 | AB72: 0 | AJ72: 0 | AK72: 0 | AO72: 0
A73: 72 | V73: 0 | W73: 0 | X73: 0 | AB73: 0 | AJ73: 0 | AK73: 0 | AO73: 0
A74: 73 | V74: 0 | W74: 0 | X74: 0 | AB74: 0 | AJ74: 0 | AK74: 0 | AO74: 0
A75: 74 | V75: 0 | W75: 0 | X75: 0 | AB75: 0 | AJ75: 0 | AK75: 0 | AO75: 0
A76: 75 | V76: 0 | W76: 0 | X76: 0 | AB76: 0 | AJ76: 0 | AK76: 0 | AO76: 0
A77: 76 | V77: 0 | W77: 0 | X77: 0 | AB77: 0 | AJ77: 0 | AK77: 0 | AO77: 0
A78: 77 | V78: 0 | W78: 0 | X78: 0 | AB78: 0 | AJ78: 0 | AK78: 0 | AO78: 0
A79: 78 | V79: 0 | W79: 0 | X79: 0 | AB79: 0 | AJ79: 0 | AK79: 0 | AO79: 0
A80: 79 | V80: 0 | W80: 0 | X80: 0 | AB80: 0 | AJ80: 0 | AK80: 0 | AO80: 0
A81: 80 | V81: 0 | W81: 0 | X81: 0 | AB81: 0 | AJ81: 0 | AK81: 0 | AO81: 0
A82: 81 | V82: 0 | W82: 0 | X82: 0 | AB82: 0 | AJ82: 0 | AK82: 0 | AO82: 0
A83: 82 | V83: 0 | W83: 0 | X83: 0 | AB83: 0 | AJ83: 0 | AK83: 0 | AO83: 0
A84: 83 | V84: 0 | W84: 0 | X84: 0 | AB84: 0 | AJ84: 0 | AK84: 0 | AO84: 0
A85: 84 | V85: 0 | W85: 0 | X85: 0 | AB85: 0 | AJ85: 0 | AK85: 0 | AO85: 0
A86: 85 | V86: 0 | W86: 0 | X86: 0 | AB86: 0 | AJ86: 0 | AK86: 0 | AO86: 0
A87: 86 | V87: 0 | W87: 0 | X87: 0 | AB87: 0 | AJ87: 0 | AK87: 0 | AO87: 0
A88: 87 | V88: 0 | W88: 0 | X88: 0 | AB88: 0 | AJ88: 0 | AK88: 0 | AO88: 0
A89: 88 | V89: 0 | W89: 0 | X89: 0 | AB89: 0 | AJ89: 0 | AK89: 0 | AO89: 0
A90: 89 | V90: 0 | W90: 0 | X90: 0 | AB90: 0 | AJ90: 0 | AK90: 0 | AO90: 0
A91: 90 | V91: 0 | W91: 0 | X91: 0 | AB91: 0 | AJ91: 0 | AK91: 0 | AO91: 0
A92: 91 | V92: 0 | W92: 0 | X92: 0 | AB92: 0 | AJ92: 0 | AK92: 0 | AO92: 0
A93: 92 | V93: 0 | W93: 0 | X93: 0 | AB93: 0 | AJ93: 0 | AK93: 0 | AO93: 0
A94: 93 | V94: 0 | W94: 0 | X94: 0 | AB94: 0 | AJ94: 0 | AK94: 0 | AO94: 0
A95: 94 | V95: 0 | W95: 0 | X95: 0 | AB95: 0 | AJ95: 0 | AK95: 0 | AO95: 0
A96: 95 | V96: 0 | W96: 0 | X96: 0 | AB96: 0 | AJ96: 0 | AK96: 0 | AO96: 0
A97: 96 | V97: 0 | W97: 0 | X97: 0 | AB97: 0 | AJ97: 0 | AK97: 0 | AO97: 0
A98: 97 | V98: 0 | W98: 0 | X98: 0 | AB98: 0 | AJ98: 0 | AK98: 0 | AO98: 0
A99: 98 | V99: 0 | W99: 0 | X99: 0 | AB99: 0 | AJ99: 0 | AK99: 0 | AO99: 0
A100: 99 | V100: 0 | W100: 0 | X100: 0 | AB100: 0 | AJ100: 0 | AK100: 0 | AO100: 0
A101: 100 | V101: 0 | W101: 0 | X101: 0 | AB101: 0 | AJ101: 0 | AK101: 0 | AO101: 0
A102: 101 | V102: 0 | W102: 0 | X102: 0 | AB102: 0 | AJ102: 0 | AK102: 0 | AO102: 0
A103: 102 | V103: 0 | W103: 0 | X103: 0 | AB103: 0 | AJ103: 0 | AK103: 0 | AO103: 0
A104: 103 | V104: 0 | W104: 0 | X104: 0 | AB104: 0 | AJ104: 0 | AK104: 0 | AO104: 0
A105: 104 | V105: 0 | W105: 0 | X105: 0 | AB105: 0 | AJ105: 0 | AK105: 0 | AO105: 0
A106: 105 | V106: 0 | W106: 0 | X106: 0 | AB106: 0 | AJ106: 0 | AK106: 0 | AO106: 0
A107: 106 | V107: 0 | W107: 0 | X107: 0 | AB107: 0 | AJ107: 0 | AK107: 0 | AO107: 0
A108: 107 | V108: 0 | W108: 0 | X108: 0 | AB108: 0 | AJ108: 0 | AK108: 0 | AO108: 0
A109: 108 | V109: 0 | W109: 0 | X109: 0 | AB109: 0 | AJ109: 0 | AK109: 0 | AO109: 0
A110: 109 | V110: 0 | W110: 0 | X110: 0 | AB110: 0 | AJ110: 0 | AK110: 0 | AO110: 0
A111: 110 | B111: Kruse, Brigitte | V111: 0 | W111: 0 | X111: 0 | AB111: 0 | AJ111: 0 | AK111: 0 | AO111: 0
A112: 111 | V112: 0 | W112: 0 | X112: 0 | AB112: 0 | AJ112: 0 | AK112: 0 | AO112: 0
A113: 112 | V113: 0 | W113: 0 | X113: 0 | AB113: 0 | AJ113: 0 | AK113: 0 | AO113: 0
A114: 113 | V114: 0 | W114: 0 | X114: 0 | AB114: 0 | AJ114: 0 | AK114: 0 | AO114: 0
A115: 114 | V115: 0 | W115: 0 | X115: 0 | AB115: 0 | AJ115: 0 | AK115: 0 | AO115: 0
A116: 115 | V116: 0 | W116: 0 | X116: 0 | AB116: 0 | AJ116: 0 | AK116: 0 | AO116: 0
A117: 116 | V117: 0 | W117: 0 | X117: 0 | AB117: 0 | AJ117: 0 | AK117: 0 | AO117: 0
A118: 117 | V118: 0 | W118: 0 | X118: 0 | AB118: 0 | AJ118: 0 | AK118: 0 | AO118: 0
A119: 118 | V119: 0 | W119: 0 | X119: 0 | AB119: 0 | AJ119: 0 | AK119: 0 | AO119: 0
A120: 119 | V120: 0 | W120: 0 | X120: 0 | AB120: 0 | AJ120: 0 | AK120: 0 | AO120: 0
A121: 120 | V121: 0 | W121: 0 | X121: 0 | AB121: 0 | AJ121: 0 | AK121: 0 | AO121: 0
A122: 121 | V122: 0 | W122: 0 | X122: 0 | AB122: 0 | AJ122: 0 | AK122: 0 | AO122: 0
A123: 122 | V123: 0 | W123: 0 | X123: 0 | AB123: 0 | AJ123: 0 | AK123: 0 | AO123: 0
A124: 123 | V124: 0 | W124: 0 | X124: 0 | AB124: 0 | AJ124: 0 | AK124: 0 | AO124: 0
A125: 124 | V125: 0 | W125: 0 | X125: 0 | AB125: 0 | AJ125: 0 | AK125: 0 | AO125: 0
A126: 125 | V126: 0 | W126: 0 | X126: 0 | AB126: 0 | AJ126: 0 | AK126: 0 | AO126: 0
A127: 126 | V127: 0 | W127: 0 | X127: 0 | AB127: 0 | AJ127: 0 | AK127: 0 | AO127: 0
A128: 127 | V128: 0 | W128: 0 | X128: 0 | AB128: 0 | AJ128: 0 | AK128: 0 | AO128: 0
A129: 128 | V129: 0 | W129: 0 | X129: 0 | AB129: 0 | AJ129: 0 | AK129: 0 | AO129: 0
A130: 129 | V130: 0 | W130: 0 | X130: =SUM(V130*2.25) -> 0 | AB130: 0 | AJ130: =X130+AB130+AC130+AE130+AF130+AG130+AH130+AI130+AD130 -> 0 | AK130: 0 | AO130: 0
A131: 130 | V131: 0 | W131: 0 | X131: 0 | AB131: =(Y131+Z131+AA131)*2.25 -> 0 | AJ131: 0 | AK131: 0 | AO131: 0
A132: 131 | V132: 0 | W132: 0 | X132: 0 | AB132: 0 | AJ132: 0 | AK132: =V132*2.75 -> 0 | AO132: 0
A133: 132 | V133: 0 | W133: 0 | X133: 0 | AB133: 0 | AJ133: 0 | AK133: 0 | AO133: 0
A134: 133 | V134: =SUM(C134:U134) -> 0 | W134: =V134/4 -> 0 | X134: 0 | AB134: 0 | AJ134: 0 | AK134: 0 | AO134: =SUM(AJ134:AN134) -> 0
A135: 134 | V135: 0 | W135: 0 | X135: 0 | AB135: 0 | AJ135: 0 | AK135: 0 | AO135: 0
A136: 135 | V136: 0 | W136: 0 | X136: 0 | AB136: 0 | AJ136: 0 | AK136: 0 | AO136: 0
A137: 136 | V137: 0 | W137: 0 | X137: 0 | AB137: 0 | AJ137: 0 | AK137: 0 | AO137: 0
A138: 137 | V138: 0 | W138: 0 | X138: 0 | AB138: 0 | AJ138: 0 | AK138: 0 | AO138: 0
A139: 138 | V139: 0 | W139: 0 | X139: 0 | AB139: 0 | AJ139: 0 | AK139: 0 | AO139: 0
A140: 139 | V140: 0 | W140: 0 | X140: 0 | AB140: 0 | AJ140: 0 | AK140: 0 | AO140: 0
A141: 140 | V141: 0 | W141: 0 | X141: 0 | AB141: 0 | AJ141: 0 | AK141: 0 | AO141: 0
A142: 141 | V142: 0 | W142: 0 | X142: 0 | AB142: 0 | AJ142: 0 | AK142: 0 | AO142: 0
A143: 142 | V143: 0 | W143: 0 | X143: 0 | AB143: 0 | AJ143: 0 | AK143: 0 | AO143: 0
A144: 143 | V144: 0 | W144: 0 | X144: 0 | AB144: 0 | AJ144: 0 | AK144: 0 | AO144: 0
A145: 144 | V145: 0 | W145: 0 | X145: 0 | AB145: 0 | AJ145: 0 | AK145: 0 | AO145: 0
A146: 145 | V146: 0 | W146: 0 | X146: 0 | AB146: 0 | AJ146: 0 | AK146: 0 | AO146: 0
A147: 146 | V147: 0 | W147: 0 | X147: 0 | AB147: 0 | AJ147: 0 | AK147: 0 | AO147: 0
A148: 147 | V148: 0 | W148: 0 | X148: 0 | AB148: 0 | AJ148: 0 | AK148: 0 | AO148: 0
A149: 148 | V149: 0 | W149: 0 | X149: 0 | AB149: 0 | AJ149: 0 | AK149: 0 | AO149: 0
A150: 149 | V150: 0 | W150: 0 | X150: 0 | AB150: 0 | AJ150: 0 | AK150: 0 | AO150: 0
A151: 150 | V151: 0 | W151: 0 | X151: 0 | AB151: 0 | AJ151: 0 | AK151: 0 | AO151: 0
A152: 151 | V152: 0 | W152: 0 | X152: 0 | AB152: 0 | AJ152: 0 | AK152: 0 | AO152: 0
A153: 152 | V153: 0 | W153: 0 | X153: 0 | AB153: 0 | AJ153: 0 | AK153: 0 | AO153: 0
A154: 153 | V154: 0 | W154: 0 | X154: 0 | AB154: 0 | AJ154: 0 | AK154: 0 | AO154: 0
A155: 154 | V155: 0 | W155: 0 | X155: 0 | AB155: 0 | AJ155: 0 | AK155: 0 | AO155: 0
A156: 155 | V156: 0 | W156: 0 | X156: 0 | AB156: 0 | AJ156: 0 | AK156: 0 | AO156: 0
A157: 156 | V157: 0 | W157: 0 | X157: 0 | AB157: 0 | AJ157: 0 | AK157: 0 | AO157: 0
A158: 157 | V158: 0 | W158: 0 | X158: 0 | AB158: 0 | AJ158: 0 | AK158: 0 | AO158: 0
A159: 158 | V159: 0 | W159: 0 | X159: 0 | AB159: 0 | AJ159: 0 | AK159: 0 | AO159: 0
A160: 159 | V160: 0 | W160: 0 | X160: 0 | AB160: 0 | AJ160: 0 | AK160: 0 | AO160: 0
A161: 160 | V161: 0 | W161: 0 | X161: 0 | AB161: 0 | AJ161: 0 | AK161: 0 | AO161: 0
A162: 161 | V162: 0 | W162: 0 | X162: 0 | AB162: 0 | AJ162: 0 | AK162: 0 | AO162: 0
A163: 162 | V163: 0 | W163: 0 | X163: 0 | AB163: 0 | AJ163: 0 | AK163: 0 | AO163: 0
A164: 163 | V164: 0 | W164: 0 | X164: 0 | AB164: 0 | AJ164: 0 | AK164: 0 | AO164: 0
A165: 164 | V165: 0 | W165: 0 | X165: 0 | AB165: 0 | AJ165: 0 | AK165: 0 | AO165: 0
A166: 165 | V166: 0 | W166: 0 | X166: 0 | AB166: 0 | AJ166: 0 | AK166: 0 | AO166: 0
A167: 166 | V167: 0 | W167: 0 | X167: 0 | AB167: 0 | AJ167: 0 | AK167: 0 | AO167: 0
A168: 167 | V168: 0 | W168: 0 | X168: 0 | AB168: 0 | AJ168: 0 | AK168: 0 | AO168: 0
A169: 168 | V169: 0 | W169: 0 | X169: 0 | AB169: 0 | AJ169: 0 | AK169: 0 | AO169: 0
A170: 169 | V170: 0 | W170: 0 | X170: 0 | AB170: 0 | AJ170: 0 | AK170: 0 | AO170: 0
A171: 170 | V171: 0 | W171: 0 | X171: 0 | AB171: 0 | AJ171: 0 | AK171: 0 | AO171: 0
A172: 171 | V172: 0 | W172: 0 | X172: 0 | AB172: 0 | AJ172: 0 | AK172: 0 | AO172: 0
A173: 172 | V173: 0 | W173: 0 | X173: 0 | AB173: 0 | AJ173: 0 | AK173: 0 | AO173: 0
A174: 173 | V174: 0 | W174: 0 | X174: 0 | AB174: 0 | AJ174: 0 | AK174: 0 | AO174: 0
A175: 174 | V175: 0 | W175: 0 | X175: 0 | AB175: 0 | AJ175: 0 | AK175: 0 | AO175: 0
A176: 175 | V176: 0 | W176: 0 | X176: 0 | AB176: 0 | AJ176: 0 | AK176: 0 | AO176: 0
A177: 176 | V177: 0 | W177: 0 | X177: 0 | AB177: 0 | AJ177: 0 | AK177: 0 | AO177: 0
A178: 177 | V178: 0 | W178: 0 | X178: 0 | AB178: 0 | AJ178: 0 | AK178: 0 | AO178: 0
A179: 178 | V179: 0 | W179: 0 | X179: 0 | AB179: 0 | AJ179: 0 | AK179: 0 | AO179: 0
A180: 179 | V180: 0 | W180: 0 | X180: 0 | AB180: 0 | AJ180: 0 | AK180: 0 | AO180: 0
A181: 180 | V181: 0 | W181: 0 | X181: 0 | AB181: 0 | AJ181: 0 | AK181: 0 | AO181: 0
A182: 181 | V182: 0 | W182: 0 | X182: 0 | AB182: 0 | AJ182: 0 | AK182: 0 | AO182: 0
A183: 182 | V183: 0 | W183: 0 | X183: 0 | AB183: 0 | AJ183: 0 | AK183: 0 | AO183: 0
A184: 183 | V184: 0 | W184: 0 | X184: 0 | AB184: 0 | AJ184: 0 | AK184: 0 | AO184: 0
A185: 184 | V185: 0 | W185: 0 | X185: 0 | AB185: 0 | AJ185: 0 | AK185: 0 | AO185: 0
A186: 185 | V186: 0 | W186: 0 | X186: 0 | AB186: 0 | AJ186: 0 | AK186: 0 | AO186: 0
A187: 186 | V187: 0 | W187: 0 | X187: 0 | AB187: 0 | AJ187: 0 | AK187: 0 | AO187: 0
A188: 187 | V188: 0 | W188: 0 | X188: 0 | AB188: 0 | AJ188: 0 | AK188: 0 | AO188: 0
A189: 188 | V189: 0 | W189: 0 | X189: 0 | AB189: 0 | AJ189: 0 | AK189: 0 | AO189: 0
A190: 189 | V190: 0 | W190: 0 | X190: 0 | AB190: 0 | AJ190: 0 | AK190: 0 | AO190: 0
A191: 190 | V191: 0 | W191: 0 | X191: 0 | AB191: 0 | AJ191: 0 | AK191: 0 | AO191: 0
A192: 191 | V192: 0 | W192: 0 | X192: 0 | AB192: 0 | AJ192: 0 | AK192: 0 | AO192: 0
A193: 192 | V193: 0 | W193: 0 | X193: 0 | AB193: 0 | AJ193: 0 | AK193: 0 | AO193: 0
A194: 193 | V194: 0 | W194: 0 | X194: =SUM(V194*2.25) -> 0 | AB194: 0 | AJ194: =X194+AB194+AC194+AE194+AF194+AG194+AH194+AI194+AD194 -> 0 | AK194: 0 | AO194: 0
A195: 194 | V195: 0 | W195: 0 | X195: 0 | AB195: =(Y195+Z195+AA195)*2.25 -> 0 | AJ195: 0 | AK195: 0 | AO195: 0
A196: 195 | V196: 0 | W196: 0 | X196: 0 | AB196: 0 | AJ196: 0 | AK196: =V196*2.75 -> 0 | AO196: 0
A197: 196 | V197: 0 | W197: 0 | X197: 0 | AB197: 0 | AJ197: 0 | AK197: 0 | AO197: 0
A198: 197 | V198: =SUM(C198:U198) -> 0 | W198: =V198/4 -> 0 | X198: 0 | AB198: 0 | AJ198: 0 | AK198: 0 | AO198: =SUM(AJ198:AN198) -> 0
A199: 198 | V199: 0 | W199: 0 | X199: 0 | AB199: 0 | AJ199: 0 | AK199: 0 | AO199: 0
A200: 199 | V200: 0 | W200: 0 | X200: 0 | AB200: 0 | AJ200: 0 | AK200: 0 | AO200: 0
... 106 more rows

Sheet 02-Abrechnung
A1: QuittungNR | B1: 39
A8: Mitarbeiter Nr.: | D8: MONATSABRECHNUNG | G8: Februar | H8: 2017
G10: Abrechnungszeitraum: 21.01 - 20.02
A13: =INDEX([1]!Datenbank2,$B$1,2)&" "&INDEX([1]!Datenbank2,$B$1,3) -> Jessica Sander | B13: Anja Rohlfing | C13: Anja Rohlfing | D13: Anja Rohlfing
A14: =INDEX([1]!Datenbank2,$B$1,4) -> Brunnenweg 18 | B14: Elbeweg 7 | C14: Elbeweg 7 | D14: Elbeweg 7
A15: =INDEX([1]!Datenbank2,$B$1,5)&" "&INDEX([1]!Datenbank2,$B$1,6) -> 32469 Petershagen
A19: Allgemeine Tests:
C20: TEST NR & DATUM | D20: FB | E20: Entgelt in EURO € | G20: Erläuterungen zu
C21: =Februar!$C$1 -> 05710,05711,05712,05715 | D21: =INDEX([0]!februar,$B$1,3) -> 0 | E21: =D21*2.25 -> 0 | G21: Spezialtests:
C22: =Februar!$D$1 -> 0 | D22: =INDEX([0]!februar,$B$1,4) -> 0 | E22: 0 | G22: =IF(Februar!$AD$1=0,"",Februar!AD$1) ->  | H22: =INDEX([0]!februar,$B$1,30) -> 0
C23: =Februar!$E$1 -> 0 | D23: =INDEX([0]!februar,$B$1,5) -> 0 | E23: 0 | G23: =IF(Februar!$AE$1=0,"",Februar!AE$1) ->  | H23: =INDEX([0]!februar,$B$1,31) -> 0
C24: =Februar!$F$1 -> 0 | D24: =INDEX([0]!februar,$B$1,6) -> 0 | E24: 0 | G24: =IF(Februar!$AF$1=0,"",Februar!AF$1) ->  | H24: =INDEX([0]!februar,$B$1,32) -> 0
C25: =Februar!$G$1 -> 0 | D25: =INDEX([0]!februar,$B$1,7) -> 0 | E25: 0 | G25: =IF(Februar!$AG$1=0,"",Februar!AG$1) ->  | H25: =INDEX([0]!februar,$B$1,33) -> 0
C26: =Februar!$H$1 -> 0 | D26: =INDEX([0]!februar,$B$1,8) -> 0 | E26: 0 | G26: =IF(Februar!$AH$1=0,"",Februar!AH$1) -> 
C27: =Februar!$I$1 -> 0 | D27: =INDEX([0]!februar,$B$1,9) -> 0 | E27: =D27*2.25 -> 0
C28: =Februar!$J$1 -> 0 | D28: =INDEX([0]!februar,$B$1,10) -> 0 | E28: 0 | G28: Gesamt | H28: =SUM(H22:H27) -> 0
C29: =Februar!$K$1 -> 0 | D29: =INDEX([0]!februar,$B$1,11) -> 0 | E29: 0
C30: =Februar!$L$1 -> 0 | D30: =INDEX([0]!februar,$B$1,12) -> 0 | E30: 0
C31: =Februar!$M$1 -> 0 | D31: =INDEX([0]!februar,$B$1,13) -> 0 | E31: 0
C32: =Februar!$N$1 -> 0 | D32: =INDEX([0]!februar,$B$1,14) -> 0 | E32: 0
C33: =Februar!$O$1 -> 0 | D33: =INDEX([0]!februar,$B$1,15) -> 0 | E33: 0
C34: =Februar!$P$1 -> 0 | D34: =INDEX([0]!februar,$B$1,16) -> 0 | E34: 0
C35: =Februar!$Q$1 -> 0 | D35: =INDEX([0]!februar,$B$1,17) -> 0 | E35: 0
C36: =Februar!$R$1 -> 0 | D36: =INDEX([0]!februar,$B$1,18) -> 0 | E36: 0
C37: =Februar!$S$1 -> 0 | D37: =INDEX([0]!februar,$B$1,19) -> 0 | E37: 0
C38: =Februar!$T$1 -> 0 | D38: =INDEX([0]!februar,$B$1,20) -> 0 | E38: 0
C39: =Februar!$U$1 -> 0 | D39: =INDEX([0]!februar,$B$1,21) -> 0 | E39: 0
B41: SUMME 1 | D41: =SUM(D21:D40) -> 0 | E41: =SUM(E21:E40) -> 0 | G41: Stück-Stunden (FB) | H41: =INDEX([0]!februar,$B$1,23) -> 0
A43: Zusätze: | B43: Bezeichung
B44: =Februar!$AB$1 -> Summe BIM in EURO | E44: =INDEX([0]!februar,$B$1,28) -> 0
B45: =Februar!$AC$1 -> Stammdaten | E45: =INDEX([0]!februar,$B$1,29) -> 0
B46: Summe Spezialtest | E46: =H28 -> 0
B47: Fahrer / Std. | C47: Std. | E47: =INDEX([0]!februar,$B$1,35) -> 0
B48: GESAMT NETTO | E48: =SUM(E41:E47) -> 0
C49: Kilometergeld | E49: =INDEX([0]!februar,$B$1,37) -> 0
C50: Kilometergeld Januar - Übertrag | E50: =INDEX([0]!februar,$B$1,38) -> 0 | G50: Bemerkungen:
C51: + 25% Pauschale | E51: =INDEX([0]!februar,$B$1,39) -> 0
B52: GESAMT in € | E52: =E48+E49+E50+E51 -> 0 | G52: FB = Anzahl der Fragebogen
A55: Der Betrag wird bis zum 10. des folgenden Monats überwiesen.
A62: Prorata Marktforschung GmbH • Marienglacis 37 • 32427 Minden • tel 0571.82875.0 fax • 0571.82875.99 • www.prorata.de • info@prorata.de

Sheet Maerz
B1: Testnummer / Testerin | Y1: Anz. | Z1: Std. | AA1: Summe in EURO | AE1: Summe BIM in EURO | AL1: Std. /Entgelt Verteilung | AM1: Gesamt NETTO* in EURO | AN1: km x XXeurocent | AO1: Pauschale 25% | AQ1: Gesamt in EURO | AU1: 2.55
A2: 1 | Y2: =SUM(E2:X2) -> 0 | AA2: =SUM(Y2*2.25) -> 0 | AE2: =(AB2+AC2+AD2)*2.25 -> 0 | AM2: =AA2+AE2+AF2+AH2+AI2+AJ2+AK2+AL2+AG2 -> 0 | AQ2: =AM2+AN2+AO2+AP2 -> 0
A3: 2 | B3: Gundlach | Y3: 0 | AA3: 0 | AE3: =(AB3+AC3+AD3)*2.25 -> 0 | AM3: 0 | AN3: =Y3*2.75 -> 0 | AQ3: 0 | AT3: 11 | AU3: =$AU$1*AT3 -> 28.05
A4: 3 | B4: Heine | Y4: 0 | AA4: 0 | AE4: 0 | AM4: 0 | AN4: 0 | AQ4: 0 | AT4: 18 | AU4: =$AU$1*AT4 -> 45.9
A5: 4 | B5: Korte, Inge | Y5: =SUM(C5:X5) -> 0 | Z5: =Y5/4 -> 0 | AA5: 0 | AE5: 0 | AM5: 0 | AN5: 0 | AQ5: 0 | AT5: 6 | AU5: 15.3
A6: 5 | B6: Tölkemeier, Petra | Y6: =SUM(C6:X6) -> 0 | Z6: =Y6/4 -> 0 | AA6: 0 | AE6: 0 | AM6: 0 | AN6: 0 | AQ6: 0 | AT6: 18 | AU6: 45.9
A7: 6 | B7: Rohlfing, Anja | Y7: 0 | Z7: 0 | AA7: 0 | AE7: 0 | AM7: 0 | AN7: 0 | AQ7: 0 | AU7: 0
A8: 7 | B8: Aumann, Elfriede | Y8: 0 | Z8: 0 | AA8: 0 | AE8: 0 | AM8: 0 | AN8: 0 | AQ8: 0 | AT8: 16 | AU8: 40.8
A9: 8 | Y9: 0 | Z9: 0 | AA9: 0 | AE9: 0 | AM9: 0 | AN9: 0 | AQ9: 0 | AU9: 0
A10: 9 | B10: Kilzer, Andreas | Y10: 0 | Z10: 0 | AA10: 0 | AE10: 0 | AM10: 0 | AN10: 0 | AQ10: 0 | AT10: 19 | AU10: 48.45
A11: 10 | B11: Rakowski, Sigrid | Y11: 0 | Z11: 0 | AA11: 0 | AE11: 0 | AM11: 0 | AN11: =Y11*2.75 -> 0 | AQ11: 0 | AT11: 23 | AU11: 58.65
A12: 11 | Y12: 0 | Z12: 0 | AA12: 0 | AE12: 0 | AM12: 0 | AN12: =Y12*2.75 -> 0 | AQ12: 0 | AU12: 0
A13: 12 | B13: Drewes, Andrea | Y13: 0 | Z13: 0 | AA13: 0 | AE13: 0 | AM13: 0 | AN13: 0 | AQ13: 0 | AT13: 21 | AU13: 53.55
A14: 13 | Y14: 0 | Z14: 0 | AA14: 0 | AE14: 0 | AM14: 0 | AN14: 0 | AQ14: 0 | AT14: 16 | AU14: 40.8
A15: 14 | B15: Grabbe , Nadja | Y15: 0 | Z15: 0 | AA15: 0 | AE15: 0 | AM15: 0 | AN15: 0 | AQ15: 0 | AT15: 14 | AU15: 35.7
A16: 15 | B16: Sassenberg, Julia | Y16: 0 | Z16: 0 | AA16: 0 | AE16: 0 | AM16: 0 | AN16: 0 | AQ16: 0 | AU16: 0
A17: 16 | Y17: 0 | Z17: 0 | AA17: 0 | AE17: 0 | AM17: 0 | AN17: 0 | AQ17: 0 | AU17: 0
A18: 17 | Y18: 0 | Z18: 0 | AA18: 0 | AE18: 0 | AM18: 0 | AN18: 0 | AQ18: 0 | AU18: 0
A19: 18 | Y19: 0 | Z19: 0 | AA19: 0 | AE19: 0 | AM19: 0 | AN19: 0 | AQ19: 0 | AU19: 0
A20: 19 | B20: Blaha, Heinz | Y20: 0 | Z20: 0 | AA20: 0 | AE20: 0 | AM20: 0 | AN20: 0 | AQ20: 0 | AT20: 24 | AU20: 61.2
A21: 20 | Y21: 0 | Z21: =Y21/4 -> 0 | AA21: =SUM(Y21*2.25) -> 0 | AE21: 0 | AM21: 0 | AN21: 0 | AQ21: 0 | AU21: 0
A22: 21 | B22: Weichenhan, Rainer | Y22: 0 | Z22: 0 | AA22: 0 | AE22: 0 | AM22: 0 | AN22: =Y22*2.75 -> 0 | AQ22: 0 | AU22: 0
A23: 22 | B23: Lill, Ulrich | Y23: 0 | Z23: 0 | AA23: 0 | AE23: 0 | AM23: 0 | AN23: =Y23*2.75 -> 0 | AQ23: 0 | AT23: 18 | AU23: 45.9
A24: 23 | Y24: 0 | Z24: 0 | AA24: 0 | AE24: 0 | AM24: 0 | AN24: 0 | AQ24: 0 | AU24: 0
A25: 24 | B25: Hübsch, Karl-Heinz | Y25: 0 | Z25: 0 | AA25: 0 | AE25: 0 | AM25: 0 | AN25: 0 | AQ25: 0 | AT25: 21 | AU25: 53.55
A26: 25 | B26: Feigel-Kipp, Claudia | Y26: 0 | Z26: 0 | AA26: 0 | AE26: 0 | AM26: 0 | AN26: 0 | AQ26: 0 | AT26: 23 | AU26: 58.65
A27: 26 | Y27: 0 | Z27: 0 | AA27: 0 | AE27: 0 | AM27: 0 | AN27: 0 | AQ27: 0 | AU27: 0
A28: 27 | Y28: 0 | Z28: 0 | AA28: 0 | AE28: 0 | AM28: 0 | AN28: 0 | AQ28: 0 | AU28: 0
A29: 28 | B29: Lüttgert, David | Y29: 0 | Z29: 0 | AA29: 0 | AE29: 0 | AM29: 0 | AN29: 0 | AQ29: 0 | AU29: 0
A30: 29 | B30: Scholz, Stella | Y30: 0 | Z30: 0 | AA30: 0 | AE30: 0 | AM30: 0 | AN30: 0 | AQ30: 0 | AT30: 5 | AU30: 12.75
A31: 30 | B31: Hachmeister, Stefan | Y31: 0 | Z31: 0 | AA31: 0 | AE31: 0 | AM31: 0 | AN31: 0 | AQ31: 0 | AT31: 12 | AU31: 30.6
A32: 31 | Y32: 0 | Z32: 0 | AA32: 0 | AE32: 0 | AM32: 0 | AN32: 0 | AQ32: 0 | AU32: 0
A33: 32 | Y33: 0 | Z33: 0 | AA33: 0 | AE33: 0 | AM33: 0 | AN33: 0 | AQ33: 0 | AU33: 0
A34: 33 | Y34: 0 | Z34: 0 | AA34: 0 | AE34: 0 | AM34: 0 | AN34: 0 | AQ34: 0 | AU34: 0
A35: 34 | Y35: 0 | Z35: 0 | AA35: 0 | AE35: 0 | AM35: 0 | AN35: 0 | AQ35: 0 | AU35: 0
A36: 35 | Y36: 0 | Z36: 0 | AA36: 0 | AE36: 0 | AM36: 0 | AN36: 0 | AQ36: 0 | AU36: 0
A37: 36 | B37: Selle, Monika | Y37: 0 | Z37: 0 | AA37: 0 | AE37: 0 | AM37: 0 | AN37: 0 | AQ37: 0 | AT37: 6 | AU37: 15.3
A38: 37 | B38: Sander, Eva-Maria | Y38: 0 | Z38: 0 | AA38: 0 | AE38: 0 | AM38: 0 | AN38: 0 | AQ38: 0 | AT38: 27 | AU38: 68.85
A39: 38 | B39: Sander, Jessica | Y39: 0 | Z39: 0 | AA39: 0 | AE39: 0 | AM39: 0 | AN39: =Y39*2.75 -> 0 | AQ39: 0 | AU39: 0
A40: 39 | B40: Wiese-Schmutzer, Armgard | Y40: 0 | Z40: 0 | AA40: 0 | AE40: 0 | AM40: 0 | AN40: =Y40*2.75 -> 0 | AQ40: 0 | AU40: 0
A41: 40 | Y41: 0 | Z41: 0 | AA41: 0 | AE41: 0 | AM41: 0 | AN41: 0 | AQ41: 0 | AU41: 0
A42: 41 | Y42: 0 | Z42: 0 | AA42: 0 | AE42: 0 | AM42: 0 | AN42: 0 | AQ42: 0 | AU42: 0
A43: 42 | Y43: 0 | Z43: 0 | AA43: 0 | AE43: 0 | AM43: 0 | AN43: 0 | AQ43: 0 | AU43: 0
A44: 43 | Y44: 0 | Z44: 0 | AA44: 0 | AE44: 0 | AM44: 0 | AN44: 0 | AQ44: 0 | AU44: 0
A45: 44 | Y45: 0 | Z45: 0 | AA45: 0 | AE45: 0 | AM45: 0 | AN45: 0 | AQ45: 0 | AU45: 0
A46: 45 | Y46: 0 | Z46: 0 | AA46: 0 | AE46: 0 | AM46: 0 | AN46: 0 | AQ46: 0 | AU46: 0
A47: 46 | Y47: 0 | Z47: 0 | AA47: 0 | AE47: 0 | AM47: 0 | AN47: 0 | AQ47: 0 | AU47: 0
A48: 47 | Y48: 0 | Z48: 0 | AA48: 0 | AE48: 0 | AM48: 0 | AN48: 0 | AQ48: 0 | AU48: 0
A49: 48 | Y49: 0 | Z49: 0 | AA49: 0 | AE49: 0 | AM49: 0 | AN49: 0 | AQ49: 0 | AU49: 0
A50: 49 | Y50: 0 | Z50: 0 | AA50: 0 | AE50: 0 | AM50: 0 | AN50: 0 | AQ50: 0 | AU50: 0
A51: 50 | Y51: 0 | Z51: 0 | AA51: 0 | AE51: 0 | AM51: 0 | AN51: 0 | AQ51: 0 | AU51: 0
A52: 51 | Y52: 0 | Z52: 0 | AA52: 0 | AE52: 0 | AM52: 0 | AN52: 0 | AQ52: 0 | AU52: 0
A53: 52 | Y53: 0 | Z53: 0 | AA53: 0 | AE53: 0 | AM53: 0 | AN53: 0 | AQ53: 0 | AU53: 0
A54: 53 | Y54: 0 | Z54: 0 | AA54: 0 | AE54: 0 | AM54: 0 | AN54: 0 | AQ54: 0 | AU54: 0
A55: 54 | Y55: 0 | Z55: 0 | AA55: 0 | AE55: 0 | AM55: 0 | AN55: 0 | AQ55: 0 | AU55: 0
A56: 55 | Y56: 0 | Z56: 0 | AA56: 0 | AE56: 0 | AM56: 0 | AN56: 0 | AQ56: 0 | AU56: 0
A57: 56 | Y57: 0 | Z57: 0 | AA57: 0 | AE57: 0 | AM57: 0 | AN57: 0 | AQ57: 0 | AU57: 0
A58: 57 | Y58: 0 | Z58: 0 | AA58: 0 | AE58: 0 | AM58: 0 | AN58: 0 | AQ58: 0 | AU58: 0
A59: 58 | Y59: 0 | Z59: 0 | AA59: 0 | AE59: 0 | AM59: 0 | AN59: 0 | AQ59: 0 | AU59: 0
A60: 59 | Y60: 0 | Z60: 0 | AA60: 0 | AE60: 0 | AM60: 0 | AN60: 0 | AQ60: 0 | AU60: 0
A61: 60 | Y61: 0 | Z61: 0 | AA61: 0 | AE61: 0 | AM61: 0 | AN61: 0 | AQ61: 0 | AU61: 0
A62: 61 | Y62: 0 | Z62: 0 | AA62: 0 | AE62: 0 | AM62: 0 | AN62: 0 | AQ62: 0 | AU62: 0
A63: 62 | Y63: 0 | Z63: 0 | AA63: 0 | AE63: 0 | AM63: 0 | AN63: 0 | AQ63: 0 | AU63: 0
A64: 63 | Y64: 0 | Z64: 0 | AA64: 0 | AE64: 0 | AM64: 0 | AN64: 0 | AQ64: 0 | AU64: 0
A65: 64 | Y65: 0 | Z65: 0 | AA65: 0 | AE65: 0 | AM65: 0 | AN65: 0 | AQ65: 0 | AU65: 0
A66: 65 | Y66: 0 | Z66: 0 | AA66: =SUM(Y66*2.25) -> 0 | AE66: 0 | AM66: =AA66+AE66+AF66+AH66+AI66+AJ66+AK66+AL66+AG66 -> 0 | AN66: 0 | AQ66: =AM66+AN66+AO66+AP66 -> 0 | AU66: 0
A67: 66 | Y67: 0 | Z67: 0 | AA67: 0 | AE67: =(AB67+AC67+AD67)*2.25 -> 0 | AM67: 0 | AN67: =Y67*2.75 -> 0 | AQ67: 0 | AU67: 0
A68: 67 | Y68: 0 | Z68: 0 | AA68: 0 | AE68: 0 | AM68: 0 | AN68: 0 | AQ68: 0 | AU68: =$AU$1*AT68 -> 0
A69: 68 | Y69: 0 | Z69: 0 | AA69: 0 | AE69: 0 | AM69: 0 | AN69: 0 | AQ69: 0 | AU69: 0
A70: 69 | Y70: =SUM(C70:X70) -> 0 | Z70: =Y70/4 -> 0 | AA70: 0 | AE70: 0 | AM70: 0 | AN70: 0 | AQ70: 0 | AU70: 0
A71: 70 | Y71: 0 | Z71: 0 | AA71: 0 | AE71: 0 | AM71: 0 | AN71: 0 | AQ71: 0 | AU71: 0
A72: 71 | Y72: 0 | Z72: 0 | AA72: 0 | AE72: 0 | AM72: 0 | AN72: 0 | AQ72: 0 | AU72: 0
A73: 72 | Y73: 0 | Z73: 0 | AA73: 0 | AE73: 0 | AM73: 0 | AN73: 0 | AQ73: 0 | AU73: 0
A74: 73 | Y74: 0 | Z74: 0 | AA74: 0 | AE74: 0 | AM74: 0 | AN74: 0 | AQ74: 0 | AU74: 0
A75: 74 | Y75: 0 | Z75: 0 | AA75: 0 | AE75: 0 | AM75: 0 | AN75: 0 | AQ75: 0 | AU75: 0
A76: 75 | Y76: 0 | Z76: 0 | AA76: 0 | AE76: 0 | AM76: 0 | AN76: 0 | AQ76: 0 | AU76: 0
A77: 76 | Y77: 0 | Z77: 0 | AA77: 0 | AE77: 0 | AM77: 0 | AN77: 0 | AQ77: 0 | AU77: 0
A78: 77 | Y78: 0 | Z78: 0 | AA78: 0 | AE78: 0 | AM78: 0 | AN78: 0 | AQ78: 0 | AU78: 0
A79: 78 | Y79: 0 | Z79: 0 | AA79: 0 | AE79: 0 | AM79: 0 | AN79: 0 | AQ79: 0 | AU79: 0
A80: 79 | Y80: 0 | Z80: 0 | AA80: 0 | AE80: 0 | AM80: 0 | AN80: 0 | AQ80: 0 | AU80: 0
A81: 80 | Y81: 0 | Z81: 0 | AA81: 0 | AE81: 0 | AM81: 0 | AN81: 0 | AQ81: 0 | AU81: 0
A82: 81 | Y82: 0 | Z82: 0 | AA82: 0 | AE82: 0 | AM82: 0 | AN82: 0 | AQ82: 0 | AU82: 0
A83: 82 | Y83: 0 | Z83: 0 | AA83: 0 | AE83: 0 | AM83: 0 | AN83: 0 | AQ83: 0 | AU83: 0
A84: 83 | Y84: 0 | Z84: 0 | AA84: 0 | AE84: 0 | AM84: 0 | AN84: 0 | AQ84: 0 | AU84: 0
A85: 84 | Y85: 0 | Z85: 0 | AA85: 0 | AE85: 0 | AM85: 0 | AN85: 0 | AQ85: 0 | AU85: 0
A86: 85 | Y86: 0 | Z86: 0 | AA86: 0 | AE86: 0 | AM86: 0 | AN86: 0 | AQ86: 0 | AU86: 0
A87: 86 | Y87: 0 | Z87: 0 | AA87: 0 | AE87: 0 | AM87: 0 | AN87: 0 | AQ87: 0 | AU87: 0
A88: 87 | Y88: 0 | Z88: 0 | AA88: 0 | AE88: 0 | AM88: 0 | AN88: 0 | AQ88: 0 | AU88: 0
A89: 88 | Y89: 0 | Z89: 0 | AA89: 0 | AE89: 0 | AM89: 0 | AN89: 0 | AQ89: 0 | AU89: 0
A90: 89 | Y90: 0 | Z90: 0 | AA90: 0 | AE90: 0 | AM90: 0 | AN90: 0 | AQ90: 0 | AU90: 0
A91: 90 | Y91: 0 | Z91: 0 | AA91: 0 | AE91: 0 | AM91: 0 | AN91: 0 | AQ91: 0 | AU91: 0
A92: 91 | Y92: 0 | Z92: 0 | AA92: 0 | AE92: 0 | AM92: 0 | AN92: 0 | AQ92: 0 | AU92: 0
A93: 92 | Y93: 0 | Z93: 0 | AA93: 0 | AE93: 0 | AM93: 0 | AN93: 0 | AQ93: 0 | AU93: 0
A94: 93 | Y94: 0 | Z94: 0 | AA94: 0 | AE94: 0 | AM94: 0 | AN94: 0 | AQ94: 0 | AU94: 0
A95: 94 | Y95: 0 | Z95: 0 | AA95: 0 | AE95: 0 | AM95: 0 | AN95: 0 | AQ95: 0 | AU95: 0
A96: 95 | Y96: 0 | Z96: 0 | AA96: 0 | AE96: 0 | AM96: 0 | AN96: 0 | AQ96: 0 | AU96: 0
A97: 96 | Y97: 0 | Z97: 0 | AA97: 0 | AE97: 0 | AM97: 0 | AN97: 0 | AQ97: 0 | AU97: 0
A98: 97 | Y98: 0 | Z98: 0 | AA98: 0 | AE98: 0 | AM98: 0 | AN98: 0 | AQ98: 0 | AU98: 0
A99: 98 | Y99: 0 | Z99: 0 | AA99: 0 | AE99: 0 | AM99: 0 | AN99: 0 | AQ99: 0 | AU99: 0
A100: 99 | Y100: 0 | Z100: 0 | AA100: 0 | AE100: 0 | AM100: 0 | AN100: 0 | AQ100: 0 | AU100: 0
A101: 100 | Y101: 0 | Z101: 0 | AA101: 0 | AE101: 0 | AM101: 0 | AN101: 0 | AQ101: 0 | AU101: 0
A102: 101 | Y102: 0 | Z102: 0 | AA102: 0 | AE102: 0 | AM102: 0 | AN102: 0 | AQ102: 0 | AU102: 0
A103: 102 | Y103: 0 | Z103: 0 | AA103: 0 | AE103: 0 | AM103: 0 | AN103: 0 | AQ103: 0 | AU103: 0
A104: 103 | Y104: 0 | Z104: 0 | AA104: 0 | AE104: 0 | AM104: 0 | AN104: 0 | AQ104: 0 | AU104: 0
A105: 104 | Y105: 0 | Z105: 0 | AA105: 0 | AE105: 0 | AM105: 0 | AN105: 0 | AQ105: 0 | AU105: 0
A106: 105 | Y106: 0 | Z106: 0 | AA106: 0 | AE106: 0 | AM106: 0 | AN106: 0 | AQ106: 0 | AU106: 0
A107: 106 | Y107: 0 | Z107: 0 | AA107: 0 | AE107: 0 | AM107: 0 | AN107: 0 | AQ107: 0 | AU107: 0
A108: 107 | Y108: 0 | Z108: 0 | AA108: 0 | AE108: 0 | AM108: 0 | AN108: 0 | AQ108: 0 | AU108: 0
A109: 108 | Y109: 0 | Z109: 0 | AA109: 0 | AE109: 0 | AM109: 0 | AN109: 0 | AQ109: 0 | AU109: 0
A110: 109 | Y110: 0 | Z110: 0 | AA110: 0 | AE110: 0 | AM110: 0 | AN110: 0 | AQ110: 0 | AU110: 0
A111: 110 | B111: Kruse, Brigitte | Y111: 0 | Z111: 0 | AA111: 0 | AE111: 0 | AM111: 0 | AN111: 0 | AQ111: 0 | AT111: 10 | AU111: 25.5
A112: 111 | Y112: 0 | Z112: 0 | AA112: 0 | AE112: 0 | AM112: 0 | AN112: 0 | AQ112: 0 | AU112: 0
A113: 112 | Y113: 0 | Z113: 0 | AA113: 0 | AE113: 0 | AM113: 0 | AN113: 0 | AQ113: 0 | AU113: 0
A114: 113 | Y114: 0 | Z114: 0 | AA114: 0 | AE114: 0 | AM114: 0 | AN114: 0 | AQ114: 0 | AU114: 0
A115: 114 | Y115: 0 | Z115: 0 | AA115: 0 | AE115: 0 | AM115: 0 | AN115: 0 | AQ115: 0 | AU115: 0
A116: 115 | Y116: 0 | Z116: 0 | AA116: 0 | AE116: 0 | AM116: 0 | AN116: 0 | AQ116: 0 | AU116: 0
A117: 116 | Y117: 0 | Z117: 0 | AA117: 0 | AE117: 0 | AM117: 0 | AN117: 0 | AQ117: 0 | AU117: 0
A118: 117 | Y118: 0 | Z118: 0 | AA118: 0 | AE118: 0 | AM118: 0 | AN118: 0 | AQ118: 0 | AU118: 0
A119: 118 | Y119: 0 | Z119: 0 | AA119: 0 | AE119: 0 | AM119: 0 | AN119: 0 | AQ119: 0 | AU119: 0
A120: 119 | Y120: 0 | Z120: 0 | AA120: 0 | AE120: 0 | AM120: 0 | AN120: 0 | AQ120: 0 | AU120: 0
A121: 120 | Y121: 0 | Z121: 0 | AA121: 0 | AE121: 0 | AM121: 0 | AN121: 0 | AQ121: 0 | AU121: 0
A122: 121 | Y122: 0 | Z122: 0 | AA122: 0 | AE122: 0 | AM122: 0 | AN122: 0 | AQ122: 0 | AU122: 0
A123: 122 | Y123: 0 | Z123: 0 | AA123: 0 | AE123: 0 | AM123: 0 | AN123: 0 | AQ123: 0 | AU123: 0
A124: 123 | Y124: 0 | Z124: 0 | AA124: 0 | AE124: 0 | AM124: 0 | AN124: 0 | AQ124: 0 | AU124: 0
A125: 124 | Y125: 0 | Z125: 0 | AA125: 0 | AE125: 0 | AM125: 0 | AN125: 0 | AQ125: 0 | AU125: 0
A126: 125 | Y126: 0 | Z126: 0 | AA126: 0 | AE126: 0 | AM126: 0 | AN126: 0 | AQ126: 0 | AU126: 0
A127: 126 | Y127: 0 | Z127: 0 | AA127: 0 | AE127: 0 | AM127: 0 | AN127: 0 | AQ127: 0 | AU127: 0
A128: 127 | Y128: 0 | Z128: 0 | AA128: 0 | AE128: 0 | AM128: 0 | AN128: 0 | AQ128: 0 | AU128: 0
A129: 128 | Y129: 0 | Z129: 0 | AA129: 0 | AE129: 0 | AM129: 0 | AN129: 0 | AQ129: 0 | AU129: 0
A130: 129 | Y130: 0 | Z130: 0 | AA130: =SUM(Y130*2.25) -> 0 | AE130: 0 | AM130: =AA130+AE130+AF130+AH130+AI130+AJ130+AK130+AL130+AG130 -> 0 | AN130: 0 | AQ130: =AM130+AN130+AO130+AP130 -> 0 | AU130: 0
A131: 130 | Y131: 0 | Z131: 0 | AA131: 0 | AE131: =(AB131+AC131+AD131)*2.25 -> 0 | AM131: 0 | AN131: =Y131*2.75 -> 0 | AQ131: 0 | AU131: 0
A132: 131 | Y132: 0 | Z132: 0 | AA132: 0 | AE132: 0 | AM132: 0 | AN132: 0 | AQ132: 0 | AU132: =$AU$1*AT132 -> 0
A133: 132 | Y133: 0 | Z133: 0 | AA133: 0 | AE133: 0 | AM133: 0 | AN133: 0 | AQ133: 0 | AU133: 0
A134: 133 | Y134: =SUM(C134:X134) -> 0 | Z134: =Y134/4 -> 0 | AA134: 0 | AE134: 0 | AM134: 0 | AN134: 0 | AQ134: 0 | AU134: 0
A135: 134 | Y135: 0 | Z135: 0 | AA135: 0 | AE135: 0 | AM135: 0 | AN135: 0 | AQ135: 0 | AU135: 0
A136: 135 | Y136: 0 | Z136: 0 | AA136: 0 | AE136: 0 | AM136: 0 | AN136: 0 | AQ136: 0 | AU136: 0
A137: 136 | Y137: 0 | Z137: 0 | AA137: 0 | AE137: 0 | AM137: 0 | AN137: 0 | AQ137: 0 | AU137: 0
A138: 137 | Y138: 0 | Z138: 0 | AA138: 0 | AE138: 0 | AM138: 0 | AN138: 0 | AQ138: 0 | AU138: 0
A139: 138 | Y139: 0 | Z139: 0 | AA139: 0 | AE139: 0 | AM139: 0 | AN139: 0 | AQ139: 0 | AU139: 0
A140: 139 | Y140: 0 | Z140: 0 | AA140: 0 | AE140: 0 | AM140: 0 | AN140: 0 | AQ140: 0 | AU140: 0
A141: 140 | Y141: 0 | Z141: 0 | AA141: 0 | AE141: 0 | AM141: 0 | AN141: 0 | AQ141: 0 | AU141: 0
A142: 141 | Y142: 0 | Z142: 0 | AA142: 0 | AE142: 0 | AM142: 0 | AN142: 0 | AQ142: 0 | AU142: 0
A143: 142 | Y143: 0 | Z143: 0 | AA143: 0 | AE143: 0 | AM143: 0 | AN143: 0 | AQ143: 0 | AU143: 0
A144: 143 | Y144: 0 | Z144: 0 | AA144: 0 | AE144: 0 | AM144: 0 | AN144: 0 | AQ144: 0 | AU144: 0
A145: 144 | Y145: 0 | Z145: 0 | AA145: 0 | AE145: 0 | AM145: 0 | AN145: 0 | AQ145: 0 | AU145: 0
A146: 145 | Y146: 0 | Z146: 0 | AA146: 0 | AE146: 0 | AM146: 0 | AN146: 0 | AQ146: 0 | AU146: 0
A147: 146 | Y147: 0 | Z147: 0 | AA147: 0 | AE147: 0 | AM147: 0 | AN147: 0 | AQ147: 0 | AU147: 0
A148: 147 | Y148: 0 | Z148: 0 | AA148: 0 | AE148: 0 | AM148: 0 | AN148: 0 | AQ148: 0 | AU148: 0
A149: 148 | Y149: 0 | Z149: 0 | AA149: 0 | AE149: 0 | AM149: 0 | AN149: 0 | AQ149: 0 | AU149: 0
A150: 149 | Y150: 0 | Z150: 0 | AA150: 0 | AE150: 0 | AM150: 0 | AN150: 0 | AQ150: 0 | AU150: 0
A151: 150 | Y151: 0 | Z151: 0 | AA151: 0 | AE151: 0 | AM151: 0 | AN151: 0 | AQ151: 0 | AU151: 0
A152: 151 | Y152: 0 | Z152: 0 | AA152: 0 | AE152: 0 | AM152: 0 | AN152: 0 | AQ152: 0 | AU152: 0
A153: 152 | Y153: 0 | Z153: 0 | AA153: 0 | AE153: 0 | AM153: 0 | AN153: 0 | AQ153: 0 | AU153: 0
A154: 153 | Y154: 0 | Z154: 0 | AA154: 0 | AE154: 0 | AM154: 0 | AN154: 0 | AQ154: 0 | AU154: 0
A155: 154 | Y155: 0 | Z155: 0 | AA155: 0 | AE155: 0 | AM155: 0 | AN155: 0 | AQ155: 0 | AU155: 0
A156: 155 | Y156: 0 | Z156: 0 | AA156: 0 | AE156: 0 | AM156: 0 | AN156: 0 | AQ156: 0 | AU156: 0
A157: 156 | Y157: 0 | Z157: 0 | AA157: 0 | AE157: 0 | AM157: 0 | AN157: 0 | AQ157: 0 | AU157: 0
A158: 157 | Y158: 0 | Z158: 0 | AA158: 0 | AE158: 0 | AM158: 0 | AN158: 0 | AQ158: 0 | AU158: 0
A159: 158 | Y159: 0 | Z159: 0 | AA159: 0 | AE159: 0 | AM159: 0 | AN159: 0 | AQ159: 0 | AU159: 0
A160: 159 | Y160: 0 | Z160: 0 | AA160: 0 | AE160: 0 | AM160: 0 | AN160: 0 | AQ160: 0 | AU160: 0
A161: 160 | Y161: 0 | Z161: 0 | AA161: 0 | AE161: 0 | AM161: 0 | AN161: 0 | AQ161: 0 | AU161: 0
A162: 161 | Y162: 0 | Z162: 0 | AA162: 0 | AE162: 0 | AM162: 0 | AN162: 0 | AQ162: 0 | AU162: 0
A163: 162 | Y163: 0 | Z163: 0 | AA163: 0 | AE163: 0 | AM163: 0 | AN163: 0 | AQ163: 0 | AU163: 0
A164: 163 | Y164: 0 | Z164: 0 | AA164: 0 | AE164: 0 | AM164: 0 | AN164: 0 | AQ164: 0 | AU164: 0
A165: 164 | Y165: 0 | Z165: 0 | AA165: 0 | AE165: 0 | AM165: 0 | AN165: 0 | AQ165: 0 | AU165: 0
A166: 165 | Y166: 0 | Z166: 0 | AA166: 0 | AE166: 0 | AM166: 0 | AN166: 0 | AQ166: 0 | AU166: 0
A167: 166 | Y167: 0 | Z167: 0 | AA167: 0 | AE167: 0 | AM167: 0 | AN167: 0 | AQ167: 0 | AU167: 0
A168: 167 | Y168: 0 | Z168: 0 | AA168: 0 | AE168: 0 | AM168: 0 | AN168: 0 | AQ168: 0 | AU168: 0
A169: 168 | Y169: 0 | Z169: 0 | AA169: 0 | AE169: 0 | AM169: 0 | AN169: 0 | AQ169: 0 | AU169: 0
A170: 169 | Y170: 0 | Z170: 0 | AA170: 0 | AE170: 0 | AM170: 0 | AN170: 0 | AQ170: 0 | AU170: 0
A171: 170 | Y171: 0 | Z171: 0 | AA171: 0 | AE171: 0 | AM171: 0 | AN171: 0 | AQ171: 0 | AU171: 0
A172: 171 | Y172: 0 | Z172: 0 | AA172: 0 | AE172: 0 | AM172: 0 | AN172: 0 | AQ172: 0 | AU172: 0
A173: 172 | Y173: 0 | Z173: 0 | AA173: 0 | AE173: 0 | AM173: 0 | AN173: 0 | AQ173: 0 | AU173: 0
A174: 173 | Y174: 0 | Z174: 0 | AA174: 0 | AE174: 0 | AM174: 0 | AN174: 0 | AQ174: 0 | AU174: 0
A175: 174 | Y175: 0 | Z175: 0 | AA175: 0 | AE175: 0 | AM175: 0 | AN175: 0 | AQ175: 0 | AU175: 0
A176: 175 | Y176: 0 | Z176: 0 | AA176: 0 | AE176: 0 | AM176: 0 | AN176: 0 | AQ176: 0 | AU176: 0
A177: 176 | Y177: 0 | Z177: 0 | AA177: 0 | AE177: 0 | AM177: 0 | AN177: 0 | AQ177: 0 | AU177: 0
A178: 177 | Y178: 0 | Z178: 0 | AA178: 0 | AE178: 0 | AM178: 0 | AN178: 0 | AQ178: 0 | AU178: 0
A179: 178 | Y179: 0 | Z179: 0 | AA179: 0 | AE179: 0 | AM179: 0 | AN179: 0 | AQ179: 0 | AU179: 0
A180: 179 | Y180: 0 | Z180: 0 | AA180: 0 | AE180: 0 | AM180: 0 | AN180: 0 | AQ180: 0 | AU180: 0
A181: 180 | Y181: 0 | Z181: 0 | AA181: 0 | AE181: 0 | AM181: 0 | AN181: 0 | AQ181: 0 | AU181: 0
A182: 181 | Y182: 0 | Z182: 0 | AA182: 0 | AE182: 0 | AM182: 0 | AN182: 0 | AQ182: 0 | AU182: 0
A183: 182 | Y183: 0 | Z183: 0 | AA183: 0 | AE183: 0 | AM183: 0 | AN183: 0 | AQ183: 0 | AU183: 0
A184: 183 | Y184: 0 | Z184: 0 | AA184: 0 | AE184: 0 | AM184: 0 | AN184: 0 | AQ184: 0 | AU184: 0
A185: 184 | Y185: 0 | Z185: 0 | AA185: 0 | AE185: 0 | AM185: 0 | AN185: 0 | AQ185: 0 | AU185: 0
A186: 185 | Y186: 0 | Z186: 0 | AA186: 0 | AE186: 0 | AM186: 0 | AN186: 0 | AQ186: 0 | AU186: 0
A187: 186 | Y187: 0 | Z187: 0 | AA187: 0 | AE187: 0 | AM187: 0 | AN187: 0 | AQ187: 0 | AU187: 0
A188: 187 | Y188: 0 | Z188: 0 | AA188: 0 | AE188: 0 | AM188: 0 | AN188: 0 | AQ188: 0 | AU188: 0
A189: 188 | Y189: 0 | Z189: 0 | AA189: 0 | AE189: 0 | AM189: 0 | AN189: 0 | AQ189: 0 | AU189: 0
A190: 189 | Y190: 0 | Z190: 0 | AA190: 0 | AE190: 0 | AM190: 0 | AN190: 0 | AQ190: 0 | AU190: 0
A191: 190 | Y191: 0 | Z191: 0 | AA191: 0 | AE191: 0 | AM191: 0 | AN191: 0 | AQ191: 0 | AU191: 0
A192: 191 | Y192: 0 | Z192: 0 | AA192: 0 | AE192: 0 | AM192: 0 | AN192: 0 | AQ192: 0 | AU192: 0
A193: 192 | Y193: 0 | Z193: 0 | AA193: 0 | AE193: 0 | AM193: 0 | AN193: 0 | AQ193: 0 | AU193: 0
A194: 193 | Y194: 0 | Z194: 0 | AA194: =SUM(Y194*2.25) -> 0 | AE194: 0 | AM194: =AA194+AE194+AF194+AH194+AI194+AJ194+AK194+AL194+AG194 -> 0 | AN194: 0 | AQ194: =AM194+AN194+AO194+AP194 -> 0 | AU194: 0
A195: 194 | Y195: 0 | Z195: 0 | AA195: 0 | AE195: =(AB195+AC195+AD195)*2.25 -> 0 | AM195: 0 | AN195: =Y195*2.75 -> 0 | AQ195: 0 | AU195: 0
A196: 195 | Y196: 0 | Z196: 0 | AA196: 0 | AE196: 0 | AM196: 0 | AN196: 0 | AQ196: 0 | AU196: =$AU$1*AT196 -> 0
A197: 196 | Y197: 0 | Z197: 0 | AA197: 0 | AE197: 0 | AM197: 0 | AN197: 0 | AQ197: 0 | AU197: 0
A198: 197 | Y198: =SUM(C198:X198) -> 0 | Z198: =Y198/4 -> 0 | AA198: 0 | AE198: 0 | AM198: 0 | AN198: 0 | AQ198: 0 | AU198: 0
A199: 198 | Y199: 0 | Z199: 0 | AA199: 0 | AE199: 0 | AM199: 0 | AN199: 0 | AQ199: 0 | AU199: 0
A200: 199 | Y200: 0 | Z200: 0 | AA200: 0 | AE200: 0 | AM200: 0 | AN200: 0 | AQ200: 0 | AU200: 0
... 113 more rows

Sheet 03-Abrechnung
A1: QuittungNR | B1: 20
A8: Mitarbeiter Nr.: | D8: MONATSABRECHNUNG | G8: Maerz | H8: 2017
G10: Abrechnungszeitraum: 21.02 - 20.03
A13: =INDEX([1]!Datenbank2,$B$1,2)&" "&INDEX([1]!Datenbank2,$B$1,3) -> Heinz Blaha | B13: Christel Hachmeister | C13: Christel Hachmeister | D13: Christel Hachmeister
A14: =INDEX([1]!Datenbank2,$B$1,4) -> Theodor-Storm-Str. 13 | B14: Borsteler Bruch 4 | C14: Borsteler Bruch 4 | D14: Borsteler Bruch 4
A15: =INDEX([1]!Datenbank2,$B$1,5)&" "&INDEX([1]!Datenbank2,$B$1,6) -> 32457 Porta-Westfalica
A19: Allgemeine Tests:
C20: TEST NR & DATUM | D20: FB | E20: Entgelt in EURO € | G20: Erläuterungen zu
C21: =Maerz!$C$1 -> 0 | D21: =INDEX([0]!maerz,$B$1,3) -> 0 | E21: =D21*2.25 -> 0 | G21: =IF(Maerz!$AH$1=0,"",Maerz!AH$1) ->  | H21: =INDEX([0]!maerz,$B$1,34) -> 0
C22: =Maerz!$D$1 -> 0 | D22: =INDEX([0]!maerz,$B$1,4) -> 0 | E22: 0 | G22: =IF(Maerz!$AI$1=0,"",Maerz!AI$1) ->  | H22: =INDEX([0]!maerz,$B$1,35) -> 0
C23: =Maerz!$E$1 -> 0 | D23: =INDEX([0]!maerz,$B$1,5) -> 0 | E23: 0 | G23: =IF(Maerz!$AJ$1=0,"",Maerz!AJ$1) ->  | H23: =INDEX([0]!maerz,$B$1,36) -> 0
C24: =Maerz!$F$1 -> 0 | D24: =INDEX([0]!maerz,$B$1,6) -> 0 | E24: 0 | G24: =IF(Maerz!$AK$1=0,"",Maerz!AK$1) -> 
C25: =Maerz!$G$1 -> 0 | D25: =INDEX([0]!maerz,$B$1,7) -> 0 | E25: 0
C26: =Maerz!$H$1 -> 0 | D26: =INDEX([0]!maerz,$B$1,8) -> 0 | E26: 0 | G26: Gesamt: | H26: =SUM(H20:H25) -> 0
C27: =Maerz!$I$1 -> 0 | D27: =INDEX([0]!maerz,$B$1,9) -> 0 | E27: 0
C28: =Maerz!$J$1 -> 0 | D28: =INDEX([0]!maerz,$B$1,10) -> 0 | E28: 0
C29: =Maerz!$K$1 -> 0 | D29: =INDEX([0]!maerz,$B$1,11) -> 0 | E29: 0
C30: =Maerz!$L$1 -> 0 | D30: =INDEX([0]!maerz,$B$1,12) -> 0 | E30: 0
C31: =Maerz!$M$1 -> 0 | D31: =INDEX([0]!maerz,$B$1,13) -> 0 | E31: 0
C32: =Maerz!$N$1 -> 0 | D32: =INDEX([0]!maerz,$B$1,14) -> 0 | E32: 0
C33: =Maerz!$O$1 -> 0 | D33: =INDEX([0]!maerz,$B$1,15) -> 0 | E33: 0
C34: =Maerz!$P$1 -> 0 | D34: =INDEX([0]!maerz,$B$1,16) -> 0 | E34: 0
C35: =Maerz!$Q$1 -> 0 | D35: =INDEX([0]!maerz,$B$1,17) -> 0 | E35: 0
C36: =Maerz!$R$1 -> 0 | D36: =INDEX([0]!maerz,$B$1,18) -> 0 | E36: 0
C37: =Maerz!$S$1 -> 0 | D37: =INDEX([0]!maerz,$B$1,19) -> 0 | E37: 0
C38: =Maerz!$T$1 -> 0 | D38: =INDEX([0]!maerz,$B$1,20) -> 0 | E38: 0
C39: =Maerz!$U$1 -> 0 | D39: =INDEX([0]!maerz,$B$1,21) -> 0 | E39: 0
C40: =Maerz!$X$1 -> 0 | D40: =INDEX([0]!maerz,$B$1,22) -> 0 | E40: 0
B41: SUMME 1 | D41: =SUM(D21:D40) -> 0 | E41: =SUM(E21:E40) -> 0 | G41: Stunden (nach FB-Anzahl) | H41: =INDEX([0]!maerz,$B$1,26) -> 0
A43: Zusätze: | B43: Bezeichung
B44: =Maerz!$AE$1 -> Summe BIM in EURO
B46: Summe Spezialtest | E46: =H26 -> 0
B47: =Maerz!$AL$1 -> Std. /Entgelt Verteilung | E47: =INDEX([0]!maerz,$B$1,38) -> 0
B48: GESAMT NETTO | E48: =SUM(E41:E47) -> 0
C49: Kilometergeld | E49: =INDEX([0]!maerz,$B$1,40) -> 0
C50: Pauschale 25% | E50: =INDEX([0]!maerz,$B$1,41) -> 0
G52: Bemerkungen:
B54: GESAMT in € | E54: =E48+E49+E50+E51+E53+E52 -> 0 | G54: FB = Anzahl der Fragebogen
A57: Der Betrag wird bis zum 10. des folgenden Monats überwiesen.
A70: Prorata Marktforschung GmbH • Marienglacis 37 • 32427 Minden • tel 0571.82875.0 fax • 0571.82875.99 • www.prorata.de • info@prorata.de

Sheet April
B1: Testnummer / Testerin | Z1: Anz. | AA1: Std. | AB1: Summe in EURO | AF1: Summe BIM in EURO | AG1: Stammdaten | AM1: Std. /Entgelt | AN1: Gesamt NETTO* in EURO | AO1: km x XXeurocent | AP1: Telef./Porto | AQ1: Pauschale 25% | AR1: Gesamt in EURO | AU1: 2.55
A2: 1 | Z2: =SUM(C2:Y2) -> 0 | AB2: =SUM(Z2*2.25) -> 0 | AF2: =(AC2+AD2+AE2)*2.25 -> 0 | AN2: =AB2+AF2+AG2+AI2+AJ2+AK2+AL2+AM2+AH2 -> 0 | AR2: =AN2+AO2+AP2+AQ2 -> 0
A3: 2 | B3: Gundlach | Z3: 0 | AB3: 0 | AF3: =(AC3+AD3+AE3)*2.25 -> 0 | AN3: 0 | AO3: =Z3*2.75 -> 0 | AR3: 0 | AT3: 9 | AU3: =$AU$1*AT3 -> 22.95
A4: 3 | B4: Heine | Z4: 0 | AB4: 0 | AF4: 0 | AN4: 0 | AO4: =Z4*2.75 -> 0 | AR4: 0 | AT4: 6 | AU4: =$AU$1*AT4 -> 15.3
A5: 4 | B5: Korte, Inge | Z5: 0 | AA5: =Z5/4 -> 0 | AB5: 0 | AF5: 0 | AN5: 0 | AO5: 0 | AR5: 0 | AT5: 6 | AU5: 15.3
A6: 5 | B6: Tölkemeier, Petra | Z6: 0 | AA6: =Z6/4 -> 0 | AB6: 0 | AF6: 0 | AN6: 0 | AO6: 0 | AR6: 0 | AT6: 6 | AU6: 15.3
A7: 6 | B7: Rohlfing, Anja | Z7: 0 | AA7: 0 | AB7: 0 | AF7: 0 | AN7: 0 | AO7: 0 | AR7: 0 | AU7: 0
A8: 7 | B8: Aumann, Elfriede | Z8: 0 | AA8: 0 | AB8: 0 | AF8: 0 | AN8: 0 | AO8: 0 | AR8: 0 | AT8: 14 | AU8: 35.7
A9: 8 | Z9: 0 | AA9: 0 | AB9: 0 | AF9: 0 | AN9: 0 | AO9: 0 | AR9: 0 | AU9: 0
A10: 9 | B10: Kilzer, Andreas | Z10: 0 | AA10: 0 | AB10: 0 | AF10: 0 | AN10: 0 | AO10: 0 | AR10: 0 | AT10: 26 | AU10: 66.3
A11: 10 | B11: Rakowski, Sigrid | Z11: 0 | AA11: 0 | AB11: 0 | AF11: 0 | AN11: 0 | AO11: =Z11*2.75 -> 0 | AR11: 0 | AT11: 14 | AU11: 35.7
A12: 11 | Z12: 0 | AA12: 0 | AB12: 0 | AF12: 0 | AN12: 0 | AO12: 0 | AR12: 0 | AU12: 0
A13: 12 | B13: Drewes, Andrea | Z13: 0 | AA13: 0 | AB13: 0 | AF13: 0 | AN13: 0 | AO13: 0 | AR13: 0 | AT13: 10 | AU13: 25.5
A14: 13 | Z14: 0 | AA14: 0 | AB14: 0 | AF14: 0 | AN14: 0 | AO14: 0 | AR14: 0 | AT14: 16 | AU14: 40.8
A15: 14 | B15: Grabbe , Nadja | Z15: 0 | AA15: 0 | AB15: 0 | AF15: 0 | AN15: 0 | AO15: 0 | AR15: 0 | AT15: 6 | AU15: 15.3
A16: 15 | B16: Sassenberg, Julia | Z16: 0 | AA16: 0 | AB16: 0 | AF16: 0 | AN16: 0 | AO16: 0 | AR16: 0 | AU16: 0
A17: 16 | Z17: 0 | AA17: 0 | AB17: 0 | AF17: 0 | AN17: 0 | AO17: 0 | AR17: 0 | AU17: 0
A18: 17 | Z18: 0 | AA18: 0 | AB18: 0 | AF18: 0 | AN18: 0 | AO18: 0 | AR18: 0 | AU18: 0
A19: 18 | Z19: 0 | AA19: 0 | AB19: 0 | AF19: 0 | AN19: 0 | AO19: 0 | AR19: 0 | AU19: 0
A20: 19 | B20: Blaha, Heinz | Z20: 0 | AA20: 0 | AB20: 0 | AF20: 0 | AN20: 0 | AO20: 0 | AR20: 0 | AT20: 6 | AU20: 15.3
A21: 20 | Z21: 0 | AA21: 0 | AB21: 0 | AF21: 0 | AN21: 0 | AO21: 0 | AR21: 0 | AU21: 0
A22: 21 | B22: Weichenhan, Rainer | Z22: 0 | AA22: 0 | AB22: 0 | AF22: 0 | AN22: 0 | AO22: =Z22*2.75 -> 0 | AR22: 0 | AU22: 0
A23: 22 | B23: Lill, Ulrich | Z23: 0 | AA23: 0 | AB23: 0 | AF23: 0 | AN23: 0 | AO23: 0 | AR23: 0 | AT23: 6 | AU23: 15.3
A24: 23 | Z24: 0 | AA24: 0 | AB24: 0 | AF24: 0 | AN24: 0 | AO24: 0 | AR24: 0 | AU24: 0
A25: 24 | B25: Hübsch, Karl-Heinz | Z25: 0 | AA25: 0 | AB25: 0 | AF25: 0 | AN25: 0 | AO25: 0 | AR25: 0 | AT25: 11 | AU25: 28.05
A26: 25 | B26: Feigel-Kipp, Claudia | Z26: 0 | AA26: 0 | AB26: 0 | AF26: 0 | AN26: 0 | AO26: 0 | AR26: 0 | AT26: 6 | AU26: 15.3
A27: 26 | Z27: 0 | AA27: 0 | AB27: 0 | AF27: 0 | AN27: 0 | AO27: 0 | AR27: 0 | AU27: 0
A28: 27 | Z28: 0 | AA28: 0 | AB28: 0 | AF28: 0 | AN28: 0 | AO28: 0 | AR28: 0 | AU28: 0
A29: 28 | Z29: 0 | AA29: 0 | AB29: 0 | AF29: 0 | AN29: 0 | AO29: 0 | AR29: 0 | AU29: 0
A30: 29 | B30: Scholz, Stella | Z30: 0 | AA30: 0 | AB30: 0 | AF30: 0 | AN30: 0 | AO30: 0 | AR30: 0 | AT30: 0 | AU30: 0
A31: 30 | B31: Hachmeister, Stefan | Z31: 0 | AA31: 0 | AB31: 0 | AF31: 0 | AN31: 0 | AO31: 0 | AR31: 0 | AT31: 10 | AU31: 25.5
A32: 31 | Z32: 0 | AA32: 0 | AB32: 0 | AF32: 0 | AN32: 0 | AO32: 0 | AR32: 0 | AU32: 0
A33: 32 | Z33: 0 | AA33: 0 | AB33: 0 | AF33: 0 | AN33: 0 | AO33: 0 | AR33: 0 | AU33: 0
A34: 33 | Z34: 0 | AA34: 0 | AB34: 0 | AF34: 0 | AN34: 0 | AO34: 0 | AR34: 0 | AU34: 0
A35: 34 | Z35: 0 | AA35: 0 | AB35: 0 | AF35: 0 | AN35: 0 | AO35: 0 | AR35: 0 | AU35: 0
A36: 35 | Z36: 0 | AA36: 0 | AB36: 0 | AF36: 0 | AN36: 0 | AO36: 0 | AR36: 0 | AU36: 0
A37: 36 | B37: Selle, Monika | Z37: 0 | AA37: 0 | AB37: 0 | AF37: 0 | AN37: 0 | AO37: 0 | AR37: 0 | AT37: 15 | AU37: 38.25
A38: 37 | B38: Sander, Eva-Maria | Z38: 0 | AA38: 0 | AB38: 0 | AF38: 0 | AN38: 0 | AO38: 0 | AR38: 0 | AT38: 11 | AU38: 28.05
A39: 38 | B39: Sander, Jessica | Z39: 0 | AA39: 0 | AB39: 0 | AF39: 0 | AN39: 0 | AO39: =Z39*2.75 -> 0 | AR39: 0 | AU39: 0
A40: 39 | B40: Wiese-Schmutzer, Armgard | Z40: 0 | AA40: 0 | AB40: 0 | AF40: 0 | AN40: 0 | AO40: 0 | AR40: 0 | AU40: 0
A41: 40 | Z41: 0 | AA41: 0 | AB41: 0 | AF41: 0 | AN41: 0 | AO41: 0 | AR41: 0 | AU41: 0
A42: 41 | Z42: 0 | AA42: 0 | AB42: 0 | AF42: 0 | AN42: 0 | AO42: 0 | AR42: 0 | AU42: 0
A43: 42 | Z43: 0 | AA43: 0 | AB43: 0 | AF43: 0 | AN43: 0 | AO43: 0 | AR43: 0 | AU43: 0
A44: 43 | Z44: 0 | AA44: 0 | AB44: 0 | AF44: 0 | AN44: 0 | AO44: 0 | AR44: 0 | AU44: 0
A45: 44 | Z45: 0 | AA45: 0 | AB45: 0 | AF45: 0 | AN45: 0 | AO45: 0 | AR45: 0 | AU45: 0
A46: 45 | Z46: 0 | AA46: 0 | AB46: 0 | AF46: 0 | AN46: 0 | AO46: 0 | AR46: 0 | AU46: 0
A47: 46 | Z47: 0 | AA47: 0 | AB47: 0 | AF47: 0 | AN47: 0 | AO47: 0 | AR47: 0 | AU47: 0
A48: 47 | Z48: 0 | AA48: 0 | AB48: 0 | AF48: 0 | AN48: 0 | AO48: 0 | AR48: 0 | AU48: 0
A49: 48 | Z49: 0 | AA49: 0 | AB49: 0 | AF49: 0 | AN49: 0 | AO49: 0 | AR49: 0 | AU49: 0
A50: 49 | Z50: 0 | AA50: 0 | AB50: 0 | AF50: 0 | AN50: 0 | AO50: 0 | AR50: 0 | AU50: 0
A51: 50 | Z51: 0 | AA51: 0 | AB51: 0 | AF51: 0 | AN51: 0 | AO51: 0 | AR51: 0 | AU51: 0
A52: 51 | Z52: 0 | AA52: 0 | AB52: 0 | AF52: 0 | AN52: 0 | AO52: 0 | AR52: 0 | AU52: 0
A53: 52 | Z53: 0 | AA53: 0 | AB53: 0 | AF53: 0 | AN53: 0 | AO53: 0 | AR53: 0 | AU53: 0
A54: 53 | Z54: 0 | AA54: 0 | AB54: 0 | AF54: 0 | AN54: 0 | AO54: 0 | AR54: 0 | AU54: 0
A55: 54 | Z55: 0 | AA55: 0 | AB55: 0 | AF55: 0 | AN55: 0 | AO55: 0 | AR55: 0 | AU55: 0
A56: 55 | Z56: 0 | AA56: 0 | AB56: 0 | AF56: 0 | AN56: 0 | AO56: 0 | AR56: 0 | AU56: 0
A57: 56 | Z57: 0 | AA57: 0 | AB57: 0 | AF57: 0 | AN57: 0 | AO57: 0 | AR57: 0 | AU57: 0
A58: 57 | Z58: 0 | AA58: 0 | AB58: 0 | AF58: 0 | AN58: 0 | AO58: 0 | AR58: 0 | AU58: 0
A59: 58 | Z59: 0 | AA59: 0 | AB59: 0 | AF59: 0 | AN59: 0 | AO59: 0 | AR59: 0 | AU59: 0
A60: 59 | Z60: 0 | AA60: 0 | AB60: 0 | AF60: 0 | AN60: 0 | AO60: 0 | AR60: 0 | AU60: 0
A61: 60 | Z61: 0 | AA61: 0 | AB61: 0 | AF61: 0 | AN61: 0 | AO61: 0 | AR61: 0 | AU61: 0
A62: 61 | Z62: 0 | AA62: 0 | AB62: 0 | AF62: 0 | AN62: 0 | AO62: 0 | AR62: 0 | AT62: 6 | AU62: 15.3
A63: 62 | Z63: 0 | AA63: 0 | AB63: 0 | AF63: 0 | AN63: 0 | AO63: 0 | AR63: 0 | AU63: 0
A64: 63 | Z64: 0 | AA64: 0 | AB64: 0 | AF64: 0 | AN64: 0 | AO64: 0 | AR64: 0 | AU64: 0
A65: 64 | Z65: 0 | AA65: 0 | AB65: 0 | AF65: 0 | AN65: 0 | AO65: 0 | AR65: 0 | AU65: 0
A66: 65 | Z66: =SUM(C66:Y66) -> 0 | AA66: 0 | AB66: =SUM(Z66*2.25) -> 0 | AF66: 0 | AN66: =AB66+AF66+AG66+AI66+AJ66+AK66+AL66+AM66+AH66 -> 0 | AO66: 0 | AR66: =AN66+AO66+AP66+AQ66 -> 0 | AU66: 0
A67: 66 | Z67: 0 | AA67: 0 | AB67: 0 | AF67: =(AC67+AD67+AE67)*2.25 -> 0 | AN67: 0 | AO67: 0 | AR67: 0 | AU67: 0
A68: 67 | Z68: 0 | AA68: 0 | AB68: 0 | AF68: 0 | AN68: 0 | AO68: =Z68*2.75 -> 0 | AR68: 0 | AU68: =$AU$1*AT68 -> 0
A69: 68 | Z69: 0 | AA69: 0 | AB69: 0 | AF69: 0 | AN69: 0 | AO69: 0 | AR69: 0 | AU69: 0
A70: 69 | Z70: 0 | AA70: =Z70/4 -> 0 | AB70: 0 | AF70: 0 | AN70: 0 | AO70: 0 | AR70: 0 | AU70: 0
A71: 70 | Z71: 0 | AA71: 0 | AB71: 0 | AF71: 0 | AN71: 0 | AO71: 0 | AR71: 0 | AU71: 0
A72: 71 | Z72: 0 | AA72: 0 | AB72: 0 | AF72: 0 | AN72: 0 | AO72: 0 | AR72: 0 | AU72: 0
A73: 72 | Z73: 0 | AA73: 0 | AB73: 0 | AF73: 0 | AN73: 0 | AO73: 0 | AR73: 0 | AU73: 0
A74: 73 | Z74: 0 | AA74: 0 | AB74: 0 | AF74: 0 | AN74: 0 | AO74: 0 | AR74: 0 | AU74: 0
A75: 74 | Z75: 0 | AA75: 0 | AB75: 0 | AF75: 0 | AN75: 0 | AO75: 0 | AR75: 0 | AU75: 0
A76: 75 | Z76: 0 | AA76: 0 | AB76: 0 | AF76: 0 | AN76: 0 | AO76: 0 | AR76: 0 | AU76: 0
A77: 76 | Z77: 0 | AA77: 0 | AB77: 0 | AF77: 0 | AN77: 0 | AO77: 0 | AR77: 0 | AU77: 0
A78: 77 | Z78: 0 | AA78: 0 | AB78: 0 | AF78: 0 | AN78: 0 | AO78: 0 | AR78: 0 | AU78: 0
A79: 78 | Z79: 0 | AA79: 0 | AB79: 0 | AF79: 0 | AN79: 0 | AO79: 0 | AR79: 0 | AU79: 0
A80: 79 | Z80: 0 | AA80: 0 | AB80: 0 | AF80: 0 | AN80: 0 | AO80: 0 | AR80: 0 | AU80: 0
A81: 80 | Z81: 0 | AA81: 0 | AB81: 0 | AF81: 0 | AN81: 0 | AO81: 0 | AR81: 0 | AU81: 0
A82: 81 | Z82: 0 | AA82: 0 | AB82: 0 | AF82: 0 | AN82: 0 | AO82: 0 | AR82: 0 | AU82: 0
A83: 82 | Z83: 0 | AA83: 0 | AB83: 0 | AF83: 0 | AN83: 0 | AO83: 0 | AR83: 0 | AU83: 0
A84: 83 | Z84: 0 | AA84: 0 | AB84: 0 | AF84: 0 | AN84: 0 | AO84: 0 | AR84: 0 | AU84: 0
A85: 84 | Z85: 0 | AA85: 0 | AB85: 0 | AF85: 0 | AN85: 0 | AO85: 0 | AR85: 0 | AU85: 0
A86: 85 | Z86: 0 | AA86: 0 | AB86: 0 | AF86: 0 | AN86: 0 | AO86: 0 | AR86: 0 | AU86: 0
A87: 86 | Z87: 0 | AA87: 0 | AB87: 0 | AF87: 0 | AN87: 0 | AO87: 0 | AR87: 0 | AU87: 0
A88: 87 | Z88: 0 | AA88: 0 | AB88: 0 | AF88: 0 | AN88: 0 | AO88: 0 | AR88: 0 | AU88: 0
A89: 88 | Z89: 0 | AA89: 0 | AB89: 0 | AF89: 0 | AN89: 0 | AO89: 0 | AR89: 0 | AU89: 0
A90: 89 | Z90: 0 | AA90: 0 | AB90: 0 | AF90: 0 | AN90: 0 | AO90: 0 | AR90: 0 | AU90: 0
A91: 90 | Z91: 0 | AA91: 0 | AB91: 0 | AF91: 0 | AN91: 0 | AO91: 0 | AR91: 0 | AU91: 0
A92: 91 | Z92: 0 | AA92: 0 | AB92: 0 | AF92: 0 | AN92: 0 | AO92: 0 | AR92: 0 | AU92: 0
A93: 92 | Z93: 0 | AA93: 0 | AB93: 0 | AF93: 0 | AN93: 0 | AO93: 0 | AR93: 0 | AU93: 0
A94: 93 | Z94: 0 | AA94: 0 | AB94: 0 | AF94: 0 | AN94: 0 | AO94: 0 | AR94: 0 | AU94: 0
A95: 94 | Z95: 0 | AA95: 0 | AB95: 0 | AF95: 0 | AN95: 0 | AO95: 0 | AR95: 0 | AU95: 0
A96: 95 | Z96: 0 | AA96: 0 | AB96: 0 | AF96: 0 | AN96: 0 | AO96: 0 | AR96: 0 | AU96: 0
A97: 96 | Z97: 0 | AA97: 0 | AB97: 0 | AF97: 0 | AN97: 0 | AO97: 0 | AR97: 0 | AU97: 0
A98: 97 | Z98: 0 | AA98: 0 | AB98: 0 | AF98: 0 | AN98: 0 | AO98: 0 | AR98: 0 | AU98: 0
A99: 98 | Z99: 0 | AA99: 0 | AB99: 0 | AF99: 0 | AN99: 0 | AO99: 0 | AR99: 0 | AU99: 0
A100: 99 | Z100: 0 | AA100: 0 | AB100: 0 | AF100: 0 | AN100: 0 | AO100: 0 | AR100: 0 | AU100: 0
A101: 100 | Z101: 0 | AA101: 0 | AB101: 0 | AF101: 0 | AN101: 0 | AO101: 0 | AR101: 0 | AU101: 0
A102: 101 | Z102: 0 | AA102: 0 | AB102: 0 | AF102: 0 | AN102: 0 | AO102: 0 | AR102: 0 | AU102: 0
A103: 102 | Z103: 0 | AA103: 0 | AB103: 0 | AF103: 0 | AN103: 0 | AO103: 0 | AR103: 0 | AU103: 0
A104: 103 | Z104: 0 | AA104: 0 | AB104: 0 | AF104: 0 | AN104: 0 | AO104: 0 | AR104: 0 | AU104: 0
A105: 104 | Z105: 0 | AA105: 0 | AB105: 0 | AF105: 0 | AN105: 0 | AO105: 0 | AR105: 0 | AU105: 0
A106: 105 | Z106: 0 | AA106: 0 | AB106: 0 | AF106: 0 | AN106: 0 | AO106: 0 | AR106: 0 | AU106: 0
A107: 106 | Z107: 0 | AA107: 0 | AB107: 0 | AF107: 0 | AN107: 0 | AO107: 0 | AR107: 0 | AU107: 0
A108: 107 | Z108: 0 | AA108: 0 | AB108: 0 | AF108: 0 | AN108: 0 | AO108: 0 | AR108: 0 | AU108: 0
A109: 108 | Z109: 0 | AA109: 0 | AB109: 0 | AF109: 0 | AN109: 0 | AO109: 0 | AR109: 0 | AU109: 0
A110: 109 | Z110: 0 | AA110: 0 | AB110: 0 | AF110: 0 | AN110: 0 | AO110: 0 | AR110: 0 | AU110: 0
A111: 110 | B111: Kruse, Brigitte | Z111: 0 | AA111: 0 | AB111: 0 | AF111: 0 | AN111: 0 | AO111: 0 | AR111: 0 | AT111: 0 | AU111: 0
A112: 111 | Z112: 0 | AA112: 0 | AB112: 0 | AF112: 0 | AN112: 0 | AO112: 0 | AR112: 0 | AU112: 0
A113: 112 | Z113: 0 | AA113: 0 | AB113: 0 | AF113: 0 | AN113: 0 | AO113: 0 | AR113: 0 | AU113: 0
A114: 113 | Z114: 0 | AA114: 0 | AB114: 0 | AF114: 0 | AN114: 0 | AO114: 0 | AR114: 0 | AU114: 0
A115: 114 | Z115: 0 | AA115: 0 | AB115: 0 | AF115: 0 | AN115: 0 | AO115: 0 | AR115: 0 | AU115: 0
A116: 115 | Z116: 0 | AA116: 0 | AB116: 0 | AF116: 0 | AN116: 0 | AO116: 0 | AR116: 0 | AU116: 0
A117: 116 | Z117: 0 | AA117: 0 | AB117: 0 | AF117: 0 | AN117: 0 | AO117: 0 | AR117: 0 | AU117: 0
A118: 117 | Z118: 0 | AA118: 0 | AB118: 0 | AF118: 0 | AN118: 0 | AO118: 0 | AR118: 0 | AU118: 0
A119: 118 | Z119: 0 | AA119: 0 | AB119: 0 | AF119: 0 | AN119: 0 | AO119: 0 | AR119: 0 | AU119: 0
A120: 119 | Z120: 0 | AA120: 0 | AB120: 0 | AF120: 0 | AN120: 0 | AO120: 0 | AR120: 0 | AU120: 0
A121: 120 | Z121: 0 | AA121: 0 | AB121: 0 | AF121: 0 | AN121: 0 | AO121: 0 | AR121: 0 | AU121: 0
A122: 121 | Z122: 0 | AA122: 0 | AB122: 0 | AF122: 0 | AN122: 0 | AO122: 0 | AR122: 0 | AU122: 0
A123: 122 | Z123: 0 | AA123: 0 | AB123: 0 | AF123: 0 | AN123: 0 | AO123: 0 | AR123: 0 | AU123: 0
A124: 123 | Z124: 0 | AA124: 0 | AB124: 0 | AF124: 0 | AN124: 0 | AO124: 0 | AR124: 0 | AU124: 0
A125: 124 | Z125: 0 | AA125: 0 | AB125: 0 | AF125: 0 | AN125: 0 | AO125: 0 | AR125: 0 | AU125: 0
A126: 125 | Z126: 0 | AA126: 0 | AB126: 0 | AF126: 0 | AN126: 0 | AO126: 0 | AR126: 0 | AU126: 0
A127: 126 | Z127: 0 | AA127: 0 | AB127: 0 | AF127: 0 | AN127: 0 | AO127: 0 | AR127: 0 | AU127: 0
A128: 127 | Z128: 0 | AA128: 0 | AB128: 0 | AF128: 0 | AN128: 0 | AO128: 0 | AR128: 0 | AU128: 0
A129: 128 | Z129: 0 | AA129: 0 | AB129: 0 | AF129: 0 | AN129: 0 | AO129: 0 | AR129: 0 | AU129: 0
A130: 129 | Z130: =SUM(C130:Y130) -> 0 | AA130: 0 | AB130: =SUM(Z130*2.25) -> 0 | AF130: 0 | AN130: =AB130+AF130+AG130+AI130+AJ130+AK130+AL130+AM130+AH130 -> 0 | AO130: 0 | AR130: =AN130+AO130+AP130+AQ130 -> 0 | AU130: 0
A131: 130 | Z131: 0 | AA131: 0 | AB131: 0 | AF131: =(AC131+AD131+AE131)*2.25 -> 0 | AN131: 0 | AO131: 0 | AR131: 0 | AU131: 0
A132: 131 | Z132: 0 | AA132: 0 | AB132: 0 | AF132: 0 | AN132: 0 | AO132: =Z132*2.75 -> 0 | AR132: 0 | AU132: =$AU$1*AT132 -> 0
A133: 132 | Z133: 0 | AA133: 0 | AB133: 0 | AF133: 0 | AN133: 0 | AO133: 0 | AR133: 0 | AU133: 0
A134: 133 | Z134: 0 | AA134: =Z134/4 -> 0 | AB134: 0 | AF134: 0 | AN134: 0 | AO134: 0 | AR134: 0 | AU134: 0
A135: 134 | Z135: 0 | AA135: 0 | AB135: 0 | AF135: 0 | AN135: 0 | AO135: 0 | AR135: 0 | AU135: 0
A136: 135 | Z136: 0 | AA136: 0 | AB136: 0 | AF136: 0 | AN136: 0 | AO136: 0 | AR136: 0 | AU136: 0
A137: 136 | Z137: 0 | AA137: 0 | AB137: 0 | AF137: 0 | AN137: 0 | AO137: 0 | AR137: 0 | AU137: 0
A138: 137 | Z138: 0 | AA138: 0 | AB138: 0 | AF138: 0 | AN138: 0 | AO138: 0 | AR138: 0 | AU138: 0
A139: 138 | Z139: 0 | AA139: 0 | AB139: 0 | AF139: 0 | AN139: 0 | AO139: 0 | AR139: 0 | AU139: 0
A140: 139 | Z140: 0 | AA140: 0 | AB140: 0 | AF140: 0 | AN140: 0 | AO140: 0 | AR140: 0 | AU140: 0
A141: 140 | Z141: 0 | AA141: 0 | AB141: 0 | AF141: 0 | AN141: 0 | AO141: 0 | AR141: 0 | AU141: 0
A142: 141 | Z142: 0 | AA142: 0 | AB142: 0 | AF142: 0 | AN142: 0 | AO142: 0 | AR142: 0 | AU142: 0
A143: 142 | Z143: 0 | AA143: 0 | AB143: 0 | AF143: 0 | AN143: 0 | AO143: 0 | AR143: 0 | AU143: 0
A144: 143 | Z144: 0 | AA144: 0 | AB144: 0 | AF144: 0 | AN144: 0 | AO144: 0 | AR144: 0 | AU144: 0
A145: 144 | Z145: 0 | AA145: 0 | AB145: 0 | AF145: 0 | AN145: 0 | AO145: 0 | AR145: 0 | AU145: 0
A146: 145 | Z146: 0 | AA146: 0 | AB146: 0 | AF146: 0 | AN146: 0 | AO146: 0 | AR146: 0 | AU146: 0
A147: 146 | Z147: 0 | AA147: 0 | AB147: 0 | AF147: 0 | AN147: 0 | AO147: 0 | AR147: 0 | AU147: 0
A148: 147 | Z148: 0 | AA148: 0 | AB148: 0 | AF148: 0 | AN148: 0 | AO148: 0 | AR148: 0 | AU148: 0
A149: 148 | Z149: 0 | AA149: 0 | AB149: 0 | AF149: 0 | AN149: 0 | AO149: 0 | AR149: 0 | AU149: 0
A150: 149 | Z150: 0 | AA150: 0 | AB150: 0 | AF150: 0 | AN150: 0 | AO150: 0 | AR150: 0 | AU150: 0
A151: 150 | Z151: 0 | AA151: 0 | AB151: 0 | AF151: 0 | AN151: 0 | AO151: 0 | AR151: 0 | AU151: 0
A152: 151 | Z152: 0 | AA152: 0 | AB152: 0 | AF152: 0 | AN152: 0 | AO152: 0 | AR152: 0 | AU152: 0
A153: 152 | Z153: 0 | AA153: 0 | AB153: 0 | AF153: 0 | AN153: 0 | AO153: 0 | AR153: 0 | AU153: 0
A154: 153 | Z154: 0 | AA154: 0 | AB154: 0 | AF154: 0 | AN154: 0 | AO154: 0 | AR154: 0 | AU154: 0
A155: 154 | Z155: 0 | AA155: 0 | AB155: 0 | AF155: 0 | AN155: 0 | AO155: 0 | AR155: 0 | AU155: 0
A156: 155 | Z156: 0 | AA156: 0 | AB156: 0 | AF156: 0 | AN156: 0 | AO156: 0 | AR156: 0 | AU156: 0
A157: 156 | Z157: 0 | AA157: 0 | AB157: 0 | AF157: 0 | AN157: 0 | AO157: 0 | AR157: 0 | AU157: 0
A158: 157 | Z158: 0 | AA158: 0 | AB158: 0 | AF158: 0 | AN158: 0 | AO158: 0 | AR158: 0 | AU158: 0
A159: 158 | Z159: 0 | AA159: 0 | AB159: 0 | AF159: 0 | AN159: 0 | AO159: 0 | AR159: 0 | AU159: 0
A160: 159 | Z160: 0 | AA160: 0 | AB160: 0 | AF160: 0 | AN160: 0 | AO160: 0 | AR160: 0 | AU160: 0
A161: 160 | Z161: 0 | AA161: 0 | AB161: 0 | AF161: 0 | AN161: 0 | AO161: 0 | AR161: 0 | AU161: 0
A162: 161 | Z162: 0 | AA162: 0 | AB162: 0 | AF162: 0 | AN162: 0 | AO162: 0 | AR162: 0 | AU162: 0
A163: 162 | Z163: 0 | AA163: 0 | AB163: 0 | AF163: 0 | AN163: 0 | AO163: 0 | AR163: 0 | AU163: 0
A164: 163 | Z164: 0 | AA164: 0 | AB164: 0 | AF164: 0 | AN164: 0 | AO164: 0 | AR164: 0 | AU164: 0
A165: 164 | Z165: 0 | AA165: 0 | AB165: 0 | AF165: 0 | AN165: 0 | AO165: 0 | AR165: 0 | AU165: 0
A166: 165 | Z166: 0 | AA166: 0 | AB166: 0 | AF166: 0 | AN166: 0 | AO166: 0 | AR166: 0 | AU166: 0
A167: 166 | Z167: 0 | AA167: 0 | AB167: 0 | AF167: 0 | AN167: 0 | AO167: 0 | AR167: 0 | AU167: 0
A168: 167 | Z168: 0 | AA168: 0 | AB168: 0 | AF168: 0 | AN168: 0 | AO168: 0 | AR168: 0 | AU168: 0
A169: 168 | Z169: 0 | AA169: 0 | AB169: 0 | AF169: 0 | AN169: 0 | AO169: 0 | AR169: 0 | AU169: 0
A170: 169 | Z170: 0 | AA170: 0 | AB170: 0 | AF170: 0 | AN170: 0 | AO170: 0 | AR170: 0 | AU170: 0
A171: 170 | Z171: 0 | AA171: 0 | AB171: 0 | AF171: 0 | AN171: 0 | AO171: 0 | AR171: 0 | AU171: 0
A172: 171 | Z172: 0 | AA172: 0 | AB172: 0 | AF172: 0 | AN172: 0 | AO172: 0 | AR172: 0 | AU172: 0
A173: 172 | Z173: 0 | AA173: 0 | AB173: 0 | AF173: 0 | AN173: 0 | AO173: 0 | AR173: 0 | AU173: 0
A174: 173 | Z174: 0 | AA174: 0 | AB174: 0 | AF174: 0 | AN174: 0 | AO174: 0 | AR174: 0 | AU174: 0
A175: 174 | Z175: 0 | AA175: 0 | AB175: 0 | AF175: 0 | AN175: 0 | AO175: 0 | AR175: 0 | AU175: 0
A176: 175 | Z176: 0 | AA176: 0 | AB176: 0 | AF176: 0 | AN176: 0 | AO176: 0 | AR176: 0 | AU176: 0
A177: 176 | Z177: 0 | AA177: 0 | AB177: 0 | AF177: 0 | AN177: 0 | AO177: 0 | AR177: 0 | AU177: 0
A178: 177 | Z178: 0 | AA178: 0 | AB178: 0 | AF178: 0 | AN178: 0 | AO178: 0 | AR178: 0 | AU178: 0
A179: 178 | Z179: 0 | AA179: 0 | AB179: 0 | AF179: 0 | AN179: 0 | AO179: 0 | AR179: 0 | AU179: 0
A180: 179 | Z180: 0 | AA180: 0 | AB180: 0 | AF180: 0 | AN180: 0 | AO180: 0 | AR180: 0 | AU180: 0
A181: 180 | Z181: 0 | AA181: 0 | AB181: 0 | AF181: 0 | AN181: 0 | AO181: 0 | AR181: 0 | AU181: 0
A182: 181 | Z182: 0 | AA182: 0 | AB182: 0 | AF182: 0 | AN182: 0 | AO182: 0 | AR182: 0 | AU182: 0
A183: 182 | Z183: 0 | AA183: 0 | AB183: 0 | AF183: 0 | AN183: 0 | AO183: 0 | AR183: 0 | AU183: 0
A184: 183 | Z184: 0 | AA184: 0 | AB184: 0 | AF184: 0 | AN184: 0 | AO184: 0 | AR184: 0 | AU184: 0
A185: 184 | Z185: 0 | AA185: 0 | AB185: 0 | AF185: 0 | AN185: 0 | AO185: 0 | AR185: 0 | AU185: 0
A186: 185 | Z186: 0 | AA186: 0 | AB186: 0 | AF186: 0 | AN186: 0 | AO186: 0 | AR186: 0 | AU186: 0
A187: 186 | Z187: 0 | AA187: 0 | AB187: 0 | AF187: 0 | AN187: 0 | AO187: 0 | AR187: 0 | AU187: 0
A188: 187 | Z188: 0 | AA188: 0 | AB188: 0 | AF188: 0 | AN188: 0 | AO188: 0 | AR188: 0 | AU188: 0
A189: 188 | Z189: 0 | AA189: 0 | AB189: 0 | AF189: 0 | AN189: 0 | AO189: 0 | AR189: 0 | AU189: 0
A190: 189 | Z190: 0 | AA190: 0 | AB190: 0 | AF190: 0 | AN190: 0 | AO190: 0 | AR190: 0 | AU190: 0
A191: 190 | Z191: 0 | AA191: 0 | AB191: 0 | AF191: 0 | AN191: 0 | AO191: 0 | AR191: 0 | AU191: 0
A192: 191 | Z192: 0 | AA192: 0 | AB192: 0 | AF192: 0 | AN192: 0 | AO192: 0 | AR192: 0 | AU192: 0
A193: 192 | Z193: 0 | AA193: 0 | AB193: 0 | AF193: 0 | AN193: 0 | AO193: 0 | AR193: 0 | AU193: 0
A194: 193 | Z194: =SUM(C194:Y194) -> 0 | AA194: 0 | AB194: =SUM(Z194*2.25) -> 0 | AF194: 0 | AN194: =AB194+AF194+AG194+AI194+AJ194+AK194+AL194+AM194+AH194 -> 0 | AO194: 0 | AR194: =AN194+AO194+AP194+AQ194 -> 0 | AU194: 0
A195: 194 | Z195: 0 | AA195: 0 | AB195: 0 | AF195: =(AC195+AD195+AE195)*2.25 -> 0 | AN195: 0 | AO195: 0 | AR195: 0 | AU195: 0
A196: 195 | Z196: 0 | AA196: 0 | AB196: 0 | AF196: 0 | AN196: 0 | AO196: =Z196*2.75 -> 0 | AR196: 0 | AU196: =$AU$1*AT196 -> 0
A197: 196 | Z197: 0 | AA197: 0 | AB197: 0 | AF197: 0 | AN197: 0 | AO197: 0 | AR197: 0 | AU197: 0
A198: 197 | Z198: 0 | AA198: =Z198/4 -> 0 | AB198: 0 | AF198: 0 | AN198: 0 | AO198: 0 | AR198: 0 | AU198: 0
A199: 198 | Z199: 0 | AA199: 0 | AB199: 0 | AF199: 0 | AN199: 0 | AO199: 0 | AR199: 0 | AU199: 0
A200: 199 | Z200: 0 | AA200: 0 | AB200: 0 | AF200: 0 | AN200: 0 | AO200: 0 | AR200: 0 | AU200: 0
... 112 more rows

Sheet 04-Abrechnung
A1: QuittungNR | B1: 211
A8: Mitarbeiter Nr.: | D8: MONATSABRECHNUNG | G8: April 2017
G10: Abrechnungszeitraum: 21.03 - 20.04
A13: =INDEX([1]!Datenbank2,$B$1,2)&" "&INDEX([1]!Datenbank2,$B$1,3) -> Christel Hachmeister | B13: Christel Hachmeister | C13: Christel Hachmeister | D13: Christel Hachmeister
A14: =INDEX([1]!Datenbank2,$B$1,4) -> Borsteler Bruch 4 | B14: Borsteler Bruch 4 | C14: Borsteler Bruch 4 | D14: Borsteler Bruch 4
A15: =INDEX([1]!Datenbank2,$B$1,5)&" "&INDEX([1]!Datenbank2,$B$1,6) -> 31749 Auetal
A19: Allgemeine Tests:
C20: TEST NR & DATUM | D20: FB | E20: Entgelt in EURO € | G20: Erläuterungen zu
C21: =April!$C$1 -> 0 | D21: =INDEX([0]!april,$B$1,3) -> 0 | E21: =D21*2.25 -> 0 | G21: Spezialtests:
C22: =April!$D$1 -> 0 | D22: =INDEX([0]!april,$B$1,4) -> 0 | E22: =D22*2.25 -> 0 | G22: =IF(April!$AH$1=0,"",April!AH$1) ->  | H22: =INDEX([0]!april,$B$1,34) -> 0
C23: =April!$E$1 -> 0 | D23: =INDEX([0]!april,$B$1,5) -> 0 | E23: 0 | G23: =IF(April!$AI$1=0,"",April!AI$1) ->  | H23: =INDEX([0]!april,$B$1,35) -> 0
C24: =April!$F$1 -> 0 | D24: =INDEX([0]!april,$B$1,6) -> 0 | E24: 0 | G24: =IF(April!$AJ$1=0,"",April!AJ$1) ->  | H24: =INDEX([0]!april,$B$1,36) -> 0
C25: =April!$G$1 -> 0 | D25: =INDEX([0]!april,$B$1,7) -> 0 | E25: 0 | G25: =IF(April!$AK$1=0,"",April!AK$1) ->  | H25: =INDEX([0]!april,$B$1,37) -> 0
C26: =April!$H$1 -> 0 | D26: =INDEX([0]!april,$B$1,8) -> 0 | E26: 0 | G26: =IF(April!$AL$1=0,"",April!AL$1) ->  | H26: =INDEX([0]!april,$B$1,38) -> 0
C27: =April!$I$1 -> 0 | D27: =INDEX([0]!april,$B$1,9) -> 0 | E27: 0
C28: =April!$J$1 -> 0 | D28: =INDEX([0]!april,$B$1,10) -> 0 | E28: 0 | G28: Gesamt | H28: =SUM(H22:H27) -> 0
C29: =April!$K$1 -> 0 | D29: =INDEX([0]!april,$B$1,11) -> 0 | E29: 0
C30: =April!$L$1 -> 0 | D30: =INDEX([0]!april,$B$1,12) -> 0 | E30: 0
C31: =April!$M$1 -> 0 | D31: =INDEX([0]!april,$B$1,13) -> 0 | E31: 0
C32: =April!$N$1 -> 0 | D32: =INDEX([0]!april,$B$1,14) -> 0 | E32: 0
C33: =April!$O$1 -> 0 | D33: =INDEX([0]!april,$B$1,15) -> 0 | E33: 0
C34: =April!$P$1 -> 0 | D34: =INDEX([0]!april,$B$1,16) -> 0 | E34: 0
C35: =April!$Q$1 -> 0 | D35: =INDEX([0]!april,$B$1,17) -> 0 | E35: 0
C36: =April!$R$1 -> 0 | D36: =INDEX([0]!april,$B$1,18) -> 0 | E36: 0
C37: =April!$S$1 -> 0 | D37: =INDEX([0]!april,$B$1,19) -> 0 | E37: 0
C38: =April!$T$1 -> 0 | D38: =INDEX([0]!april,$B$1,20) -> 0 | E38: 0
C39: =April!$U$1 -> 0 | D39: =INDEX([0]!april,$B$1,21) -> 0 | E39: 0
C40: =April!$V$1 -> 0 | D40: =INDEX([0]!april,$B$1,22) -> 0 | E40: =D40*2.25 -> 0
C41: =April!$W$1 -> 0 | D41: =INDEX([0]!april,$B$1,23) -> 0 | E41: 0
C42: =April!$X$1 -> 0 | D42: =INDEX([0]!april,$B$1,24) -> 0 | E42: 0
C43: =April!$Y$1 -> 0 | D43: =INDEX([0]!april,$B$1,25) -> 0 | E43: 0
B44: SUMME | D44: =SUM(D21:D43) -> 0 | E44: =SUM(E21:E43) -> 0 | G44: Stunden (nach FB-Anzahl) | H44: =INDEX([0]!april,$B$1,27) -> 0
A46: Zusätze: | B46: Bezeichung
B47: =April!$AF$1 -> Summe BIM in EURO | E47: =INDEX([0]!april,$B$1,32) -> 0
B48: =April!$AG$1 -> Stammdaten | E48: =INDEX([0]!april,$B$1,33) -> 0
B49: Summe Spezialtest | E49: =H28 -> 0 | G49: FB = Anzahl der Fragebogen
B50: =April!$AM$1 -> Std. /Entgelt | E50: =INDEX([0]!april,$B$1,39) -> 0
B51: GESAMT NETTO | E51: =SUM(E44:E50) -> 0
C52: Kilometergeld | E52: =INDEX([0]!april,$B$1,41) -> 0
C53: Porto/Telefon/Fax | E53: =INDEX([0]!april,$B$1,42) -> 0
C54: Pauschale 25% | E54: =INDEX([0]!april,$B$1,43) -> 0
B55: GESAMT in € | E55: =E51+E52+E53+E54 -> 0
A58: Der Betrag wird bis zum 10. des folgenden Monats überwiesen.
A65: Prorata Marktforschung GmbH • Marienglacis 37 • 32427 Minden • tel 0571.82875.0 fax • 0571.82875.99 • www.prorata.de • info@prorata.de

Sheet Mai
B1: Testnummer / Testerin | W1: Anz. | X1: Std. | Y1: Summe in EURO | AC1: Summe BIM in EURO | AD1: Stamm daten | AJ1: Std. /Entgelt | AK1: Gesamt NETTO* in EURO | AL1: km x XXeurocent | AM1: Telef./Porto | AN1: Pauschale 25% | AO1: Gesamt in EURO | AS1: 2.55
A2: 1 | W2: =SUM(C2:V2) -> 0 | Y2: =SUM(W2*2.25) -> 0 | AC2: =(Z2+AA2+AB2)*2.25 -> 0 | AK2: =Y2+AC2+AD2+AF2+AG2+AH2+AI2+AJ2+AE2 -> 0 | AO2: =AK2+AL2+AM2+AN2 -> 0
A3: 2 | B3: Gundlach | W3: 0 | Y3: 0 | AC3: =(Z3+AA3+AB3)*2.25 -> 0 | AK3: 0 | AL3: =W3*2.75 -> 0 | AO3: 0 | AR3: 9 | AS3: =AR3*$AS$1 -> 22.95
A4: 3 | B4: Heine | W4: 0 | Y4: 0 | AC4: 0 | AK4: 0 | AL4: =W4*2.75 -> 0 | AO4: 0 | AR4: 6 | AS4: =AR4*$AS$1 -> 15.3
A5: 4 | B5: Korte, Inge | W5: 0 | X5: =W5/4 -> 0 | Y5: 0 | AC5: 0 | AK5: 0 | AL5: 0 | AO5: 0 | AR5: 9 | AS5: 22.95
A6: 5 | B6: Tölkemeier, Petra | W6: 0 | X6: =W6/4 -> 0 | Y6: 0 | AC6: 0 | AK6: =Y6+AC6+AD6+AF6+AG6+AH6+AI6+AJ211+AE6 -> 0 | AL6: 0 | AO6: 0 | AR6: 6 | AS6: 15.3
A7: 6 | B7: Rohlfing, Anja | W7: 0 | X7: 0 | Y7: 0 | AC7: 0 | AK7: 0 | AL7: 0 | AO7: 0 | AS7: 0
A8: 7 | B8: Aumann, Elfriede | W8: 0 | X8: 0 | Y8: 0 | AC8: 0 | AK8: 0 | AL8: 0 | AO8: 0 | AR8: 6 | AS8: 15.3
A9: 8 | W9: 0 | X9: 0 | Y9: 0 | AC9: 0 | AK9: 0 | AL9: 0 | AO9: 0 | AS9: 0
A10: 9 | B10: Kilzer, Andreas | W10: 0 | X10: 0 | Y10: 0 | AC10: 0 | AK10: 0 | AL10: 0 | AO10: 0 | AR10: 20 | AS10: 51
A11: 10 | B11: Rakowski, Sigrid | W11: 0 | X11: 0 | Y11: 0 | AC11: 0 | AK11: 0 | AL11: =W11*2.75 -> 0 | AO11: 0 | AR11: 16 | AS11: 40.8
A12: 11 | W12: 0 | X12: 0 | Y12: 0 | AC12: 0 | AK12: 0 | AL12: 0 | AO12: 0 | AS12: 0
A13: 12 | B13: Drewes, Andrea | W13: 0 | X13: 0 | Y13: 0 | AC13: 0 | AK13: 0 | AL13: 0 | AO13: 0 | AR13: 9 | AS13: 22.95
A14: 13 | W14: 0 | X14: 0 | Y14: 0 | AC14: 0 | AK14: 0 | AL14: 0 | AO14: 0 | AR14: 6 | AS14: 15.3
A15: 14 | B15: Grabbe , Nadja | W15: 0 | X15: 0 | Y15: 0 | AC15: 0 | AK15: 0 | AL15: 0 | AO15: 0 | AR15: 13 | AS15: 33.15
A16: 15 | B16: Sassenberg, Julia | W16: 0 | X16: 0 | Y16: 0 | AC16: 0 | AK16: 0 | AL16: 0 | AO16: 0 | AS16: 0
A17: 16 | W17: 0 | X17: 0 | Y17: 0 | AC17: 0 | AK17: 0 | AL17: 0 | AO17: 0 | AS17: 0
A18: 17 | W18: 0 | X18: 0 | Y18: 0 | AC18: 0 | AK18: 0 | AL18: 0 | AO18: 0 | AS18: 0
A19: 18 | W19: 0 | X19: 0 | Y19: 0 | AC19: 0 | AK19: 0 | AL19: 0 | AO19: 0 | AS19: 0
A20: 19 | B20: Blaha, Heinz | W20: 0 | X20: 0 | Y20: 0 | AC20: 0 | AK20: 0 | AL20: 0 | AO20: 0 | AR20: 16 | AS20: 40.8
A21: 20 | W21: 0 | X21: 0 | Y21: 0 | AC21: 0 | AK21: 0 | AL21: 0 | AO21: 0 | AS21: 0
A22: 21 | B22: Weichenhan, Rainer | W22: 0 | X22: 0 | Y22: 0 | AC22: 0 | AK22: 0 | AL22: =W22*2.75 -> 0 | AO22: 0 | AS22: 0
A23: 22 | B23: Lill, Ulrich | W23: 0 | X23: 0 | Y23: 0 | AC23: 0 | AK23: 0 | AL23: 0 | AO23: 0 | AR23: 6 | AS23: 15.3
A24: 23 | W24: 0 | X24: 0 | Y24: 0 | AC24: 0 | AK24: 0 | AL24: 0 | AO24: 0 | AS24: 0
A25: 24 | B25: Hübsch, Karl-Heinz | W25: 0 | X25: 0 | Y25: 0 | AC25: 0 | AK25: 0 | AL25: 0 | AO25: 0 | AR25: 10 | AS25: 25.5
A26: 25 | B26: Feigel-Kipp, Claudia | W26: 0 | X26: 0 | Y26: 0 | AC26: 0 | AK26: 0 | AL26: 0 | AO26: 0 | AR26: 11 | AS26: 28.05
A27: 26 | W27: 0 | X27: 0 | Y27: 0 | AC27: 0 | AK27: 0 | AL27: 0 | AO27: 0 | AS27: 0
A28: 27 | W28: 0 | X28: 0 | Y28: 0 | AC28: 0 | AK28: 0 | AL28: 0 | AO28: 0 | AS28: 0
A29: 28 | W29: 0 | X29: 0 | Y29: 0 | AC29: 0 | AK29: 0 | AL29: 0 | AO29: 0 | AS29: 0
A30: 29 | B30: Scholz, Stella | W30: 0 | X30: 0 | Y30: 0 | AC30: 0 | AK30: 0 | AL30: 0 | AO30: 0 | AS30: 0
A31: 30 | B31: Hachmeister, Stefan | W31: 0 | X31: 0 | Y31: 0 | AC31: 0 | AK31: 0 | AL31: 0 | AO31: 0 | AR31: 9 | AS31: 22.95
A32: 31 | W32: 0 | X32: 0 | Y32: 0 | AC32: 0 | AK32: 0 | AL32: 0 | AO32: 0 | AS32: 0
A33: 32 | W33: 0 | X33: 0 | Y33: 0 | AC33: 0 | AK33: 0 | AL33: 0 | AO33: 0 | AS33: 0
A34: 33 | W34: 0 | X34: 0 | Y34: 0 | AC34: 0 | AK34: 0 | AL34: 0 | AO34: 0 | AS34: 0
A35: 34 | W35: 0 | X35: 0 | Y35: 0 | AC35: 0 | AK35: 0 | AL35: 0 | AO35: 0 | AS35: 0
A36: 35 | W36: 0 | X36: 0 | Y36: 0 | AC36: 0 | AK36: 0 | AL36: 0 | AO36: 0 | AS36: 0
A37: 36 | B37: Selle, Monika | W37: 0 | X37: 0 | Y37: 0 | AC37: 0 | AK37: 0 | AL37: 0 | AO37: 0 | AR37: 9 | AS37: 22.95
A38: 37 | B38: Sander, Eva-Maria | W38: 0 | X38: 0 | Y38: 0 | AC38: 0 | AK38: 0 | AL38: 0 | AO38: 0 | AR38: 19 | AS38: 48.45
A39: 38 | B39: Sander, Jessica | W39: 0 | X39: 0 | Y39: 0 | AC39: 0 | AK39: 0 | AL39: =W39*2.75 -> 0 | AO39: 0 | AS39: 0
A40: 39 | W40: 0 | X40: 0 | Y40: 0 | AC40: 0 | AK40: 0 | AL40: 0 | AO40: 0 | AS40: 0
A41: 40 | W41: 0 | X41: 0 | Y41: 0 | AC41: 0 | AK41: 0 | AL41: 0 | AO41: 0 | AS41: 0
A42: 41 | W42: 0 | X42: 0 | Y42: 0 | AC42: 0 | AK42: 0 | AL42: 0 | AO42: 0 | AS42: 0
A43: 42 | W43: 0 | X43: 0 | Y43: 0 | AC43: 0 | AK43: 0 | AL43: 0 | AO43: 0 | AS43: 0
A44: 43 | W44: 0 | X44: 0 | Y44: 0 | AC44: 0 | AK44: 0 | AL44: 0 | AO44: 0 | AS44: 0
A45: 44 | W45: 0 | X45: 0 | Y45: 0 | AC45: 0 | AK45: 0 | AL45: 0 | AO45: 0 | AS45: 0
A46: 45 | W46: 0 | X46: 0 | Y46: 0 | AC46: 0 | AK46: 0 | AL46: 0 | AO46: 0 | AS46: 0
A47: 46 | W47: 0 | X47: 0 | Y47: 0 | AC47: 0 | AK47: 0 | AL47: 0 | AO47: 0 | AS47: 0
A48: 47 | W48: 0 | X48: 0 | Y48: 0 | AC48: 0 | AK48: 0 | AL48: 0 | AO48: 0 | AS48: 0
A49: 48 | W49: 0 | X49: 0 | Y49: 0 | AC49: 0 | AK49: 0 | AL49: 0 | AO49: 0 | AS49: 0
A50: 49 | W50: 0 | X50: 0 | Y50: 0 | AC50: 0 | AK50: 0 | AL50: 0 | AO50: 0 | AS50: 0
A51: 50 | W51: 0 | X51: 0 | Y51: 0 | AC51: 0 | AK51: 0 | AL51: 0 | AO51: 0 | AS51: 0
A52: 51 | W52: 0 | X52: 0 | Y52: 0 | AC52: 0 | AK52: 0 | AL52: 0 | AO52: 0 | AS52: 0
A53: 52 | W53: 0 | X53: 0 | Y53: 0 | AC53: 0 | AK53: 0 | AL53: 0 | AO53: 0 | AS53: 0
A54: 53 | W54: 0 | X54: 0 | Y54: 0 | AC54: 0 | AK54: 0 | AL54: 0 | AO54: 0 | AS54: 0
A55: 54 | W55: 0 | X55: 0 | Y55: 0 | AC55: 0 | AK55: 0 | AL55: 0 | AO55: 0 | AS55: 0
A56: 55 | W56: 0 | X56: 0 | Y56: 0 | AC56: 0 | AK56: 0 | AL56: 0 | AO56: 0 | AS56: 0
A57: 56 | W57: 0 | X57: 0 | Y57: 0 | AC57: 0 | AK57: 0 | AL57: 0 | AO57: 0 | AS57: 0
A58: 57 | W58: 0 | X58: 0 | Y58: 0 | AC58: 0 | AK58: 0 | AL58: 0 | AO58: 0 | AS58: 0
A59: 58 | W59: 0 | X59: 0 | Y59: 0 | AC59: 0 | AK59: 0 | AL59: 0 | AO59: 0 | AS59: 0
A60: 59 | W60: 0 | X60: 0 | Y60: 0 | AC60: 0 | AK60: 0 | AL60: 0 | AO60: 0 | AS60: 0
A61: 60 | W61: 0 | X61: 0 | Y61: 0 | AC61: 0 | AK61: 0 | AL61: 0 | AO61: 0 | AS61: 0
A62: 61 | W62: 0 | X62: 0 | Y62: 0 | AC62: 0 | AK62: 0 | AL62: 0 | AO62: 0 | AR62: 0 | AS62: 0
A63: 62 | W63: 0 | X63: 0 | Y63: 0 | AC63: 0 | AK63: 0 | AL63: 0 | AO63: 0 | AS63: 0
A64: 63 | W64: 0 | X64: 0 | Y64: 0 | AC64: 0 | AK64: 0 | AL64: 0 | AO64: 0 | AS64: 0
A65: 64 | W65: 0 | X65: 0 | Y65: 0 | AC65: 0 | AK65: 0 | AL65: 0 | AO65: 0 | AS65: 0
A66: 65 | W66: =SUM(C66:V66) -> 0 | X66: 0 | Y66: =SUM(W66*2.25) -> 0 | AC66: 0 | AK66: =Y66+AC66+AD66+AF66+AG66+AH66+AI66+AJ66+AE66 -> 0 | AL66: 0 | AO66: =AK66+AL66+AM66+AN66 -> 0 | AS66: 0
A67: 66 | W67: 0 | X67: 0 | Y67: 0 | AC67: =(Z67+AA67+AB67)*2.25 -> 0 | AK67: 0 | AL67: 0 | AO67: 0 | AS67: 0
A68: 67 | W68: 0 | X68: 0 | Y68: 0 | AC68: 0 | AK68: 0 | AL68: =W68*2.75 -> 0 | AO68: 0 | AS68: =AR68*$AS$1 -> 0
A69: 68 | W69: 0 | X69: 0 | Y69: 0 | AC69: 0 | AK69: 0 | AL69: 0 | AO69: 0 | AS69: 0
A70: 69 | W70: 0 | X70: =W70/4 -> 0 | Y70: 0 | AC70: 0 | AK70: 0 | AL70: 0 | AO70: 0 | AS70: 0
A71: 70 | W71: 0 | X71: 0 | Y71: 0 | AC71: 0 | AK71: 0 | AL71: 0 | AO71: 0 | AS71: 0
A72: 71 | W72: 0 | X72: 0 | Y72: 0 | AC72: 0 | AK72: 0 | AL72: 0 | AO72: 0 | AS72: 0
A73: 72 | W73: 0 | X73: 0 | Y73: 0 | AC73: 0 | AK73: 0 | AL73: 0 | AO73: 0 | AS73: 0
A74: 73 | W74: 0 | X74: 0 | Y74: 0 | AC74: 0 | AK74: 0 | AL74: 0 | AO74: 0 | AS74: 0
A75: 74 | W75: 0 | X75: 0 | Y75: 0 | AC75: 0 | AK75: 0 | AL75: 0 | AO75: 0 | AS75: 0
A76: 75 | W76: 0 | X76: 0 | Y76: 0 | AC76: 0 | AK76: 0 | AL76: 0 | AO76: 0 | AS76: 0
A77: 76 | W77: 0 | X77: 0 | Y77: 0 | AC77: 0 | AK77: 0 | AL77: 0 | AO77: 0 | AS77: 0
A78: 77 | W78: 0 | X78: 0 | Y78: 0 | AC78: 0 | AK78: 0 | AL78: 0 | AO78: 0 | AS78: 0
A79: 78 | W79: 0 | X79: 0 | Y79: 0 | AC79: 0 | AK79: 0 | AL79: 0 | AO79: 0 | AS79: 0
A80: 79 | W80: 0 | X80: 0 | Y80: 0 | AC80: 0 | AK80: 0 | AL80: 0 | AO80: 0 | AS80: 0
A81: 80 | W81: 0 | X81: 0 | Y81: 0 | AC81: 0 | AK81: 0 | AL81: 0 | AO81: 0 | AS81: 0
A82: 81 | W82: 0 | X82: 0 | Y82: 0 | AC82: 0 | AK82: 0 | AL82: 0 | AO82: 0 | AS82: 0
A83: 82 | W83: 0 | X83: 0 | Y83: 0 | AC83: 0 | AK83: 0 | AL83: 0 | AO83: 0 | AS83: 0
A84: 83 | W84: 0 | X84: 0 | Y84: 0 | AC84: 0 | AK84: 0 | AL84: 0 | AO84: 0 | AS84: 0
A85: 84 | W85: 0 | X85: 0 | Y85: 0 | AC85: 0 | AK85: 0 | AL85: 0 | AO85: 0 | AS85: 0
A86: 85 | W86: 0 | X86: 0 | Y86: 0 | AC86: 0 | AK86: 0 | AL86: 0 | AO86: 0 | AS86: 0
A87: 86 | W87: 0 | X87: 0 | Y87: 0 | AC87: 0 | AK87: 0 | AL87: 0 | AO87: 0 | AS87: 0
A88: 87 | W88: 0 | X88: 0 | Y88: 0 | AC88: 0 | AK88: 0 | AL88: 0 | AO88: 0 | AS88: 0
A89: 88 | W89: 0 | X89: 0 | Y89: 0 | AC89: 0 | AK89: 0 | AL89: 0 | AO89: 0 | AS89: 0
A90: 89 | W90: 0 | X90: 0 | Y90: 0 | AC90: 0 | AK90: 0 | AL90: 0 | AO90: 0 | AS90: 0
A91: 90 | W91: 0 | X91: 0 | Y91: 0 | AC91: 0 | AK91: 0 | AL91: 0 | AO91: 0 | AS91: 0
A92: 91 | W92: 0 | X92: 0 | Y92: 0 | AC92: 0 | AK92: 0 | AL92: 0 | AO92: 0 | AS92: 0
A93: 92 | W93: 0 | X93: 0 | Y93: 0 | AC93: 0 | AK93: 0 | AL93: 0 | AO93: 0 | AS93: 0
A94: 93 | W94: 0 | X94: 0 | Y94: 0 | AC94: 0 | AK94: 0 | AL94: 0 | AO94: 0 | AS94: 0
A95: 94 | W95: 0 | X95: 0 | Y95: 0 | AC95: 0 | AK95: 0 | AL95: 0 | AO95: 0 | AS95: 0
A96: 95 | W96: 0 | X96: 0 | Y96: 0 | AC96: 0 | AK96: 0 | AL96: 0 | AO96: 0 | AS96: 0
A97: 96 | W97: 0 | X97: 0 | Y97: 0 | AC97: 0 | AK97: 0 | AL97: 0 | AO97: 0 | AS97: 0
A98: 97 | W98: 0 | X98: 0 | Y98: 0 | AC98: 0 | AK98: 0 | AL98: 0 | AO98: 0 | AS98: 0
A99: 98 | W99: 0 | X99: 0 | Y99: 0 | AC99: 0 | AK99: 0 | AL99: 0 | AO99: 0 | AS99: 0
A100: 99 | W100: 0 | X100: 0 | Y100: 0 | AC100: 0 | AK100: 0 | AL100: 0 | AO100: 0 | AS100: 0
A101: 100 | W101: 0 | X101: 0 | Y101: 0 | AC101: 0 | AK101: 0 | AL101: 0 | AO101: 0 | AS101: 0
A102: 101 | W102: 0 | X102: 0 | Y102: 0 | AC102: 0 | AK102: 0 | AL102: 0 | AO102: 0 | AS102: 0
A103: 102 | W103: 0 | X103: 0 | Y103: 0 | AC103: 0 | AK103: 0 | AL103: 0 | AO103: 0 | AS103: 0
A104: 103 | W104: 0 | X104: 0 | Y104: 0 | AC104: 0 | AK104: 0 | AL104: 0 | AO104: 0 | AS104: 0
A105: 104 | W105: 0 | X105: 0 | Y105: 0 | AC105: 0 | AK105: 0 | AL105: 0 | AO105: 0 | AS105: 0
A106: 105 | W106: 0 | X106: 0 | Y106: 0 | AC106: 0 | AK106: 0 | AL106: 0 | AO106: 0 | AS106: 0
A107: 106 | W107: 0 | X107: 0 | Y107: 0 | AC107: 0 | AK107: 0 | AL107: 0 | AO107: 0 | AS107: 0
A108: 107 | W108: 0 | X108: 0 | Y108: 0 | AC108: 0 | AK108: 0 | AL108: 0 | AO108: 0 | AS108: 0
A109: 108 | W109: 0 | X109: 0 | Y109: 0 | AC109: 0 | AK109: 0 | AL109: 0 | AO109: 0 | AS109: 0
A110: 109 | W110: 0 | X110: 0 | Y110: 0 | AC110: 0 | AK110: 0 | AL110: 0 | AO110: 0 | AS110: 0
A111: 110 | B111: Kruse, Brigitte | W111: 0 | X111: 0 | Y111: 0 | AC111: 0 | AK111: 0 | AL111: 0 | AO111: 0 | AR111: 13 | AS111: 33.15
A112: 111 | W112: 0 | X112: 0 | Y112: 0 | AC112: 0 | AK112: 0 | AL112: 0 | AO112: 0 | AS112: 0
A113: 112 | W113: 0 | X113: 0 | Y113: 0 | AC113: 0 | AK113: 0 | AL113: 0 | AO113: 0 | AS113: 0
A114: 113 | W114: 0 | X114: 0 | Y114: 0 | AC114: 0 | AK114: 0 | AL114: 0 | AO114: 0 | AS114: 0
A115: 114 | W115: 0 | X115: 0 | Y115: 0 | AC115: 0 | AK115: 0 | AL115: 0 | AO115: 0 | AS115: 0
A116: 115 | W116: 0 | X116: 0 | Y116: 0 | AC116: 0 | AK116: 0 | AL116: 0 | AO116: 0 | AS116: 0
A117: 116 | W117: 0 | X117: 0 | Y117: 0 | AC117: 0 | AK117: 0 | AL117: 0 | AO117: 0 | AS117: 0
A118: 117 | W118: 0 | X118: 0 | Y118: 0 | AC118: 0 | AK118: 0 | AL118: 0 | AO118: 0 | AS118: 0
A119: 118 | W119: 0 | X119: 0 | Y119: 0 | AC119: 0 | AK119: 0 | AL119: 0 | AO119: 0 | AS119: 0
A120: 119 | W120: 0 | X120: 0 | Y120: 0 | AC120: 0 | AK120: 0 | AL120: 0 | AO120: 0 | AS120: 0
A121: 120 | W121: 0 | X121: 0 | Y121: 0 | AC121: 0 | AK121: 0 | AL121: 0 | AO121: 0 | AS121: 0
A122: 121 | W122: 0 | X122: 0 | Y122: 0 | AC122: 0 | AK122: 0 | AL122: 0 | AO122: 0 | AS122: 0
A123: 122 | W123: 0 | X123: 0 | Y123: 0 | AC123: 0 | AK123: 0 | AL123: 0 | AO123: 0 | AS123: 0
A124: 123 | W124: 0 | X124: 0 | Y124: 0 | AC124: 0 | AK124: 0 | AL124: 0 | AO124: 0 | AS124: 0
A125: 124 | W125: 0 | X125: 0 | Y125: 0 | AC125: 0 | AK125: 0 | AL125: 0 | AO125: 0 | AS125: 0
A126: 125 | W126: 0 | X126: 0 | Y126: 0 | AC126: 0 | AK126: 0 | AL126: 0 | AO126: 0 | AS126: 0
A127: 126 | W127: 0 | X127: 0 | Y127: 0 | AC127: 0 | AK127: 0 | AL127: 0 | AO127: 0 | AS127: 0
A128: 127 | W128: 0 | X128: 0 | Y128: 0 | AC128: 0 | AK128: 0 | AL128: 0 | AO128: 0 | AS128: 0
A129: 128 | W129: 0 | X129: 0 | Y129: 0 | AC129: 0 | AK129: 0 | AL129: 0 | AO129: 0 | AS129: 0
A130: 129 | W130: =SUM(C130:V130) -> 0 | X130: 0 | Y130: =SUM(W130*2.25) -> 0 | AC130: 0 | AK130: =Y130+AC130+AD130+AF130+AG130+AH130+AI130+AJ130+AE130 -> 0 | AL130: 0 | AO130: =AK130+AL130+AM130+AN130 -> 0 | AS130: 0
A131: 130 | W131: 0 | X131: 0 | Y131: 0 | AC131: =(Z131+AA131+AB131)*2.25 -> 0 | AK131: 0 | AL131: 0 | AO131: 0 | AS131: 0
A132: 131 | W132: 0 | X132: 0 | Y132: 0 | AC132: 0 | AK132: 0 | AL132: =W132*2.75 -> 0 | AO132: 0 | AS132: =AR132*$AS$1 -> 0
A133: 132 | W133: 0 | X133: 0 | Y133: 0 | AC133: 0 | AK133: 0 | AL133: 0 | AO133: 0 | AS133: 0
A134: 133 | W134: 0 | X134: =W134/4 -> 0 | Y134: 0 | AC134: 0 | AK134: 0 | AL134: 0 | AO134: 0 | AS134: 0
A135: 134 | W135: 0 | X135: 0 | Y135: 0 | AC135: 0 | AK135: 0 | AL135: 0 | AO135: 0 | AS135: 0
A136: 135 | W136: 0 | X136: 0 | Y136: 0 | AC136: 0 | AK136: 0 | AL136: 0 | AO136: 0 | AS136: 0
A137: 136 | W137: 0 | X137: 0 | Y137: 0 | AC137: 0 | AK137: 0 | AL137: 0 | AO137: 0 | AS137: 0
A138: 137 | W138: 0 | X138: 0 | Y138: 0 | AC138: 0 | AK138: 0 | AL138: 0 | AO138: 0 | AS138: 0
A139: 138 | W139: 0 | X139: 0 | Y139: 0 | AC139: 0 | AK139: 0 | AL139: 0 | AO139: 0 | AS139: 0
A140: 139 | W140: 0 | X140: 0 | Y140: 0 | AC140: 0 | AK140: 0 | AL140: 0 | AO140: 0 | AS140: 0
A141: 140 | W141: 0 | X141: 0 | Y141: 0 | AC141: 0 | AK141: 0 | AL141: 0 | AO141: 0 | AS141: 0
A142: 141 | W142: 0 | X142: 0 | Y142: 0 | AC142: 0 | AK142: 0 | AL142: 0 | AO142: 0 | AS142: 0
A143: 142 | W143: 0 | X143: 0 | Y143: 0 | AC143: 0 | AK143: 0 | AL143: 0 | AO143: 0 | AS143: 0
A144: 143 | W144: 0 | X144: 0 | Y144: 0 | AC144: 0 | AK144: 0 | AL144: 0 | AO144: 0 | AS144: 0
A145: 144 | W145: 0 | X145: 0 | Y145: 0 | AC145: 0 | AK145: 0 | AL145: 0 | AO145: 0 | AS145: 0
A146: 145 | W146: 0 | X146: 0 | Y146: 0 | AC146: 0 | AK146: 0 | AL146: 0 | AO146: 0 | AS146: 0
A147: 146 | W147: 0 | X147: 0 | Y147: 0 | AC147: 0 | AK147: 0 | AL147: 0 | AO147: 0 | AS147: 0
A148: 147 | W148: 0 | X148: 0 | Y148: 0 | AC148: 0 | AK148: 0 | AL148: 0 | AO148: 0 | AS148: 0
A149: 148 | W149: 0 | X149: 0 | Y149: 0 | AC149: 0 | AK149: 0 | AL149: 0 | AO149: 0 | AS149: 0
A150: 149 | W150: 0 | X150: 0 | Y150: 0 | AC150: 0 | AK150: 0 | AL150: 0 | AO150: 0 | AS150: 0
A151: 150 | W151: 0 | X151: 0 | Y151: 0 | AC151: 0 | AK151: 0 | AL151: 0 | AO151: 0 | AS151: 0
A152: 151 | W152: 0 | X152: 0 | Y152: 0 | AC152: 0 | AK152: 0 | AL152: 0 | AO152: 0 | AS152: 0
A153: 152 | W153: 0 | X153: 0 | Y153: 0 | AC153: 0 | AK153: 0 | AL153: 0 | AO153: 0 | AS153: 0
A154: 153 | W154: 0 | X154: 0 | Y154: 0 | AC154: 0 | AK154: 0 | AL154: 0 | AO154: 0 | AS154: 0
A155: 154 | W155: 0 | X155: 0 | Y155: 0 | AC155: 0 | AK155: 0 | AL155: 0 | AO155: 0 | AS155: 0
A156: 155 | W156: 0 | X156: 0 | Y156: 0 | AC156: 0 | AK156: 0 | AL156: 0 | AO156: 0 | AS156: 0
A157: 156 | W157: 0 | X157: 0 | Y157: 0 | AC157: 0 | AK157: 0 | AL157: 0 | AO157: 0 | AS157: 0
A158: 157 | W158: 0 | X158: 0 | Y158: 0 | AC158: 0 | AK158: 0 | AL158: 0 | AO158: 0 | AS158: 0
A159: 158 | W159: 0 | X159: 0 | Y159: 0 | AC159: 0 | AK159: 0 | AL159: 0 | AO159: 0 | AS159: 0
A160: 159 | W160: 0 | X160: 0 | Y160: 0 | AC160: 0 | AK160: 0 | AL160: 0 | AO160: 0 | AS160: 0
A161: 160 | W161: 0 | X161: 0 | Y161: 0 | AC161: 0 | AK161: 0 | AL161: 0 | AO161: 0 | AS161: 0
A162: 161 | W162: 0 | X162: 0 | Y162: 0 | AC162: 0 | AK162: 0 | AL162: 0 | AO162: 0 | AS162: 0
A163: 162 | W163: 0 | X163: 0 | Y163: 0 | AC163: 0 | AK163: 0 | AL163: 0 | AO163: 0 | AS163: 0
A164: 163 | W164: 0 | X164: 0 | Y164: 0 | AC164: 0 | AK164: 0 | AL164: 0 | AO164: 0 | AS164: 0
A165: 164 | W165: 0 | X165: 0 | Y165: 0 | AC165: 0 | AK165: 0 | AL165: 0 | AO165: 0 | AS165: 0
A166: 165 | W166: 0 | X166: 0 | Y166: 0 | AC166: 0 | AK166: 0 | AL166: 0 | AO166: 0 | AS166: 0
A167: 166 | W167: 0 | X167: 0 | Y167: 0 | AC167: 0 | AK167: 0 | AL167: 0 | AO167: 0 | AS167: 0
A168: 167 | W168: 0 | X168: 0 | Y168: 0 | AC168: 0 | AK168: 0 | AL168: 0 | AO168: 0 | AS168: 0
A169: 168 | W169: 0 | X169: 0 | Y169: 0 | AC169: 0 | AK169: 0 | AL169: 0 | AO169: 0 | AS169: 0
A170: 169 | W170: 0 | X170: 0 | Y170: 0 | AC170: 0 | AK170: 0 | AL170: 0 | AO170: 0 | AS170: 0
A171: 170 | W171: 0 | X171: 0 | Y171: 0 | AC171: 0 | AK171: 0 | AL171: 0 | AO171: 0 | AS171: 0
A172: 171 | W172: 0 | X172: 0 | Y172: 0 | AC172: 0 | AK172: 0 | AL172: 0 | AO172: 0 | AS172: 0
A173: 172 | W173: 0 | X173: 0 | Y173: 0 | AC173: 0 | AK173: 0 | AL173: 0 | AO173: 0 | AS173: 0
A174: 173 | W174: 0 | X174: 0 | Y174: 0 | AC174: 0 | AK174: 0 | AL174: 0 | AO174: 0 | AS174: 0
A175: 174 | W175: 0 | X175: 0 | Y175: 0 | AC175: 0 | AK175: 0 | AL175: 0 | AO175: 0 | AS175: 0
A176: 175 | W176: 0 | X176: 0 | Y176: 0 | AC176: 0 | AK176: 0 | AL176: 0 | AO176: 0 | AS176: 0
A177: 176 | W177: 0 | X177: 0 | Y177: 0 | AC177: 0 | AK177: 0 | AL177: 0 | AO177: 0 | AS177: 0
A178: 177 | W178: 0 | X178: 0 | Y178: 0 | AC178: 0 | AK178: 0 | AL178: 0 | AO178: 0 | AS178: 0
A179: 178 | W179: 0 | X179: 0 | Y179: 0 | AC179: 0 | AK179: 0 | AL179: 0 | AO179: 0 | AS179: 0
A180: 179 | W180: 0 | X180: 0 | Y180: 0 | AC180: 0 | AK180: 0 | AL180: 0 | AO180: 0 | AS180: 0
A181: 180 | W181: 0 | X181: 0 | Y181: 0 | AC181: 0 | AK181: 0 | AL181: 0 | AO181: 0 | AS181: 0
A182: 181 | W182: 0 | X182: 0 | Y182: 0 | AC182: 0 | AK182: 0 | AL182: 0 | AO182: 0 | AS182: 0
A183: 182 | W183: 0 | X183: 0 | Y183: 0 | AC183: 0 | AK183: 0 | AL183: 0 | AO183: 0 | AS183: 0
A184: 183 | W184: 0 | X184: 0 | Y184: 0 | AC184: 0 | AK184: 0 | AL184: 0 | AO184: 0 | AS184: 0
A185: 184 | W185: 0 | X185: 0 | Y185: 0 | AC185: 0 | AK185: 0 | AL185: 0 | AO185: 0 | AS185: 0
A186: 185 | W186: 0 | X186: 0 | Y186: 0 | AC186: 0 | AK186: 0 | AL186: 0 | AO186: 0 | AS186: 0
A187: 186 | W187: 0 | X187: 0 | Y187: 0 | AC187: 0 | AK187: 0 | AL187: 0 | AO187: 0 | AS187: 0
A188: 187 | W188: 0 | X188: 0 | Y188: 0 | AC188: 0 | AK188: 0 | AL188: 0 | AO188: 0 | AS188: 0
A189: 188 | W189: 0 | X189: 0 | Y189: 0 | AC189: 0 | AK189: 0 | AL189: 0 | AO189: 0 | AS189: 0
A190: 189 | W190: 0 | X190: 0 | Y190: 0 | AC190: 0 | AK190: 0 | AL190: 0 | AO190: 0 | AS190: 0
A191: 190 | W191: 0 | X191: 0 | Y191: 0 | AC191: 0 | AK191: 0 | AL191: 0 | AO191: 0 | AS191: 0
A192: 191 | W192: 0 | X192: 0 | Y192: 0 | AC192: 0 | AK192: 0 | AL192: 0 | AO192: 0 | AS192: 0
A193: 192 | W193: 0 | X193: 0 | Y193: 0 | AC193: 0 | AK193: 0 | AL193: 0 | AO193: 0 | AS193: 0
A194: 193 | W194: =SUM(C194:V194) -> 0 | X194: 0 | Y194: =SUM(W194*2.25) -> 0 | AC194: 0 | AK194: =Y194+AC194+AD194+AF194+AG194+AH194+AI194+AJ194+AE194 -> 0 | AL194: 0 | AO194: =AK194+AL194+AM194+AN194 -> 0 | AS194: 0
A195: 194 | W195: 0 | X195: 0 | Y195: 0 | AC195: =(Z195+AA195+AB195)*2.25 -> 0 | AK195: 0 | AL195: 0 | AO195: 0 | AS195: 0
A196: 195 | W196: 0 | X196: 0 | Y196: 0 | AC196: 0 | AK196: 0 | AL196: =W196*2.75 -> 0 | AO196: 0 | AS196: =AR196*$AS$1 -> 0
A197: 196 | W197: 0 | X197: 0 | Y197: 0 | AC197: 0 | AK197: 0 | AL197: 0 | AO197: 0 | AS197: 0
A198: 197 | W198: 0 | X198: =W198/4 -> 0 | Y198: 0 | AC198: 0 | AK198: 0 | AL198: 0 | AO198: 0 | AS198: 0
A199: 198 | W199: 0 | X199: 0 | Y199: 0 | AC199: 0 | AK199: 0 | AL199: 0 | AO199: 0 | AS199: 0
A200: 199 | W200: 0 | X200: 0 | Y200: 0 | AC200: 0 | AK200: 0 | AL200: 0 | AO200: 0 | AS200: 0
... 112 more rows

Sheet 05-Abrechnung
A1: QuittungNR | B1: 30
A8: Mitarbeiter Nr.: | D8: MONATSABRECHNUNG | G8: Mai | H8: 2017
G10: Abrechnungszeitraum: 21.04 - 20.05
A13: =INDEX([1]!Datenbank2,$B$1,2)&" "&INDEX([1]!Datenbank2,$B$1,3) -> Stella Scholz | B13: Christel Hachmeister | C13: Christel Hachmeister | D13: Christel Hachmeister
A14: =INDEX([1]!Datenbank2,$B$1,4) -> Steinegge 17 | B14: Borsteler Bruch 4 | C14: Borsteler Bruch 4 | D14: Borsteler Bruch 4
A15: =INDEX([1]!Datenbank2,$B$1,5)&" "&INDEX([1]!Datenbank2,$B$1,6) -> 32689 Kalletal
A19: Allgemeine Tests:
C20: TEST NR & DATUM | D20: FB | E20: Entgelt in EURO € | G20: Erläuterungen zu
C21: =Mai!$C$1 -> 0 | D21: =INDEX([0]!mai,$B$1,3) -> 0 | E21: =D21*2.25 -> 0 | G21: Spezialtests:
C22: =Mai!$D$1 -> 0 | D22: =INDEX([0]!mai,$B$1,4) -> 0 | E22: =D22*2.25 -> 0 | G22: =IF(Mai!$AE$1=0,"",Mai!AE$1) ->  | H22: =INDEX([0]!mai,$B$1,31) -> 0
C23: =Mai!$E$1 -> 0 | D23: =INDEX([0]!mai,$B$1,5) -> 0 | E23: 0 | G23: =IF(Mai!$AF$1=0,"",Mai!AF$1) ->  | H23: =INDEX([0]!mai,$B$1,32) -> 0
C24: =Mai!$F$1 -> 0 | D24: =INDEX([0]!mai,$B$1,6) -> 0 | E24: 0 | G24: =IF(Mai!$AG$1=0,"",Mai!AG$1) ->  | H24: =INDEX([0]!mai,$B$1,33) -> 0
C25: =Mai!$G$1 -> 0 | D25: =INDEX([0]!mai,$B$1,7) -> 0 | E25: 0 | G25: =IF(Mai!$AH$1=0,"",Mai!AH$1) ->  | H25: =INDEX([0]!mai,$B$1,34) -> 0
C26: =Mai!$H$1 -> 0 | D26: =INDEX([0]!mai,$B$1,8) -> 0 | E26: 0 | G26: =IF(Mai!$AI$1=0,"",Mai!AI$1) ->  | H26: =INDEX([0]!mai,$B$1,35) -> 0
C27: =Mai!$I$1 -> 0 | D27: =INDEX([0]!mai,$B$1,9) -> 0 | E27: 0
C28: =Mai!$J$1 -> 0 | D28: =INDEX([0]!mai,$B$1,10) -> 0 | E28: 0 | G28: Gesamt | H28: =SUM(H22:H27) -> 0
C29: =Mai!$K$1 -> 0 | D29: =INDEX([0]!mai,$B$1,11) -> 0 | E29: 0
C30: =Mai!$L$1 -> 0 | D30: =INDEX([0]!mai,$B$1,12) -> 0 | E30: 0
C31: =Mai!$M$1 -> 0 | D31: =INDEX([0]!mai,$B$1,13) -> 0 | E31: 0
C32: =Mai!$N$1 -> 0 | D32: =INDEX([0]!mai,$B$1,14) -> 0 | E32: 0
C33: =Mai!$O$1 -> 0 | D33: =INDEX([0]!mai,$B$1,15) -> 0 | E33: 0
C34: =Mai!$P$1 -> 0 | D34: =INDEX([0]!mai,$B$1,16) -> 0 | E34: 0
C35: =Mai!$Q$1 -> 0 | D35: =INDEX([0]!mai,$B$1,17) -> 0 | E35: 0
C36: =Mai!$R$1 -> 0 | D36: =INDEX([0]!mai,$B$1,18) -> 0 | E36: 0
C37: =Mai!$S$1 -> 0 | D37: =INDEX([0]!mai,$B$1,19) -> 0 | E37: 0
C38: =Mai!$T$1 -> 0 | D38: =INDEX([0]!mai,$B$1,20) -> 0 | E38: 0
C39: =Mai!$U$1 -> 0 | D39: =INDEX([0]!mai,$B$1,21) -> 0 | E39: 0
C40: =Mai!$V$1 -> 0 | D40: =INDEX([0]!mai,$B$1,22) -> 0 | E40: 0 | G40: Bemerkungen:
B41: SUMME 1 | D41: =SUM(D21:D40) -> 0 | E41: =SUM(E21:E40) -> 0 | G41: Stunden (nach FB-Anzahl) | H41: =INDEX([0]!mai,$B$1,23) -> 0
A43: Zusätze: | B43: Bezeichung
B44: =Mai!$AC$1 -> Summe BIM in EURO | E44: =INDEX([0]!mai,$B$1,28) -> 0
B45: =Mai!$AD$1 -> Stamm daten | E45: =INDEX([0]!mai,$B$1,29) -> 0 | G45: StaDa= | H45: Stammdatenerhebung
B46: Summe Spezialtest | E46: =H28 -> 0 | G46: FB = Anzahl der Fragebogen
B47: =IF(Mai!$AJ$1=0,"",Mai!AJ$1) -> Std. /Entgelt | E47: =INDEX([0]!mai,$B$1,36) -> 0
B48: GESAMT NETTO | E48: =SUM(E41:E47) -> 0
C49: Kilometergeld | E49: =INDEX([0]!mai,$B$1,38) -> 0
C50: Porto/Telefon/Fax | E50: =INDEX([0]!mai,$B$1,39) -> 0
C51: Pauschale 25% | E51: =INDEX([0]!mai,$B$1,40) -> 0
B52: GESAMT in € | E52: =E48+E49+E50+E51 -> 0
A55: Der Betrag wird bis zum 10. des folgenden Monats überwiesen.
A61: Prorata Marktforschung GmbH • Marienglacis 37 • 32427 Minden • tel 0571.82875.0 fax • 0571.82875.99 • www.prorata.de • info@prorata.de

Sheet Juni
B1: Testnummer / Testerin | AD1: Anz. | AE1: Std. | AF1: Summe in EURO | AJ1: Summe BIM in EURO | AK1: Stamm daten | AQ1: Std. /Entgelt | AR1: Gesamt NETTO* in EURO | AS1: km x XXeurocent | AT1: Telef./Porto | AU1: Pauschale 25% | AV1: Gesamt in EURO | BA1: 2.55
A2: 1 | AD2: =SUM(C2:W2) -> 0 | AF2: =SUM(AD2*2.25) -> 0 | AJ2: =(AG2+AH2+AI2)*2.25 -> 0 | AR2: =AF2+AJ2+AK2+AM2+AN2+AO2+AP2+AQ2+AL2 -> 0 | AV2: =AR2+AS2+AT2+AU2 -> 0
A3: 2 | B3: Gundlach | AD3: 0 | AF3: 0 | AJ3: =(AG3+AH3+AI3)*2.25 -> 0 | AR3: 0 | AS3: =AD3*2.75 -> 0 | AV3: 0 | AZ3: 10 | BA3: =AZ3*$BA$1 -> 25.5
A4: 3 | B4: Heine | AD4: 0 | AF4: 0 | AJ4: 0 | AR4: 0 | AS4: =AD4*2.75 -> 0 | AV4: 0 | AZ4: 18 | BA4: =AZ4*$BA$1 -> 45.9
A5: 4 | B5: Korte, Inge | AD5: =SUM(C5:Y5) -> 0 | AE5: =AD5/4 -> 0 | AF5: 0 | AJ5: 0 | AR5: 0 | AS5: 0 | AV5: 0 | AZ5: 0 | BA5: 0 | BD5: Aufpassen: 817/818 Folgetest | BG5: km-Geld
A6: 5 | B6: Tölkemeier, Petra | AD6: =SUM(C6:Y6) -> 0 | AE6: =AD6/4 -> 0 | AF6: 0 | AJ6: 0 | AR6: 0 | AS6: 0 | AV6: 0 | AZ6: 24 | BA6: 61.2 | BD6: 571/572 Folgetest | BG6: km Geld
A7: 6 | B7: Rohlfing, Anja | AD7: 0 | AE7: 0 | AF7: 0 | AJ7: 0 | AR7: 0 | AS7: 0 | AV7: 0 | BA7: 0 | BD7: 571/572 Folgetest | BG7: km Geld
A8: 7 | B8: Aumann, Elfriede | AD8: 0 | AE8: 0 | AF8: 0 | AJ8: 0 | AR8: 0 | AS8: 0 | AV8: 0 | AZ8: 22 | BA8: 56.1
A9: 8 | AD9: 0 | AE9: 0 | AF9: 0 | AJ9: 0 | AR9: 0 | AS9: 0 | AV9: 0 | BA9: 0
A10: 9 | B10: Kilzer, Andreas | AD10: 0 | AE10: 0 | AF10: 0 | AJ10: 0 | AR10: 0 | AS10: 0 | AV10: 0 | AZ10: 38 | BA10: 96.9
A11: 10 | B11: Rakowski, Sigrid | AD11: 0 | AE11: 0 | AF11: 0 | AJ11: 0 | AR11: 0 | AS11: =AD11*2.75 -> 0 | AV11: 0 | AZ11: 26 | BA11: 66.3
A12: 11 | AD12: 0 | AE12: 0 | AF12: 0 | AJ12: 0 | AR12: 0 | AS12: 0 | AV12: 0 | BA12: 0
A13: 12 | B13: Drewes, Andrea | AD13: 0 | AE13: 0 | AF13: 0 | AJ13: 0 | AR13: 0 | AS13: 0 | AV13: 0 | AZ13: 21 | BA13: 53.55
A14: 13 | AD14: 0 | AE14: 0 | AF14: 0 | AJ14: 0 | AR14: 0 | AS14: 0 | AV14: 0 | AZ14: 22 | BA14: 56.1
A15: 14 | B15: Grabbe , Nadja | AD15: 0 | AE15: 0 | AF15: 0 | AJ15: 0 | AR15: 0 | AS15: 0 | AV15: 0 | AZ15: 15 | BA15: 38.25
A16: 15 | B16: Sassenberg, Julia | AD16: 0 | AE16: 0 | AF16: 0 | AJ16: 0 | AR16: 0 | AS16: 0 | AV16: 0 | BA16: 0
A17: 16 | AD17: 0 | AE17: 0 | AF17: 0 | AJ17: 0 | AR17: 0 | AS17: 0 | AV17: 0 | BA17: 0
A18: 17 | AD18: 0 | AE18: 0 | AF18: 0 | AJ18: 0 | AR18: 0 | AS18: 0 | AV18: 0 | BA18: 0
A19: 18 | AD19: 0 | AE19: 0 | AF19: 0 | AJ19: 0 | AR19: 0 | AS19: 0 | AV19: 0 | BA19: 0
A20: 19 | B20: Blaha, Heinz | AD20: 0 | AE20: 0 | AF20: 0 | AJ20: 0 | AR20: 0 | AS20: 0 | AV20: 0 | AZ20: 23 | BA20: 58.65
A21: 20 | AD21: 0 | AE21: 0 | AF21: 0 | AJ21: 0 | AR21: 0 | AS21: 0 | AV21: 0 | BA21: 0
A22: 21 | B22: Weichenhan, Rainer | AD22: 0 | AE22: 0 | AF22: 0 | AJ22: 0 | AR22: 0 | AS22: =AD22*2.75 -> 0 | AV22: 0 | BA22: 0
A23: 22 | B23: Lill, Ulrich | AD23: 0 | AE23: 0 | AF23: 0 | AJ23: 0 | AR23: 0 | AS23: 0 | AV23: 0 | AZ23: 24 | BA23: 61.2
A24: 23 | AD24: 0 | AE24: 0 | AF24: 0 | AJ24: 0 | AR24: 0 | AS24: 0 | AV24: 0 | BA24: 0
A25: 24 | B25: Hübsch, Karl-Heinz | AD25: 0 | AE25: 0 | AF25: 0 | AJ25: 0 | AR25: 0 | AS25: 0 | AV25: 0 | AZ25: 33 | BA25: 84.15
A26: 25 | B26: Feigel-Kipp, Claudia | AD26: 0 | AE26: 0 | AF26: 0 | AJ26: 0 | AR26: 0 | AS26: 0 | AV26: 0 | AZ26: 22 | BA26: 56.1
A27: 26 | AD27: 0 | AE27: 0 | AF27: 0 | AJ27: 0 | AR27: 0 | AS27: 0 | AV27: 0 | BA27: 0
A28: 27 | AD28: 0 | AE28: 0 | AF28: 0 | AJ28: 0 | AR28: 0 | AS28: 0 | AV28: 0 | BA28: 0
A29: 28 | AD29: 0 | AE29: 0 | AF29: 0 | AJ29: 0 | AR29: 0 | AS29: 0 | AV29: 0 | BA29: 0
A30: 29 | B30: Scholz, Stella | AD30: 0 | AE30: 0 | AF30: 0 | AJ30: 0 | AR30: 0 | AS30: 0 | AV30: 0 | AZ30: 0 | BA30: 0
A31: 30 | B31: Hachmeister, Stefan | AD31: 0 | AE31: 0 | AF31: 0 | AJ31: 0 | AR31: 0 | AS31: 0 | AV31: 0 | AZ31: 6 | BA31: 15.3
A32: 31 | AD32: 0 | AE32: 0 | AF32: 0 | AJ32: 0 | AR32: 0 | AS32: 0 | AV32: 0 | BA32: 0
A33: 32 | AD33: 0 | AE33: 0 | AF33: 0 | AJ33: 0 | AR33: 0 | AS33: 0 | AV33: 0 | BA33: 0
A34: 33 | AD34: 0 | AE34: 0 | AF34: 0 | AJ34: 0 | AR34: 0 | AS34: 0 | AV34: 0 | BA34: 0
A35: 34 | AD35: 0 | AE35: 0 | AF35: 0 | AJ35: 0 | AR35: 0 | AS35: 0 | AV35: 0 | BA35: 0
A36: 35 | AD36: 0 | AE36: 0 | AF36: 0 | AJ36: 0 | AR36: 0 | AS36: 0 | AV36: 0 | BA36: 0
A37: 36 | B37: Selle, Monika | AD37: 0 | AE37: 0 | AF37: 0 | AJ37: 0 | AR37: 0 | AS37: 0 | AV37: 0 | AZ37: 5 | BA37: 12.75
A38: 37 | B38: Sander, Eva-Maria | AD38: 0 | AE38: 0 | AF38: 0 | AJ38: 0 | AR38: 0 | AS38: 0 | AV38: 0 | AZ38: 33 | BA38: 84.15
A39: 38 | B39: Sander, Jessica | AD39: 0 | AE39: 0 | AF39: 0 | AJ39: 0 | AR39: 0 | AS39: =AD39*2.75 -> 0 | AV39: 0 | BA39: 0
A40: 39 | B40: Wiese-Schmutzer, Armgard | AD40: 0 | AE40: 0 | AF40: 0 | AJ40: 0 | AR40: 0 | AS40: 0 | AV40: 0 | BA40: 0
A41: 40 | AD41: 0 | AE41: 0 | AF41: 0 | AJ41: 0 | AR41: 0 | AS41: 0 | AV41: 0 | BA41: 0
A42: 41 | AD42: 0 | AE42: 0 | AF42: 0 | AJ42: 0 | AR42: 0 | AS42: 0 | AV42: 0 | BA42: 0
A43: 42 | AD43: 0 | AE43: 0 | AF43: 0 | AJ43: 0 | AR43: 0 | AS43: 0 | AV43: 0 | BA43: 0
A44: 43 | AD44: 0 | AE44: 0 | AF44: 0 | AJ44: 0 | AR44: 0 | AS44: 0 | AV44: 0 | BA44: 0
A45: 44 | AD45: 0 | AE45: 0 | AF45: 0 | AJ45: 0 | AR45: 0 | AS45: 0 | AV45: 0 | BA45: 0
A46: 45 | AD46: 0 | AE46: 0 | AF46: 0 | AJ46: 0 | AR46: 0 | AS46: 0 | AV46: 0 | BA46: 0
A47: 46 | AD47: 0 | AE47: 0 | AF47: 0 | AJ47: 0 | AR47: 0 | AS47: 0 | AV47: 0 | BA47: 0
A48: 47 | AD48: 0 | AE48: 0 | AF48: 0 | AJ48: 0 | AR48: 0 | AS48: 0 | AV48: 0 | BA48: 0
A49: 48 | AD49: 0 | AE49: 0 | AF49: 0 | AJ49: 0 | AR49: 0 | AS49: 0 | AV49: 0 | BA49: 0
A50: 49 | AD50: 0 | AE50: 0 | AF50: 0 | AJ50: 0 | AR50: 0 | AS50: 0 | AV50: 0 | BA50: 0
A51: 50 | AD51: 0 | AE51: 0 | AF51: 0 | AJ51: 0 | AR51: 0 | AS51: 0 | AV51: 0 | BA51: 0
A52: 51 | AD52: 0 | AE52: 0 | AF52: 0 | AJ52: 0 | AR52: 0 | AS52: 0 | AV52: 0 | BA52: 0
A53: 52 | AD53: 0 | AE53: 0 | AF53: 0 | AJ53: 0 | AR53: 0 | AS53: 0 | AV53: 0 | BA53: 0
A54: 53 | AD54: 0 | AE54: 0 | AF54: 0 | AJ54: 0 | AR54: 0 | AS54: 0 | AV54: 0 | BA54: 0
A55: 54 | AD55: 0 | AE55: 0 | AF55: 0 | AJ55: 0 | AR55: 0 | AS55: 0 | AV55: 0 | BA55: 0
A56: 55 | AD56: 0 | AE56: 0 | AF56: 0 | AJ56: 0 | AR56: 0 | AS56: 0 | AV56: 0 | BA56: 0
A57: 56 | AD57: 0 | AE57: 0 | AF57: 0 | AJ57: 0 | AR57: 0 | AS57: 0 | AV57: 0 | BA57: 0
A58: 57 | AD58: 0 | AE58: 0 | AF58: 0 | AJ58: 0 | AR58: 0 | AS58: 0 | AV58: 0 | BA58: 0
A59: 58 | AD59: 0 | AE59: 0 | AF59: 0 | AJ59: 0 | AR59: 0 | AS59: 0 | AV59: 0 | BA59: 0
A60: 59 | AD60: 0 | AE60: 0 | AF60: 0 | AJ60: 0 | AR60: 0 | AS60: 0 | AV60: 0 | BA60: 0
A61: 60 | AD61: 0 | AE61: 0 | AF61: 0 | AJ61: 0 | AR61: 0 | AS61: 0 | AV61: 0 | BA61: 0
A62: 61 | AD62: 0 | AE62: 0 | AF62: 0 | AJ62: 0 | AR62: 0 | AS62: 0 | AV62: 0 | BA62: 0
A63: 62 | AD63: 0 | AE63: 0 | AF63: 0 | AJ63: 0 | AR63: 0 | AS63: 0 | AV63: 0 | BA63: 0
A64: 63 | AD64: 0 | AE64: 0 | AF64: 0 | AJ64: 0 | AR64: 0 | AS64: 0 | AV64: 0 | BA64: 0
A65: 64 | AD65: 0 | AE65: 0 | AF65: 0 | AJ65: 0 | AR65: 0 | AS65: 0 | AV65: 0 | BA65: 0
A66: 65 | AD66: 0 | AE66: 0 | AF66: =SUM(AD66*2.25) -> 0 | AJ66: 0 | AR66: =AF66+AJ66+AK66+AM66+AN66+AO66+AP66+AQ66+AL66 -> 0 | AS66: 0 | AV66: =AR66+AS66+AT66+AU66 -> 0 | BA66: 0
A67: 66 | AD67: 0 | AE67: 0 | AF67: 0 | AJ67: =(AG67+AH67+AI67)*2.25 -> 0 | AR67: 0 | AS67: 0 | AV67: 0 | BA67: 0
A68: 67 | AD68: 0 | AE68: 0 | AF68: 0 | AJ68: 0 | AR68: 0 | AS68: =AD68*2.75 -> 0 | AV68: 0 | BA68: =AZ68*$BA$1 -> 0
A69: 68 | AD69: 0 | AE69: 0 | AF69: 0 | AJ69: 0 | AR69: 0 | AS69: 0 | AV69: 0 | BA69: 0
A70: 69 | AD70: =SUM(C70:Y70) -> 0 | AE70: =AD70/4 -> 0 | AF70: 0 | AJ70: 0 | AR70: 0 | AS70: 0 | AV70: 0 | BA70: 0
A71: 70 | AD71: 0 | AE71: 0 | AF71: 0 | AJ71: 0 | AR71: 0 | AS71: 0 | AV71: 0 | BA71: 0
A72: 71 | AD72: 0 | AE72: 0 | AF72: 0 | AJ72: 0 | AR72: 0 | AS72: 0 | AV72: 0 | BA72: 0
A73: 72 | AD73: 0 | AE73: 0 | AF73: 0 | AJ73: 0 | AR73: 0 | AS73: 0 | AV73: 0 | BA73: 0
A74: 73 | AD74: 0 | AE74: 0 | AF74: 0 | AJ74: 0 | AR74: 0 | AS74: 0 | AV74: 0 | BA74: 0
A75: 74 | AD75: 0 | AE75: 0 | AF75: 0 | AJ75: 0 | AR75: 0 | AS75: 0 | AV75: 0 | BA75: 0
A76: 75 | AD76: 0 | AE76: 0 | AF76: 0 | AJ76: 0 | AR76: 0 | AS76: 0 | AV76: 0 | BA76: 0
A77: 76 | AD77: 0 | AE77: 0 | AF77: 0 | AJ77: 0 | AR77: 0 | AS77: 0 | AV77: 0 | BA77: 0
A78: 77 | AD78: 0 | AE78: 0 | AF78: 0 | AJ78: 0 | AR78: 0 | AS78: 0 | AV78: 0 | BA78: 0
A79: 78 | AD79: 0 | AE79: 0 | AF79: 0 | AJ79: 0 | AR79: 0 | AS79: 0 | AV79: 0 | BA79: 0
A80: 79 | AD80: 0 | AE80: 0 | AF80: 0 | AJ80: 0 | AR80: 0 | AS80: 0 | AV80: 0 | BA80: 0
A81: 80 | AD81: 0 | AE81: 0 | AF81: 0 | AJ81: 0 | AR81: 0 | AS81: 0 | AV81: 0 | BA81: 0
A82: 81 | AD82: 0 | AE82: 0 | AF82: 0 | AJ82: 0 | AR82: 0 | AS82: 0 | AV82: 0 | BA82: 0
A83: 82 | AD83: 0 | AE83: 0 | AF83: 0 | AJ83: 0 | AR83: 0 | AS83: 0 | AV83: 0 | BA83: 0
A84: 83 | AD84: 0 | AE84: 0 | AF84: 0 | AJ84: 0 | AR84: 0 | AS84: 0 | AV84: 0 | BA84: 0
A85: 84 | AD85: 0 | AE85: 0 | AF85: 0 | AJ85: 0 | AR85: 0 | AS85: 0 | AV85: 0 | BA85: 0
A86: 85 | AD86: 0 | AE86: 0 | AF86: 0 | AJ86: 0 | AR86: 0 | AS86: 0 | AV86: 0 | BA86: 0
A87: 86 | AD87: 0 | AE87: 0 | AF87: 0 | AJ87: 0 | AR87: 0 | AS87: 0 | AV87: 0 | BA87: 0
A88: 87 | AD88: 0 | AE88: 0 | AF88: 0 | AJ88: 0 | AR88: 0 | AS88: 0 | AV88: 0 | BA88: 0
A89: 88 | AD89: 0 | AE89: 0 | AF89: 0 | AJ89: 0 | AR89: 0 | AS89: 0 | AV89: 0 | BA89: 0
A90: 89 | AD90: 0 | AE90: 0 | AF90: 0 | AJ90: 0 | AR90: 0 | AS90: 0 | AV90: 0 | BA90: 0
A91: 90 | AD91: 0 | AE91: 0 | AF91: 0 | AJ91: 0 | AR91: 0 | AS91: 0 | AV91: 0 | BA91: 0
A92: 91 | AD92: 0 | AE92: 0 | AF92: 0 | AJ92: 0 | AR92: 0 | AS92: 0 | AV92: 0 | BA92: 0
A93: 92 | AD93: 0 | AE93: 0 | AF93: 0 | AJ93: 0 | AR93: 0 | AS93: 0 | AV93: 0 | BA93: 0
A94: 93 | AD94: 0 | AE94: 0 | AF94: 0 | AJ94: 0 | AR94: 0 | AS94: 0 | AV94: 0 | BA94: 0
A95: 94 | AD95: 0 | AE95: 0 | AF95: 0 | AJ95: 0 | AR95: 0 | AS95: 0 | AV95: 0 | BA95: 0
A96: 95 | AD96: 0 | AE96: 0 | AF96: 0 | AJ96: 0 | AR96: 0 | AS96: 0 | AV96: 0 | BA96: 0
A97: 96 | AD97: 0 | AE97: 0 | AF97: 0 | AJ97: 0 | AR97: 0 | AS97: 0 | AV97: 0 | BA97: 0
A98: 97 | AD98: 0 | AE98: 0 | AF98: 0 | AJ98: 0 | AR98: 0 | AS98: 0 | AV98: 0 | BA98: 0
A99: 98 | AD99: 0 | AE99: 0 | AF99: 0 | AJ99: 0 | AR99: 0 | AS99: 0 | AV99: 0 | BA99: 0
A100: 99 | AD100: 0 | AE100: 0 | AF100: 0 | AJ100: 0 | AR100: 0 | AS100: 0 | AV100: 0 | BA100: 0
A101: 100 | AD101: 0 | AE101: 0 | AF101: 0 | AJ101: 0 | AR101: 0 | AS101: 0 | AV101: 0 | BA101: 0
A102: 101 | AD102: 0 | AE102: 0 | AF102: 0 | AJ102: 0 | AR102: 0 | AS102: 0 | AV102: 0 | BA102: 0
A103: 102 | AD103: 0 | AE103: 0 | AF103: 0 | AJ103: 0 | AR103: 0 | AS103: 0 | AV103: 0 | BA103: 0
A104: 103 | AD104: 0 | AE104: 0 | AF104: 0 | AJ104: 0 | AR104: 0 | AS104: 0 | AV104: 0 | BA104: 0
A105: 104 | AD105: 0 | AE105: 0 | AF105: 0 | AJ105: 0 | AR105: 0 | AS105: 0 | AV105: 0 | BA105: 0
A106: 105 | AD106: 0 | AE106: 0 | AF106: 0 | AJ106: 0 | AR106: 0 | AS106: 0 | AV106: 0 | BA106: 0
A107: 106 | AD107: 0 | AE107: 0 | AF107: 0 | AJ107: 0 | AR107: 0 | AS107: 0 | AV107: 0 | BA107: 0
A108: 107 | AD108: 0 | AE108: 0 | AF108: 0 | AJ108: 0 | AR108: 0 | AS108: 0 | AV108: 0 | BA108: 0
A109: 108 | AD109: 0 | AE109: 0 | AF109: 0 | AJ109: 0 | AR109: 0 | AS109: 0 | AV109: 0 | BA109: 0
A110: 109 | AD110: 0 | AE110: 0 | AF110: 0 | AJ110: 0 | AR110: 0 | AS110: 0 | AV110: 0 | BA110: 0
A111: 110 | B111: Kruse, Brigitte | AD111: 0 | AE111: 0 | AF111: 0 | AJ111: 0 | AR111: 0 | AS111: 0 | AV111: 0 | AZ111: 10 | BA111: 25.5
A112: 111 | AD112: 0 | AE112: 0 | AF112: 0 | AJ112: 0 | AR112: 0 | AS112: 0 | AV112: 0 | BA112: 0
A113: 112 | AD113: 0 | AE113: 0 | AF113: 0 | AJ113: 0 | AR113: 0 | AS113: 0 | AV113: 0 | BA113: 0
A114: 113 | AD114: 0 | AE114: 0 | AF114: 0 | AJ114: 0 | AR114: 0 | AS114: 0 | AV114: 0 | BA114: 0
A115: 114 | AD115: 0 | AE115: 0 | AF115: 0 | AJ115: 0 | AR115: 0 | AS115: 0 | AV115: 0 | BA115: 0
A116: 115 | AD116: 0 | AE116: 0 | AF116: 0 | AJ116: 0 | AR116: 0 | AS116: 0 | AV116: 0 | BA116: 0
A117: 116 | AD117: 0 | AE117: 0 | AF117: 0 | AJ117: 0 | AR117: 0 | AS117: 0 | AV117: 0 | BA117: 0
A118: 117 | AD118: 0 | AE118: 0 | AF118: 0 | AJ118: 0 | AR118: 0 | AS118: 0 | AV118: 0 | BA118: 0
A119: 118 | AD119: 0 | AE119: 0 | AF119: 0 | AJ119: 0 | AR119: 0 | AS119: 0 | AV119: 0 | BA119: 0
A120: 119 | AD120: 0 | AE120: 0 | AF120: 0 | AJ120: 0 | AR120: 0 | AS120: 0 | AV120: 0 | BA120: 0
A121: 120 | AD121: 0 | AE121: 0 | AF121: 0 | AJ121: 0 | AR121: 0 | AS121: 0 | AV121: 0 | BA121: 0
A122: 121 | AD122: 0 | AE122: 0 | AF122: 0 | AJ122: 0 | AR122: 0 | AS122: 0 | AV122: 0 | BA122: 0
A123: 122 | AD123: 0 | AE123: 0 | AF123: 0 | AJ123: 0 | AR123: 0 | AS123: 0 | AV123: 0 | BA123: 0
A124: 123 | AD124: 0 | AE124: 0 | AF124: 0 | AJ124: 0 | AR124: 0 | AS124: 0 | AV124: 0 | BA124: 0
A125: 124 | AD125: 0 | AE125: 0 | AF125: 0 | AJ125: 0 | AR125: 0 | AS125: 0 | AV125: 0 | BA125: 0
A126: 125 | AD126: 0 | AE126: 0 | AF126: 0 | AJ126: 0 | AR126: 0 | AS126: 0 | AV126: 0 | BA126: 0
A127: 126 | AD127: 0 | AE127: 0 | AF127: 0 | AJ127: 0 | AR127: 0 | AS127: 0 | AV127: 0 | BA127: 0
A128: 127 | AD128: 0 | AE128: 0 | AF128: 0 | AJ128: 0 | AR128: 0 | AS128: 0 | AV128: 0 | BA128: 0
A129: 128 | AD129: 0 | AE129: 0 | AF129: 0 | AJ129: 0 | AR129: 0 | AS129: 0 | AV129: 0 | BA129: 0
A130: 129 | AD130: 0 | AE130: 0 | AF130: =SUM(AD130*2.25) -> 0 | AJ130: 0 | AR130: =AF130+AJ130+AK130+AM130+AN130+AO130+AP130+AQ130+AL130 -> 0 | AS130: 0 | AV130: =AR130+AS130+AT130+AU130 -> 0 | BA130: 0
A131: 130 | AD131: 0 | AE131: 0 | AF131: 0 | AJ131: =(AG131+AH131+AI131)*2.25 -> 0 | AR131: 0 | AS131: 0 | AV131: 0 | BA131: 0
A132: 131 | AD132: 0 | AE132: 0 | AF132: 0 | AJ132: 0 | AR132: 0 | AS132: =AD132*2.75 -> 0 | AV132: 0 | BA132: =AZ132*$BA$1 -> 0
A133: 132 | AD133: 0 | AE133: 0 | AF133: 0 | AJ133: 0 | AR133: 0 | AS133: 0 | AV133: 0 | BA133: 0
A134: 133 | AD134: =SUM(C134:Y134) -> 0 | AE134: =AD134/4 -> 0 | AF134: 0 | AJ134: 0 | AR134: 0 | AS134: 0 | AV134: 0 | BA134: 0
A135: 134 | AD135: 0 | AE135: 0 | AF135: 0 | AJ135: 0 | AR135: 0 | AS135: 0 | AV135: 0 | BA135: 0
A136: 135 | AD136: 0 | AE136: 0 | AF136: 0 | AJ136: 0 | AR136: 0 | AS136: 0 | AV136: 0 | BA136: 0
A137: 136 | AD137: 0 | AE137: 0 | AF137: 0 | AJ137: 0 | AR137: 0 | AS137: 0 | AV137: 0 | BA137: 0
A138: 137 | AD138: 0 | AE138: 0 | AF138: 0 | AJ138: 0 | AR138: 0 | AS138: 0 | AV138: 0 | BA138: 0
A139: 138 | AD139: 0 | AE139: 0 | AF139: 0 | AJ139: 0 | AR139: 0 | AS139: 0 | AV139: 0 | BA139: 0
A140: 139 | AD140: 0 | AE140: 0 | AF140: 0 | AJ140: 0 | AR140: 0 | AS140: 0 | AV140: 0 | BA140: 0
A141: 140 | AD141: 0 | AE141: 0 | AF141: 0 | AJ141: 0 | AR141: 0 | AS141: 0 | AV141: 0 | BA141: 0
A142: 141 | AD142: 0 | AE142: 0 | AF142: 0 | AJ142: 0 | AR142: 0 | AS142: 0 | AV142: 0 | BA142: 0
A143: 142 | AD143: 0 | AE143: 0 | AF143: 0 | AJ143: 0 | AR143: 0 | AS143: 0 | AV143: 0 | BA143: 0
A144: 143 | AD144: 0 | AE144: 0 | AF144: 0 | AJ144: 0 | AR144: 0 | AS144: 0 | AV144: 0 | BA144: 0
A145: 144 | AD145: 0 | AE145: 0 | AF145: 0 | AJ145: 0 | AR145: 0 | AS145: 0 | AV145: 0 | BA145: 0
A146: 145 | AD146: 0 | AE146: 0 | AF146: 0 | AJ146: 0 | AR146: 0 | AS146: 0 | AV146: 0 | BA146: 0
A147: 146 | AD147: 0 | AE147: 0 | AF147: 0 | AJ147: 0 | AR147: 0 | AS147: 0 | AV147: 0 | BA147: 0
A148: 147 | AD148: 0 | AE148: 0 | AF148: 0 | AJ148: 0 | AR148: 0 | AS148: 0 | AV148: 0 | BA148: 0
A149: 148 | AD149: 0 | AE149: 0 | AF149: 0 | AJ149: 0 | AR149: 0 | AS149: 0 | AV149: 0 | BA149: 0
A150: 149 | AD150: 0 | AE150: 0 | AF150: 0 | AJ150: 0 | AR150: 0 | AS150: 0 | AV150: 0 | BA150: 0
A151: 150 | AD151: 0 | AE151: 0 | AF151: 0 | AJ151: 0 | AR151: 0 | AS151: 0 | AV151: 0 | BA151: 0
A152: 151 | AD152: 0 | AE152: 0 | AF152: 0 | AJ152: 0 | AR152: 0 | AS152: 0 | AV152: 0 | BA152: 0
A153: 152 | AD153: 0 | AE153: 0 | AF153: 0 | AJ153: 0 | AR153: 0 | AS153: 0 | AV153: 0 | BA153: 0
A154: 153 | AD154: 0 | AE154: 0 | AF154: 0 | AJ154: 0 | AR154: 0 | AS154: 0 | AV154: 0 | BA154: 0
A155: 154 | AD155: 0 | AE155: 0 | AF155: 0 | AJ155: 0 | AR155: 0 | AS155: 0 | AV155: 0 | BA155: 0
A156: 155 | AD156: 0 | AE156: 0 | AF156: 0 | AJ156: 0 | AR156: 0 | AS156: 0 | AV156: 0 | BA156: 0
A157: 156 | AD157: 0 | AE157: 0 | AF157: 0 | AJ157: 0 | AR157: 0 | AS157: 0 | AV157: 0 | BA157: 0
A158: 157 | AD158: 0 | AE158: 0 | AF158: 0 | AJ158: 0 | AR158: 0 | AS158: 0 | AV158: 0 | BA158: 0
A159: 158 | AD159: 0 | AE159: 0 | AF159: 0 | AJ159: 0 | AR159: 0 | AS159: 0 | AV159: 0 | BA159: 0
A160: 159 | AD160: 0 | AE160: 0 | AF160: 0 | AJ160: 0 | AR160: 0 | AS160: 0 | AV160: 0 | BA160: 0
A161: 160 | AD161: 0 | AE161: 0 | AF161: 0 | AJ161: 0 | AR161: 0 | AS161: 0 | AV161: 0 | BA161: 0
A162: 161 | AD162: 0 | AE162: 0 | AF162: 0 | AJ162: 0 | AR162: 0 | AS162: 0 | AV162: 0 | BA162: 0
A163: 162 | AD163: 0 | AE163: 0 | AF163: 0 | AJ163: 0 | AR163: 0 | AS163: 0 | AV163: 0 | BA163: 0
A164: 163 | AD164: 0 | AE164: 0 | AF164: 0 | AJ164: 0 | AR164: 0 | AS164: 0 | AV164: 0 | BA164: 0
A165: 164 | AD165: 0 | AE165: 0 | AF165: 0 | AJ165: 0 | AR165: 0 | AS165: 0 | AV165: 0 | BA165: 0
A166: 165 | AD166: 0 | AE166: 0 | AF166: 0 | AJ166: 0 | AR166: 0 | AS166: 0 | AV166: 0 | BA166: 0
A167: 166 | AD167: 0 | AE167: 0 | AF167: 0 | AJ167: 0 | AR167: 0 | AS167: 0 | AV167: 0 | BA167: 0
A168: 167 | AD168: 0 | AE168: 0 | AF168: 0 | AJ168: 0 | AR168: 0 | AS168: 0 | AV168: 0 | BA168: 0
A169: 168 | AD169: 0 | AE169: 0 | AF169: 0 | AJ169: 0 | AR169: 0 | AS169: 0 | AV169: 0 | BA169: 0
A170: 169 | AD170: 0 | AE170: 0 | AF170: 0 | AJ170: 0 | AR170: 0 | AS170: 0 | AV170: 0 | BA170: 0
A171: 170 | AD171: 0 | AE171: 0 | AF171: 0 | AJ171: 0 | AR171: 0 | AS171: 0 | AV171: 0 | BA171: 0
A172: 171 | AD172: 0 | AE172: 0 | AF172: 0 | AJ172: 0 | AR172: 0 | AS172: 0 | AV172: 0 | BA172: 0
A173: 172 | AD173: 0 | AE173: 0 | AF173: 0 | AJ173: 0 | AR173: 0 | AS173: 0 | AV173: 0 | BA173: 0
A174: 173 | AD174: 0 | AE174: 0 | AF174: 0 | AJ174: 0 | AR174: 0 | AS174: 0 | AV174: 0 | BA174: 0
A175: 174 | AD175: 0 | AE175: 0 | AF175: 0 | AJ175: 0 | AR175: 0 | AS175: 0 | AV175: 0 | BA175: 0
A176: 175 | AD176: 0 | AE176: 0 | AF176: 0 | AJ176: 0 | AR176: 0 | AS176: 0 | AV176: 0 | BA176: 0
A177: 176 | AD177: 0 | AE177: 0 | AF177: 0 | AJ177: 0 | AR177: 0 | AS177: 0 | AV177: 0 | BA177: 0
A178: 177 | AD178: 0 | AE178: 0 | AF178: 0 | AJ178: 0 | AR178: 0 | AS178: 0 | AV178: 0 | BA178: 0
A179: 178 | AD179: 0 | AE179: 0 | AF179: 0 | AJ179: 0 | AR179: 0 | AS179: 0 | AV179: 0 | BA179: 0
A180: 179 | AD180: 0 | AE180: 0 | AF180: 0 | AJ180: 0 | AR180: 0 | AS180: 0 | AV180: 0 | BA180: 0
A181: 180 | AD181: 0 | AE181: 0 | AF181: 0 | AJ181: 0 | AR181: 0 | AS181: 0 | AV181: 0 | BA181: 0
A182: 181 | AD182: 0 | AE182: 0 | AF182: 0 | AJ182: 0 | AR182: 0 | AS182: 0 | AV182: 0 | BA182: 0
A183: 182 | AD183: 0 | AE183: 0 | AF183: 0 | AJ183: 0 | AR183: 0 | AS183: 0 | AV183: 0 | BA183: 0
A184: 183 | AD184: 0 | AE184: 0 | AF184: 0 | AJ184: 0 | AR184: 0 | AS184: 0 | AV184: 0 | BA184: 0
A185: 184 | AD185: 0 | AE185: 0 | AF185: 0 | AJ185: 0 | AR185: 0 | AS185: 0 | AV185: 0 | BA185: 0
A186: 185 | AD186: 0 | AE186: 0 | AF186: 0 | AJ186: 0 | AR186: 0 | AS186: 0 | AV186: 0 | BA186: 0
A187: 186 | AD187: 0 | AE187: 0 | AF187: 0 | AJ187: 0 | AR187: 0 | AS187: 0 | AV187: 0 | BA187: 0
A188: 187 | AD188: 0 | AE188: 0 | AF188: 0 | AJ188: 0 | AR188: 0 | AS188: 0 | AV188: 0 | BA188: 0
A189: 188 | AD189: 0 | AE189: 0 | AF189: 0 | AJ189: 0 | AR189: 0 | AS189: 0 | AV189: 0 | BA189: 0
A190: 189 | AD190: 0 | AE190: 0 | AF190: 0 | AJ190: 0 | AR190: 0 | AS190: 0 | AV190: 0 | BA190: 0
A191: 190 | AD191: 0 | AE191: 0 | AF191: 0 | AJ191: 0 | AR191: 0 | AS191: 0 | AV191: 0 | BA191: 0
A192: 191 | AD192: 0 | AE192: 0 | AF192: 0 | AJ192: 0 | AR192: 0 | AS192: 0 | AV192: 0 | BA192: 0
A193: 192 | AD193: 0 | AE193: 0 | AF193: 0 | AJ193: 0 | AR193: 0 | AS193: 0 | AV193: 0 | BA193: 0
A194: 193 | AD194: 0 | AE194: 0 | AF194: =SUM(AD194*2.25) -> 0 | AJ194: 0 | AR194: =AF194+AJ194+AK194+AM194+AN194+AO194+AP194+AQ194+AL194 -> 0 | AS194: 0 | AV194: =AR194+AS194+AT194+AU194 -> 0 | BA194: 0
A195: 194 | AD195: 0 | AE195: 0 | AF195: 0 | AJ195: =(AG195+AH195+AI195)*2.25 -> 0 | AR195: 0 | AS195: 0 | AV195: 0 | BA195: 0
A196: 195 | AD196: 0 | AE196: 0 | AF196: 0 | AJ196: 0 | AR196: 0 | AS196: =AD196*2.75 -> 0 | AV196: 0 | BA196: =AZ196*$BA$1 -> 0
A197: 196 | AD197: 0 | AE197: 0 | AF197: 0 | AJ197: 0 | AR197: 0 | AS197: 0 | AV197: 0 | BA197: 0
A198: 197 | AD198: =SUM(C198:Y198) -> 0 | AE198: =AD198/4 -> 0 | AF198: 0 | AJ198: 0 | AR198: 0 | AS198: 0 | AV198: 0 | BA198: 0
A199: 198 | AD199: 0 | AE199: 0 | AF199: 0 | AJ199: 0 | AR199: 0 | AS199: 0 | AV199: 0 | BA199: 0
A200: 199 | AD200: 0 | AE200: 0 | AF200: 0 | AJ200: 0 | AR200: 0 | AS200: 0 | AV200: 0 | BA200: 0
... 113 more rows

Sheet 06-Abrechnung
A1: QuittungNR | B1: 211
A8: Mitarbeiter Nr.: | D8: MONATSABRECHNUNG | G8: Juni | H8: 2017
G10: Abrechnungszeitraum: 21.05 - 20.06
A13: =INDEX([1]!Datenbank2,$B$1,2)&" "&INDEX([1]!Datenbank2,$B$1,3) -> Christel Hachmeister | B13: Anja Rohlfing | C13: Anja Rohlfing | D13: Anja Rohlfing
A14: =INDEX([1]!Datenbank2,$B$1,4) -> Borsteler Bruch 4 | B14: Elbeweg 7 | C14: Elbeweg 7 | D14: Elbeweg 7
A15: =INDEX([1]!Datenbank2,$B$1,5)&" "&INDEX([1]!Datenbank2,$B$1,6) -> 31749 Auetal
A19: Allgemeine Tests:
C20: TEST NR & DATUM | D20: FB | E20: Entgelt in EURO € | G20: Erläuterungen zu
C21: =Juni!$C$1 -> 0 | D21: =INDEX([0]!juni,$B$1,3) -> 0 | E21: =D21*2.25 -> 0 | G21: Spezialtests:
C22: =Juni!$D$1 -> 0 | D22: =INDEX([0]!juni,$B$1,4) -> 0 | E22: =D22*2.25 -> 0 | G22: =IF(Juni!$AL$1=0,"",Juni!AL$1) ->  | H22: =INDEX([0]!juni,$B$1,38) -> 0
C23: =Juni!$E$1 -> 0 | D23: =INDEX([0]!juni,$B$1,5) -> 0 | E23: 0 | G23: =IF(Juni!$AM$1=0,"",Juni!AM$1) ->  | H23: =INDEX([0]!juni,$B$1,39) -> 0
C24: =Juni!$F$1 -> 0 | D24: =INDEX([0]!juni,$B$1,6) -> 0 | E24: 0 | G24: =IF(Juni!$AN$1=0,"",Juni!AN$1) ->  | H24: =INDEX([0]!juni,$B$1,40) -> 0
C25: =Juni!$G$1 -> 0 | D25: =INDEX([0]!juni,$B$1,7) -> 0 | E25: 0 | G25: =IF(Juni!$AO$1=0,"",Juni!AO$1) ->  | H25: =INDEX([0]!juni,$B$1,41) -> 0
C26: =Juni!$H$1 -> 0 | D26: =INDEX([0]!juni,$B$1,8) -> 0 | E26: 0 | G26: =IF(Juni!$AP$1=0,"",Juni!AP$1) ->  | H26: =INDEX([0]!juni,$B$1,42) -> 0
C27: =Juni!$I$1 -> 0 | D27: =INDEX([0]!juni,$B$1,9) -> 0 | E27: 0
C28: =Juni!$J$1 -> 0 | D28: =INDEX([0]!juni,$B$1,10) -> 0 | E28: 0 | G28: Gesamt | H28: =SUM(H22:H27) -> 0
C29: =Juni!$K$1 -> 0 | D29: =INDEX([0]!juni,$B$1,11) -> 0 | E29: 0
C30: =Juni!$L$1 -> 0 | D30: =INDEX([0]!juni,$B$1,12) -> 0 | E30: 0
C31: =Juni!$M$1 -> 0 | D31: =INDEX([0]!juni,$B$1,13) -> 0 | E31: 0
C32: =Juni!$N$1 -> 0 | D32: =INDEX([0]!juni,$B$1,14) -> 0 | E32: 0
C33: =Juni!$O$1 -> 0 | D33: =INDEX([0]!juni,$B$1,15) -> 0 | E33: 0
C34: =Juni!$P$1 -> 0 | D34: =INDEX([0]!juni,$B$1,16) -> 0 | E34: 0
C35: =Juni!$Q$1 -> 0 | D35: =INDEX([0]!juni,$B$1,17) -> 0 | E35: 0
C36: =Juni!$R$1 -> 0 | D36: =INDEX([0]!juni,$B$1,18) -> 0 | E36: 0
C37: =Juni!$S$1 -> 0 | D37: =INDEX([0]!juni,$B$1,19) -> 0 | E37: 0
C38: =Juni!$T$1 -> 0 | D38: =INDEX([0]!juni,$B$1,20) -> 0 | E38: 0
C39: =Juni!$U$1 -> 0 | D39: =INDEX([0]!juni,$B$1,21) -> 0 | E39: 0
C40: =Juni!$V$1 -> 0 | D40: =INDEX([0]!juni,$B$1,22) -> 0 | E40: =D40*2.25 -> 0
C41: =Juni!$W$1 -> 0 | D41: =INDEX([0]!juni,$B$1,23) -> 0 | E41: 0
C42: =Juni!$X$1 -> 0 | D42: =INDEX([0]!juni,$B$1,24) -> 0 | E42: 0
C43: =Juni!$Y$1 -> 0 | D43: =INDEX([0]!juni,$B$1,25) -> 0 | E43: 0
C44: =Juni!$Z$1 -> 0 | D44: =INDEX([0]!juni,$B$1,26) -> 0 | E44: 0
C45: =Juni!$AA$1 -> 0 | D45: =INDEX([0]!juni,$B$1,27) -> 0 | E45: 0
C46: =Juni!$AB$1 -> 0 | D46: =INDEX([0]!juni,$B$1,28) -> 0 | E46: 0
C47: =Juni!$AC$1 -> 0 | D47: =INDEX([0]!juni,$B$1,29) -> 0 | E47: 0
B48: SUMME 1 | D48: =SUM(D21:D47) -> 0 | E48: =SUM(E21:E47) -> 0 | G48: Stunden (nach FB-Anzahl) | H48: =INDEX([0]!juni,$B$1,31) -> 0
A50: Zusätze: | B50: Bezeichung | G50: FB = Anzahl der Fragebogen
B51: =Juni!$AJ$1 -> Summe BIM in EURO | E51: =INDEX([0]!juni,$B$1,28) -> 0
B52: =Juni!$AK$1 -> Stamm daten | E52: =INDEX([0]!juni,$B$1,29) -> 0
B53: Summe Spezialtest | E53: =H28 -> 0
C54: =IF(Juni!$AQ$1=0,"",Juni!AQ$1) -> Std. /Entgelt | E54: =INDEX([0]!juni,$B$1,43) -> 0
B55: GESAMT NETTO | E55: =SUM(E48:E54) -> 0
C56: Kilometergeld | E56: =INDEX([0]!juni,$B$1,45) -> 0
C57: Porto/Telefon/Fax | E57: =INDEX([0]!juni,$B$1,46) -> 0
C58: Pauschale 25% | E58: =INDEX([0]!juni,$B$1,47) -> 0
B59: GESAMT in € | E59: =E55+E56+E57+E58 -> 0
A62: Der Betrag wird bis zum 10. des folgenden Monats überwiesen.
A67: Prorata Marktforschung GmbH • Marienglacis 37 • 32427 Minden • tel 0571.82875.0 fax • 0571.82875.99 • www.prorata.de • info@prorata.de
